Workbook

Sheet INGRESO DE DATOS
O2: 24 years | P2: FALSE
O3: Coaseguro (Panamá) | P3: FALSE
O11: Descuento 24 años (por edad) | S11: Type | T11: Nuevo Negocio
O12: age | P12: Discount (%) | Q12: Parameter | T12: Renovación
O13: 24 | P13: 35 | Q13: =1-P13/100 -> 0.65 | T13: Renovación: a partir del 2020
O14: 25 | P14: 30 | Q14: =1-P14/100 -> 0.7
O15: 26 | P15: 25 | Q15: 0.75
O16: 27 | P16: 20 | Q16: 0.8
O17: 28 | P17: 15 | Q17: 0.85
O18: 29 | P18: 6 | Q18: 0.94
O19: All ages | P19: 0 | Q19: 1 | S19: Type selected | T19: 1
H21: FALSE
O22: NEW BUSINESS DISCOUNT (ENTRADA MANUAL)
O23: Ultimate | P23: Elite | Q23: Premier | R23: Select | S23: Major Medical
O24: 15 | P24: 15 | Q24: 15 | R24: 15 | S24: 15
P26: PÓLIZAS 2020
O27: Ultimate | P27: Elite | Q27: Premier | R27: Select | S27: Major Medical
O28: 15 | P28: 15 | Q28: 15 | R28: 15 | S28: 15
O30: Descuento de 24 años: | P30: =IF(P2,_xlfn.SWITCH(C43,O13,Q13,O14,Q14,O15,Q15,O16,Q16,O17,Q17,O18,Q18,Q19),Q19) -> 1
O32: Descuento por variante de coaseguro | P32: =IF(P3=TRUE,0.15,1) -> 1
O35: Descuento si es nuevo negocio:
A37: Nombre del Asegurado Titular: | C37: John Doe | O37: NEW BUSINESS DISCOUNT (MULTIPLICATION FACTOR)
O38: Ultimate | P38: Elite | Q38: Premier | R38: Select | S38: Major Medical
A39: Número de adultos en la póliza: | C39: 1 | E39: Número de dependientes menores de 16 años: | H39: Número de dependientes menores de 10 años: | O39: =IF($T$19=1,(O24/100),IF($T$19=2,0,O28/100)) -> 0.15 | P39: =IF($T$19=1,(P24/100),IF($T$19=2,0,P28/100)) -> 0.15 | Q39: 0.15 | R39: 0.15 | S39: 0.15
A41: Número total de dependientes en la póliza: | C41: 0
E42: 1 | H42: 1 | O42: Descuento combinado 24 años y Nuevo Negocio
A43: Edad del Asegurado Titular: | C43: 52
A45: Edad del/la cónyuge: | C45: 32 | O45: NEW BUSINESS DISCOUNT
O46: Ultimate | P46: Elite | Q46: Premier | R46: Select | S46: Major Medical
O47: =(1-O39)*$P$30 -> 0.85 | P47: =(1-P39)*$P$30 -> 0.85 | Q47: =(1-Q39)*$P$30 -> 0.85 | R47: 0.85 | S47: 0.85
A49: Tarifas en US$ | Validas: 1 de enero de 2024

Sheet Bupa Global Ultimate
C1: FALSE | H1: RESUMEN DE BENEFICIOS | W1: RESUMEN DE BENEFICIOS | AL1: RESUMEN DE BENEFICIOS
A5: Cotización de Seguro Médico Internacional Bupa Global Ultimate Health Plan Tarifas en US$ | Validas: 1 de enero de 2024
A13: Nombre del Asegurado Titular | B13: =+'INGRESO DE DATOS'!$C$37 -> John Doe
A15: Número de adultos en la póliza | B15: =+'INGRESO DE DATOS'!$C$41 -> 0
A17: Número de Dependientes en la póliza | B17: =+'INGRESO DE DATOS'!$C$39 -> 1 | C17: =IF('INGRESO DE DATOS'!$P$2=TRUE, "Cotización para dependiente de 24 años","") -> 
A19: Número de Dependientes menores de 16 años | B19: =+'INGRESO DE DATOS'!$E$42 -> 1
A21: Edad del Asegurado Titular | B21: =+'INGRESO DE DATOS'!$C$43 -> 52 | C21: Edad del/la conyuge | E21: =+'INGRESO DE DATOS'!$C$45 -> 32
A23: Fecha de la cotización | B23: =NOW() -> 2024-01-10T13:30:25.430
A26: DEDUCIBLES | C26: PLAN 1 | D26: PLAN 2 | E26: PLAN 3
A27: En el país de residencia | C27: $0 | D27: 1000 | E27: 2000
A28: Fuera del país de residencia | C28: $0 | D28: 1000 | E28: 2000
A30: TARIFAS ANUALES
A31: Prima para Asegurado Titular | C31: =VLOOKUP($B$21,Tablas!$A$912:$G$978,3,TRUE) -> 27988.8 | D31: =VLOOKUP($B$21,Tablas!$A$912:$G$978,4,TRUE) -> 18058.25 | E31: =VLOOKUP($B$21,Tablas!$A$912:$G$978,5,TRUE) -> 14925.15
A32: Prima para conyuge | C32: =IF($B$17=1,0,(VLOOKUP($E$21,Tablas!$A$912:$G$978,3,TRUE))) -> 0 | D32: =IF($B$17=1,0,(VLOOKUP($E$21,Tablas!$A$912:$G$978,4,TRUE))) -> 0 | E32: =IF($B$17=1,0,(VLOOKUP($E$21,Tablas!$A$912:$G$978,5,TRUE))) -> 0
A33: Prima para hijo (s) | C33: =IF($B$17=1, (IF($B$15=0, 0, (IF($B$19>$B$15, (VLOOKUP($B$15,Tablas!$A$979:$G$981,3,TRUE)), (IF($B$15>4,(IF($B$19=0, (VLOOKUP(3,Tablas!$A$979:$G$981,3,TRUE)), (IF($B$19=1, (VLOOKUP(3,Tablas!$A$979:$G$981,3,TRUE)), (IF($B$19=2, (VLOOKUP(3,Tablas!$A$979:$G$981,3,TRUE)), (VLOOKUP(3,Tablas!$A$979:$G$981,3,TRUE)))))))), (IF($B$15=4,(IF(4-$B$19=0,(VLOOKUP(2,Tablas!$A$979:$G$981,3,TRUE)), (IF(4-$B$19=1,(VLOOKUP(2,Tablas!$A$979:$G$981,3,TRUE)), (IF(4-$B$19=2, (VLOOKUP(2,Tablas!$A$979:$G$981,3,TRUE)), (VLOOKUP(3,Tablas!$A$979:$G$981,3,TRUE)))))))), (IF($B$15=3,(IF(3-$B$19=0,(VLOOKUP(1,Tablas!$A$979:$G$981,3,TRUE)), (IF(3-$B$19=1,(VLOOKUP(1,Tablas!$A$979:$G$981,3,TRUE)), (IF(3-$B$19=2, (VLOOKUP(2,Tablas!$A$979:$G$981,3,TRUE)), (VLOOKUP(3,Tablas!$A$979:$G$981,3,TRUE)))))))), (IF($B$15=2,(IF(2-$B$19=0, 0, (IF(2-$B$19=1,(VLOOKUP(1,Tablas!$A$979:$G$981,3,TRUE)), (IF(2-$B$19=2, (VLOOKUP(2,Tablas!$A$979:$G$981,3,TRUE)), 0)))))), (IF($B$15=1,(IF(1-$B$19=0, 0, (IF(1-$B$19=1,(VLOOKUP(1,Tablas!$A$979:$G$981,3,TRUE)),0)))),0)))))))))))))), (IF($B$15=0, 0, (IF($B$19>$B$15, (VLOOKUP($B$15,Tablas!$A$979:$G$981,3,TRUE)), (IF($B$15=4,(IF(4-$B$19=0, 0, (IF(4-$B$19=1, (VLOOKUP(1,Tablas!$A$979:$G$981,3,TRUE)), (IF(4-$B$19=2, (VLOOKUP(2,Tablas!$A$979:$G$981,3,TRUE)), (IF(4-$B$19=3, (VLOOKUP(3,Tablas!$A$979:$G$981,3,TRUE)), (IF(4-$B$19=4, (VLOOKUP(3,Tablas!$A$979:$G$981,3,TRUE)), 0)))))))))), (IF($B$15=5,(IF(5-$B$19=0, (VLOOKUP(1,Tablas!$A$979:$G$981,3,TRUE)), (IF(5-$B$19=1, (VLOOKUP(1,Tablas!$A$979:$G$981,3,TRUE)), (IF(5-$B$19=2, (VLOOKUP(2,Tablas!$A$979:$G$981,3,TRUE)), (IF(5-$B$19=3, (VLOOKUP(3,Tablas!$A$979:$G$981,3,TRUE)), (IF(5-$B$19=4, (VLOOKUP(3,Tablas!$A$979:$G$981,3,TRUE)), (VLOOKUP(3,Tablas!$A$979:$G$981,3,TRUE)))))))))))), (IF($B$15=6,(IF(6-$B$19=0, (VLOOKUP(2,Tablas!$A$979:$G$981,3,TRUE)), (IF(6-$B$19=1, (VLOOKUP(2,Tablas!$A$979:$G$981,3,TRUE)), (IF(6-$B$19=2, (VLOOKUP(2,Tablas!$A$979:$G$981,3,TRUE)), (IF(6-$B$19=3, (VLOOKUP(3,Tablas!$A$979:$G$981,3,TRUE)), (IF(6-$B$19=4, (VLOOKUP(3,Tablas!$A$979:$G$981,3,TRUE)), (VLOOKUP(3,Tablas!$A$979:$G$981,3,TRUE)))))))))))), (IF($B$15>6,(IF(7-$B$19=0, (VLOOKUP(3,Tablas!$A$979:$G$981,3,TRUE)), (IF(7-$B$19=1, (VLOOKUP(3,Tablas!$A$979:$G$981,3,TRUE)), (IF(7-$B$19=2, (VLOOKUP(3,Tablas!$A$979:$G$981,3,TRUE)), (IF(7-$B$19=3, (VLOOKUP(3,Tablas!$A$979:$G$981,3,TRUE)), (IF(7-$B$19=4, (VLOOKUP(3,Tablas!$A$979:$G$981,3,TRUE)), (VLOOKUP(3,Tablas!$A$979:$G$981,3,TRUE)))))))))))), (IF($B$15=3,(IF(3-$B$19=0,0, (IF(3-$B$19=1,(VLOOKUP(1,Tablas!$A$979:$G$981,3,TRUE)), (IF(3-$B$19=2, (VLOOKUP(2,Tablas!$A$979:$G$981,3,TRUE)), (VLOOKUP(3,Tablas!$A$979:$G$981,3,TRUE)))))))), (IF($B$15=2,(IF(2-$B$19=0, 0, (IF(2-$B$19=1,(VLOOKUP(1,Tablas!$A$979:$G$981,3,TRUE)), (IF(2-$B$19=2, (VLOOKUP(2,Tablas!$A$979:$G$981,3,TRUE)), 0)))))), (IF($B$15=1,(IF(1-$B$19=0, 0, (IF(1-$B$19=1,(VLOOKUP(1,Tablas!$A$979:$G$981,3,TRUE)),0)))),0))))))))))))))))))) -> 0 | D33: =IF($B$17=1, (IF($B$15=0, 0, (IF($B$19>$B$15, (VLOOKUP($B$15,Tablas!$A$979:$G$981,4,TRUE)), (IF($B$15>4,(IF($B$19=0, (VLOOKUP(3,Tablas!$A$979:$G$981,4,TRUE)), (IF($B$19=1, (VLOOKUP(3,Tablas!$A$979:$G$981,4,TRUE)), (IF($B$19=2, (VLOOKUP(3,Tablas!$A$979:$G$981,4,TRUE)), (VLOOKUP(3,Tablas!$A$979:$G$981,4,TRUE)))))))), (IF($B$15=4,(IF(4-$B$19=0,(VLOOKUP(2,Tablas!$A$979:$G$981,4,TRUE)), (IF(4-$B$19=1,(VLOOKUP(2,Tablas!$A$979:$G$981,4,TRUE)), (IF(4-$B$19=2, (VLOOKUP(2,Tablas!$A$979:$G$981,4,TRUE)), (VLOOKUP(3,Tablas!$A$979:$G$981,4,TRUE)))))))), (IF($B$15=3,(IF(3-$B$19=0,(VLOOKUP(1,Tablas!$A$979:$G$981,4,TRUE)), (IF(3-$B$19=1,(VLOOKUP(1,Tablas!$A$979:$G$981,4,TRUE)), (IF(3-$B$19=2, (VLOOKUP(2,Tablas!$A$979:$G$981,4,TRUE)), (VLOOKUP(3,Tablas!$A$979:$G$981,4,TRUE)))))))), (IF($B$15=2,(IF(2-$B$19=0, 0, (IF(2-$B$19=1,(VLOOKUP(1,Tablas!$A$979:$G$981,4,TRUE)), (IF(2-$B$19=2, (VLOOKUP(2,Tablas!$A$979:$G$981,4,TRUE)), 0)))))), (IF($B$15=1,(IF(1-$B$19=0, 0, (IF(1-$B$19=1,(VLOOKUP(1,Tablas!$A$979:$G$981,4,TRUE)),0)))),0)))))))))))))), (IF($B$15=0, 0, (IF($B$19>$B$15, (VLOOKUP($B$15,Tablas!$A$979:$G$981,4,TRUE)), (IF($B$15=4,(IF(4-$B$19=0, 0, (IF(4-$B$19=1, (VLOOKUP(1,Tablas!$A$979:$G$981,4,TRUE)), (IF(4-$B$19=2, (VLOOKUP(2,Tablas!$A$979:$G$981,4,TRUE)), (IF(4-$B$19=3, (VLOOKUP(3,Tablas!$A$979:$G$981,4,TRUE)), (IF(4-$B$19=4, (VLOOKUP(3,Tablas!$A$979:$G$981,4,TRUE)), 0)))))))))), (IF($B$15=5,(IF(5-$B$19=0, (VLOOKUP(1,Tablas!$A$979:$G$981,4,TRUE)), (IF(5-$B$19=1, (VLOOKUP(1,Tablas!$A$979:$G$981,4,TRUE)), (IF(5-$B$19=2, (VLOOKUP(2,Tablas!$A$979:$G$981,4,TRUE)), (IF(5-$B$19=3, (VLOOKUP(3,Tablas!$A$979:$G$981,4,TRUE)), (IF(5-$B$19=4, (VLOOKUP(3,Tablas!$A$979:$G$981,4,TRUE)), (VLOOKUP(3,Tablas!$A$979:$G$981,4,TRUE)))))))))))), (IF($B$15=6,(IF(6-$B$19=0, (VLOOKUP(2,Tablas!$A$979:$G$981,4,TRUE)), (IF(6-$B$19=1, (VLOOKUP(2,Tablas!$A$979:$G$981,4,TRUE)), (IF(6-$B$19=2, (VLOOKUP(2,Tablas!$A$979:$G$981,4,TRUE)), (IF(6-$B$19=3, (VLOOKUP(3,Tablas!$A$979:$G$981,4,TRUE)), (IF(6-$B$19=4, (VLOOKUP(3,Tablas!$A$979:$G$981,4,TRUE)), (VLOOKUP(3,Tablas!$A$979:$G$981,4,TRUE)))))))))))), (IF($B$15>6,(IF(7-$B$19=0, (VLOOKUP(3,Tablas!$A$979:$G$981,4,TRUE)), (IF(7-$B$19=1, (VLOOKUP(3,Tablas!$A$979:$G$981,4,TRUE)), (IF(7-$B$19=2, (VLOOKUP(3,Tablas!$A$979:$G$981,4,TRUE)), (IF(7-$B$19=3, (VLOOKUP(3,Tablas!$A$979:$G$981,4,TRUE)), (IF(7-$B$19=4, (VLOOKUP(3,Tablas!$A$979:$G$981,4,TRUE)), (VLOOKUP(3,Tablas!$A$979:$G$981,4,TRUE)))))))))))), (IF($B$15=3,(IF(3-$B$19=0,0, (IF(3-$B$19=1,(VLOOKUP(1,Tablas!$A$979:$G$981,4,TRUE)), (IF(3-$B$19=2, (VLOOKUP(2,Tablas!$A$979:$G$981,4,TRUE)), (VLOOKUP(3,Tablas!$A$979:$G$981,4,TRUE)))))))), (IF($B$15=2,(IF(2-$B$19=0, 0, (IF(2-$B$19=1,(VLOOKUP(1,Tablas!$A$979:$G$981,4,TRUE)), (IF(2-$B$19=2, (VLOOKUP(2,Tablas!$A$979:$G$981,4,TRUE)), 0)))))), (IF($B$15=1,(IF(1-$B$19=0, 0, (IF(1-$B$19=1,(VLOOKUP(1,Tablas!$A$979:$G$981,4,TRUE)),0)))),0))))))))))))))))))) -> 0 | E33: =IF($B$17=1, (IF($B$15=0, 0, (IF($B$19>$B$15, (VLOOKUP($B$15,Tablas!$A$979:$G$981,5,TRUE)), (IF($B$15>4,(IF($B$19=0, (VLOOKUP(3,Tablas!$A$979:$G$981,5,TRUE)), (IF($B$19=1, (VLOOKUP(3,Tablas!$A$979:$G$981,5,TRUE)), (IF($B$19=2, (VLOOKUP(3,Tablas!$A$979:$G$981,5,TRUE)), (VLOOKUP(3,Tablas!$A$979:$G$981,5,TRUE)))))))), (IF($B$15=4,(IF(4-$B$19=0,(VLOOKUP(2,Tablas!$A$979:$G$981,5,TRUE)), (IF(4-$B$19=1,(VLOOKUP(2,Tablas!$A$979:$G$981,5,TRUE)), (IF(4-$B$19=2, (VLOOKUP(2,Tablas!$A$979:$G$981,5,TRUE)), (VLOOKUP(3,Tablas!$A$979:$G$981,5,TRUE)))))))), (IF($B$15=3,(IF(3-$B$19=0,(VLOOKUP(1,Tablas!$A$979:$G$981,5,TRUE)), (IF(3-$B$19=1,(VLOOKUP(1,Tablas!$A$979:$G$981,5,TRUE)), (IF(3-$B$19=2, (VLOOKUP(2,Tablas!$A$979:$G$981,5,TRUE)), (VLOOKUP(3,Tablas!$A$979:$G$981,5,TRUE)))))))), (IF($B$15=2,(IF(2-$B$19=0, 0, (IF(2-$B$19=1,(VLOOKUP(1,Tablas!$A$979:$G$981,5,TRUE)), (IF(2-$B$19=2, (VLOOKUP(2,Tablas!$A$979:$G$981,5,TRUE)), 0)))))), (IF($B$15=1,(IF(1-$B$19=0, 0, (IF(1-$B$19=1,(VLOOKUP(1,Tablas!$A$979:$G$981,5,TRUE)),0)))),0)))))))))))))), (IF($B$15=0, 0, (IF($B$19>$B$15, (VLOOKUP($B$15,Tablas!$A$979:$G$981,5,TRUE)), (IF($B$15=4,(IF(4-$B$19=0, 0, (IF(4-$B$19=1, (VLOOKUP(1,Tablas!$A$979:$G$981,5,TRUE)), (IF(4-$B$19=2, (VLOOKUP(2,Tablas!$A$979:$G$981,5,TRUE)), (IF(4-$B$19=3, (VLOOKUP(3,Tablas!$A$979:$G$981,5,TRUE)), (IF(4-$B$19=4, (VLOOKUP(3,Tablas!$A$979:$G$981,5,TRUE)), 0)))))))))), (IF($B$15=5,(IF(5-$B$19=0, (VLOOKUP(1,Tablas!$A$979:$G$981,5,TRUE)), (IF(5-$B$19=1, (VLOOKUP(1,Tablas!$A$979:$G$981,5,TRUE)), (IF(5-$B$19=2, (VLOOKUP(2,Tablas!$A$979:$G$981,5,TRUE)), (IF(5-$B$19=3, (VLOOKUP(3,Tablas!$A$979:$G$981,5,TRUE)), (IF(5-$B$19=4, (VLOOKUP(3,Tablas!$A$979:$G$981,5,TRUE)), (VLOOKUP(3,Tablas!$A$979:$G$981,5,TRUE)))))))))))), (IF($B$15=6,(IF(6-$B$19=0, (VLOOKUP(2,Tablas!$A$979:$G$981,5,TRUE)), (IF(6-$B$19=1, (VLOOKUP(2,Tablas!$A$979:$G$981,5,TRUE)), (IF(6-$B$19=2, (VLOOKUP(2,Tablas!$A$979:$G$981,5,TRUE)), (IF(6-$B$19=3, (VLOOKUP(3,Tablas!$A$979:$G$981,5,TRUE)), (IF(6-$B$19=4, (VLOOKUP(3,Tablas!$A$979:$G$981,5,TRUE)), (VLOOKUP(3,Tablas!$A$979:$G$981,5,TRUE)))))))))))), (IF($B$15>6,(IF(7-$B$19=0, (VLOOKUP(3,Tablas!$A$979:$G$981,5,TRUE)), (IF(7-$B$19=1, (VLOOKUP(3,Tablas!$A$979:$G$981,5,TRUE)), (IF(7-$B$19=2, (VLOOKUP(3,Tablas!$A$979:$G$981,5,TRUE)), (IF(7-$B$19=3, (VLOOKUP(3,Tablas!$A$979:$G$981,5,TRUE)), (IF(7-$B$19=4, (VLOOKUP(3,Tablas!$A$979:$G$981,5,TRUE)), (VLOOKUP(3,Tablas!$A$979:$G$981,5,TRUE)))))))))))), (IF($B$15=3,(IF(3-$B$19=0,0, (IF(3-$B$19=1,(VLOOKUP(1,Tablas!$A$979:$G$981,5,TRUE)), (IF(3-$B$19=2, (VLOOKUP(2,Tablas!$A$979:$G$981,5,TRUE)), (VLOOKUP(3,Tablas!$A$979:$G$981,5,TRUE)))))))), (IF($B$15=2,(IF(2-$B$19=0, 0, (IF(2-$B$19=1,(VLOOKUP(1,Tablas!$A$979:$G$981,5,TRUE)), (IF(2-$B$19=2, (VLOOKUP(2,Tablas!$A$979:$G$981,5,TRUE)), 0)))))), (IF($B$15=1,(IF(1-$B$19=0, 0, (IF(1-$B$19=1,(VLOOKUP(1,Tablas!$A$979:$G$981,5,TRUE)),0)))),0))))))))))))))))))) -> 0
A34: Total de Prima neta | C34: =SUM(C31:C33) -> 27988.8 | D34: =SUM(D31:D33) -> 18058.25 | E34: 14925.15
A35: Tarifa administrativa anual | C35: 75 | D35: 75 | E35: 75
A36: VAT (5%) | C36: =+C34*5% -> 1399.44 | D36: =+D34*5% -> 902.9125 | E36: 746.2575
A37: ITBMS (7%) | C37: =+C35*7% -> 5.25 | D37: =+D35*7% -> 5.25 | E37: 5.25
A38: TOTAL ANUAL | C38: =SUM(C34:C37) -> 29468.49 | D38: =SUM(D34:D37) -> 19041.4125 | E38: 15751.6575
A39: Ahorros en tarifas de prima para Dependientes | C39: =IF($B$17=1,IF($B$15=0,0,IF($B$19=0,0,IF($B$19=1,(VLOOKUP(1,Tablas!$A$979:$G$981,3,TRUE)),(VLOOKUP(2,Tablas!$A$979:$G$981,3,TRUE))))), IF($B$15=0,0,IF($B$19=0,0,IF($B$19=1,(VLOOKUP(1,Tablas!$A$979:$G$981,3,TRUE)),IF($B$19=2,(VLOOKUP(2,Tablas!$A$979:$G$981,3,TRUE)), (VLOOKUP(3,Tablas!$A$979:$G$981,3,TRUE))))))) -> 0 | D39: =IF($B$17=1,IF($B$15=0,0,IF($B$19=0,0,IF($B$19=1,(VLOOKUP(1,Tablas!$A$979:$G$981,4,TRUE)),(VLOOKUP(2,Tablas!$A$979:$G$981,4,TRUE))))), IF($B$15=0,0,IF($B$19=0,0,IF($B$19=1,(VLOOKUP(1,Tablas!$A$979:$G$981,4,TRUE)),IF($B$19=2,(VLOOKUP(2,Tablas!$A$979:$G$981,4,TRUE)), (VLOOKUP(3,Tablas!$A$979:$G$981,4,TRUE))))))) -> 0 | E39: =IF($B$17=1,IF($B$15=0,0,IF($B$19=0,0,IF($B$19=1,(VLOOKUP(1,Tablas!$A$979:$G$981,5,TRUE)),(VLOOKUP(2,Tablas!$A$979:$G$981,5,TRUE))))), IF($B$15=0,0,IF($B$19=0,0,IF($B$19=1,(VLOOKUP(1,Tablas!$A$979:$G$981,5,TRUE)),IF($B$19=2,(VLOOKUP(2,Tablas!$A$979:$G$981,5,TRUE)), (VLOOKUP(3,Tablas!$A$979:$G$981,5,TRUE))))))) -> 0
A41: TARIFAS SEMIANUALES
A42: Prima para Asegurado Titular | C42: =VLOOKUP($B$21,Tablas!$A$1439:$G$1505,3,TRUE) -> 14834.064 | D42: =VLOOKUP($B$21,Tablas!$A$1439:$G$1505,4,TRUE) -> 9570.8725 | E42: =VLOOKUP($B$21,Tablas!$A$1439:$G$1505,5,TRUE) -> 7910.3295
A43: Prima para conyuge | C43: =IF($B$17=1,0,(VLOOKUP($E$21,Tablas!$A$1439:$G$1505,3,TRUE))) -> 0 | D43: =IF($B$17=1,0,(VLOOKUP($E$21,Tablas!$A$1439:$G$1505,4,TRUE))) -> 0 | E43: =IF($B$17=1,0,(VLOOKUP($E$21,Tablas!$A$1439:$G$1505,5,TRUE))) -> 0
A44: Prima para hijo (s) | C44: =IF($B$17=1, (IF($B$15=0, 0, (IF($B$19>$B$15, (VLOOKUP($B$15,Tablas!$A$1506:$G$1508,3,TRUE)), (IF($B$15>4,(IF($B$19=0, (VLOOKUP(3,Tablas!$A$1506:$G$1508,3,TRUE)), (IF($B$19=1, (VLOOKUP(3,Tablas!$A$1506:$G$1508,3,TRUE)), (IF($B$19=2, (VLOOKUP(3,Tablas!$A$1506:$G$1508,3,TRUE)), (VLOOKUP(3,Tablas!$A$1506:$G$1508,3,TRUE)))))))), (IF($B$15=4,(IF(4-$B$19=0,(VLOOKUP(2,Tablas!$A$1506:$G$1508,3,TRUE)), (IF(4-$B$19=1,(VLOOKUP(2,Tablas!$A$1506:$G$1508,3,TRUE)), (IF(4-$B$19=2, (VLOOKUP(2,Tablas!$A$1506:$G$1508,3,TRUE)), (VLOOKUP(3,Tablas!$A$1506:$G$1508,3,TRUE)))))))), (IF($B$15=3,(IF(3-$B$19=0,(VLOOKUP(1,Tablas!$A$1506:$G$1508,3,TRUE)), (IF(3-$B$19=1,(VLOOKUP(1,Tablas!$A$1506:$G$1508,3,TRUE)), (IF(3-$B$19=2, (VLOOKUP(2,Tablas!$A$1506:$G$1508,3,TRUE)), (VLOOKUP(3,Tablas!$A$1506:$G$1508,3,TRUE)))))))), (IF($B$15=2,(IF(2-$B$19=0, 0, (IF(2-$B$19=1,(VLOOKUP(1,Tablas!$A$1506:$G$1508,3,TRUE)), (IF(2-$B$19=2, (VLOOKUP(2,Tablas!$A$1506:$G$1508,3,TRUE)), 0)))))), (IF($B$15=1,(IF(1-$B$19=0, 0, (IF(1-$B$19=1,(VLOOKUP(1,Tablas!$A$1506:$G$1508,3,TRUE)),0)))),0)))))))))))))), (IF($B$15=0, 0, (IF($B$19>$B$15, (VLOOKUP($B$15,Tablas!$A$1506:$G$1508,3,TRUE)), (IF($B$15=4,(IF(4-$B$19=0, 0, (IF(4-$B$19=1, (VLOOKUP(1,Tablas!$A$1506:$G$1508,3,TRUE)), (IF(4-$B$19=2, (VLOOKUP(2,Tablas!$A$1506:$G$1508,3,TRUE)), (IF(4-$B$19=3, (VLOOKUP(3,Tablas!$A$1506:$G$1508,3,TRUE)), (IF(4-$B$19=4, (VLOOKUP(3,Tablas!$A$1506:$G$1508,3,TRUE)), 0)))))))))), (IF($B$15=5,(IF(5-$B$19=0, (VLOOKUP(1,Tablas!$A$1506:$G$1508,3,TRUE)), (IF(5-$B$19=1, (VLOOKUP(1,Tablas!$A$1506:$G$1508,3,TRUE)), (IF(5-$B$19=2, (VLOOKUP(2,Tablas!$A$1506:$G$1508,3,TRUE)), (IF(5-$B$19=3, (VLOOKUP(3,Tablas!$A$1506:$G$1508,3,TRUE)), (IF(5-$B$19=4, (VLOOKUP(3,Tablas!$A$1506:$G$1508,3,TRUE)), (VLOOKUP(3,Tablas!$A$1506:$G$1508,3,TRUE)))))))))))), (IF($B$15=6,(IF(6-$B$19=0, (VLOOKUP(2,Tablas!$A$1506:$G$1508,3,TRUE)), (IF(6-$B$19=1, (VLOOKUP(2,Tablas!$A$1506:$G$1508,3,TRUE)), (IF(6-$B$19=2, (VLOOKUP(2,Tablas!$A$1506:$G$1508,3,TRUE)), (IF(6-$B$19=3, (VLOOKUP(3,Tablas!$A$1506:$G$1508,3,TRUE)), (IF(6-$B$19=4, (VLOOKUP(3,Tablas!$A$1506:$G$1508,3,TRUE)), (VLOOKUP(3,Tablas!$A$1506:$G$1508,3,TRUE)))))))))))), (IF($B$15>6,(IF(7-$B$19=0, (VLOOKUP(3,Tablas!$A$1506:$G$1508,3,TRUE)), (IF(7-$B$19=1, (VLOOKUP(3,Tablas!$A$1506:$G$1508,3,TRUE)), (IF(7-$B$19=2, (VLOOKUP(3,Tablas!$A$1506:$G$1508,3,TRUE)), (IF(7-$B$19=3, (VLOOKUP(3,Tablas!$A$1506:$G$1508,3,TRUE)), (IF(7-$B$19=4, (VLOOKUP(3,Tablas!$A$1506:$G$1508,3,TRUE)), (VLOOKUP(3,Tablas!$A$1506:$G$1508,3,TRUE)))))))))))), (IF($B$15=3,(IF(3-$B$19=0,0, (IF(3-$B$19=1,(VLOOKUP(1,Tablas!$A$1506:$G$1508,3,TRUE)), (IF(3-$B$19=2, (VLOOKUP(2,Tablas!$A$1506:$G$1508,3,TRUE)), (VLOOKUP(3,Tablas!$A$1506:$G$1508,3,TRUE)))))))), (IF($B$15=2,(IF(2-$B$19=0, 0, (IF(2-$B$19=1,(VLOOKUP(1,Tablas!$A$1506:$G$1508,3,TRUE)), (IF(2-$B$19=2, (VLOOKUP(2,Tablas!$A$1506:$G$1508,3,TRUE)), 0)))))), (IF($B$15=1,(IF(1-$B$19=0, 0, (IF(1-$B$19=1,(VLOOKUP(1,Tablas!$A$1506:$G$1508,3,TRUE)),0)))),0))))))))))))))))))) -> 0 | D44: =IF($B$17=1, (IF($B$15=0, 0, (IF($B$19>$B$15, (VLOOKUP($B$15,Tablas!$A$1506:$G$1508,4,TRUE)), (IF($B$15>4,(IF($B$19=0, (VLOOKUP(3,Tablas!$A$1506:$G$1508,4,TRUE)), (IF($B$19=1, (VLOOKUP(3,Tablas!$A$1506:$G$1508,4,TRUE)), (IF($B$19=2, (VLOOKUP(3,Tablas!$A$1506:$G$1508,4,TRUE)), (VLOOKUP(3,Tablas!$A$1506:$G$1508,4,TRUE)))))))), (IF($B$15=4,(IF(4-$B$19=0,(VLOOKUP(2,Tablas!$A$1506:$G$1508,4,TRUE)), (IF(4-$B$19=1,(VLOOKUP(2,Tablas!$A$1506:$G$1508,4,TRUE)), (IF(4-$B$19=2, (VLOOKUP(2,Tablas!$A$1506:$G$1508,4,TRUE)), (VLOOKUP(3,Tablas!$A$1506:$G$1508,4,TRUE)))))))), (IF($B$15=3,(IF(3-$B$19=0,(VLOOKUP(1,Tablas!$A$1506:$G$1508,4,TRUE)), (IF(3-$B$19=1,(VLOOKUP(1,Tablas!$A$1506:$G$1508,4,TRUE)), (IF(3-$B$19=2, (VLOOKUP(2,Tablas!$A$1506:$G$1508,4,TRUE)), (VLOOKUP(3,Tablas!$A$1506:$G$1508,4,TRUE)))))))), (IF($B$15=2,(IF(2-$B$19=0, 0, (IF(2-$B$19=1,(VLOOKUP(1,Tablas!$A$1506:$G$1508,4,TRUE)), (IF(2-$B$19=2, (VLOOKUP(2,Tablas!$A$1506:$G$1508,4,TRUE)), 0)))))), (IF($B$15=1,(IF(1-$B$19=0, 0, (IF(1-$B$19=1,(VLOOKUP(1,Tablas!$A$1506:$G$1508,4,TRUE)),0)))),0)))))))))))))), (IF($B$15=0, 0, (IF($B$19>$B$15, (VLOOKUP($B$15,Tablas!$A$1506:$G$1508,4,TRUE)), (IF($B$15=4,(IF(4-$B$19=0, 0, (IF(4-$B$19=1, (VLOOKUP(1,Tablas!$A$1506:$G$1508,4,TRUE)), (IF(4-$B$19=2, (VLOOKUP(2,Tablas!$A$1506:$G$1508,4,TRUE)), (IF(4-$B$19=3, (VLOOKUP(3,Tablas!$A$1506:$G$1508,4,TRUE)), (IF(4-$B$19=4, (VLOOKUP(3,Tablas!$A$1506:$G$1508,4,TRUE)), 0)))))))))), (IF($B$15=5,(IF(5-$B$19=0, (VLOOKUP(1,Tablas!$A$1506:$G$1508,4,TRUE)), (IF(5-$B$19=1, (VLOOKUP(1,Tablas!$A$1506:$G$1508,4,TRUE)), (IF(5-$B$19=2, (VLOOKUP(2,Tablas!$A$1506:$G$1508,4,TRUE)), (IF(5-$B$19=3, (VLOOKUP(3,Tablas!$A$1506:$G$1508,4,TRUE)), (IF(5-$B$19=4, (VLOOKUP(3,Tablas!$A$1506:$G$1508,4,TRUE)), (VLOOKUP(3,Tablas!$A$1506:$G$1508,4,TRUE)))))))))))), (IF($B$15=6,(IF(6-$B$19=0, (VLOOKUP(2,Tablas!$A$1506:$G$1508,4,TRUE)), (IF(6-$B$19=1, (VLOOKUP(2,Tablas!$A$1506:$G$1508,4,TRUE)), (IF(6-$B$19=2, (VLOOKUP(2,Tablas!$A$1506:$G$1508,4,TRUE)), (IF(6-$B$19=3, (VLOOKUP(3,Tablas!$A$1506:$G$1508,4,TRUE)), (IF(6-$B$19=4, (VLOOKUP(3,Tablas!$A$1506:$G$1508,4,TRUE)), (VLOOKUP(3,Tablas!$A$1506:$G$1508,4,TRUE)))))))))))), (IF($B$15>6,(IF(7-$B$19=0, (VLOOKUP(3,Tablas!$A$1506:$G$1508,4,TRUE)), (IF(7-$B$19=1, (VLOOKUP(3,Tablas!$A$1506:$G$1508,4,TRUE)), (IF(7-$B$19=2, (VLOOKUP(3,Tablas!$A$1506:$G$1508,4,TRUE)), (IF(7-$B$19=3, (VLOOKUP(3,Tablas!$A$1506:$G$1508,4,TRUE)), (IF(7-$B$19=4, (VLOOKUP(3,Tablas!$A$1506:$G$1508,4,TRUE)), (VLOOKUP(3,Tablas!$A$1506:$G$1508,4,TRUE)))))))))))), (IF($B$15=3,(IF(3-$B$19=0,0, (IF(3-$B$19=1,(VLOOKUP(1,Tablas!$A$1506:$G$1508,4,TRUE)), (IF(3-$B$19=2, (VLOOKUP(2,Tablas!$A$1506:$G$1508,4,TRUE)), (VLOOKUP(3,Tablas!$A$1506:$G$1508,4,TRUE)))))))), (IF($B$15=2,(IF(2-$B$19=0, 0, (IF(2-$B$19=1,(VLOOKUP(1,Tablas!$A$1506:$G$1508,4,TRUE)), (IF(2-$B$19=2, (VLOOKUP(2,Tablas!$A$1506:$G$1508,4,TRUE)), 0)))))), (IF($B$15=1,(IF(1-$B$19=0, 0, (IF(1-$B$19=1,(VLOOKUP(1,Tablas!$A$1506:$G$1508,4,TRUE)),0)))),0))))))))))))))))))) -> 0 | E44: =IF($B$17=1, (IF($B$15=0, 0, (IF($B$19>$B$15, (VLOOKUP($B$15,Tablas!$A$1506:$G$1508,5,TRUE)), (IF($B$15>4,(IF($B$19=0, (VLOOKUP(3,Tablas!$A$1506:$G$1508,5,TRUE)), (IF($B$19=1, (VLOOKUP(3,Tablas!$A$1506:$G$1508,5,TRUE)), (IF($B$19=2, (VLOOKUP(3,Tablas!$A$1506:$G$1508,5,TRUE)), (VLOOKUP(3,Tablas!$A$1506:$G$1508,5,TRUE)))))))), (IF($B$15=4,(IF(4-$B$19=0,(VLOOKUP(2,Tablas!$A$1506:$G$1508,5,TRUE)), (IF(4-$B$19=1,(VLOOKUP(2,Tablas!$A$1506:$G$1508,5,TRUE)), (IF(4-$B$19=2, (VLOOKUP(2,Tablas!$A$1506:$G$1508,5,TRUE)), (VLOOKUP(3,Tablas!$A$1506:$G$1508,5,TRUE)))))))), (IF($B$15=3,(IF(3-$B$19=0,(VLOOKUP(1,Tablas!$A$1506:$G$1508,5,TRUE)), (IF(3-$B$19=1,(VLOOKUP(1,Tablas!$A$1506:$G$1508,5,TRUE)), (IF(3-$B$19=2, (VLOOKUP(2,Tablas!$A$1506:$G$1508,5,TRUE)), (VLOOKUP(3,Tablas!$A$1506:$G$1508,5,TRUE)))))))), (IF($B$15=2,(IF(2-$B$19=0, 0, (IF(2-$B$19=1,(VLOOKUP(1,Tablas!$A$1506:$G$1508,5,TRUE)), (IF(2-$B$19=2, (VLOOKUP(2,Tablas!$A$1506:$G$1508,5,TRUE)), 0)))))), (IF($B$15=1,(IF(1-$B$19=0, 0, (IF(1-$B$19=1,(VLOOKUP(1,Tablas!$A$1506:$G$1508,5,TRUE)),0)))),0)))))))))))))), (IF($B$15=0, 0, (IF($B$19>$B$15, (VLOOKUP($B$15,Tablas!$A$1506:$G$1508,5,TRUE)), (IF($B$15=4,(IF(4-$B$19=0, 0, (IF(4-$B$19=1, (VLOOKUP(1,Tablas!$A$1506:$G$1508,5,TRUE)), (IF(4-$B$19=2, (VLOOKUP(2,Tablas!$A$1506:$G$1508,5,TRUE)), (IF(4-$B$19=3, (VLOOKUP(3,Tablas!$A$1506:$G$1508,5,TRUE)), (IF(4-$B$19=4, (VLOOKUP(3,Tablas!$A$1506:$G$1508,5,TRUE)), 0)))))))))), (IF($B$15=5,(IF(5-$B$19=0, (VLOOKUP(1,Tablas!$A$1506:$G$1508,5,TRUE)), (IF(5-$B$19=1, (VLOOKUP(1,Tablas!$A$1506:$G$1508,5,TRUE)), (IF(5-$B$19=2, (VLOOKUP(2,Tablas!$A$1506:$G$1508,5,TRUE)), (IF(5-$B$19=3, (VLOOKUP(3,Tablas!$A$1506:$G$1508,5,TRUE)), (IF(5-$B$19=4, (VLOOKUP(3,Tablas!$A$1506:$G$1508,5,TRUE)), (VLOOKUP(3,Tablas!$A$1506:$G$1508,5,TRUE)))))))))))), (IF($B$15=6,(IF(6-$B$19=0, (VLOOKUP(2,Tablas!$A$1506:$G$1508,5,TRUE)), (IF(6-$B$19=1, (VLOOKUP(2,Tablas!$A$1506:$G$1508,5,TRUE)), (IF(6-$B$19=2, (VLOOKUP(2,Tablas!$A$1506:$G$1508,5,TRUE)), (IF(6-$B$19=3, (VLOOKUP(3,Tablas!$A$1506:$G$1508,5,TRUE)), (IF(6-$B$19=4, (VLOOKUP(3,Tablas!$A$1506:$G$1508,5,TRUE)), (VLOOKUP(3,Tablas!$A$1506:$G$1508,5,TRUE)))))))))))), (IF($B$15>6,(IF(7-$B$19=0, (VLOOKUP(3,Tablas!$A$1506:$G$1508,5,TRUE)), (IF(7-$B$19=1, (VLOOKUP(3,Tablas!$A$1506:$G$1508,5,TRUE)), (IF(7-$B$19=2, (VLOOKUP(3,Tablas!$A$1506:$G$1508,5,TRUE)), (IF(7-$B$19=3, (VLOOKUP(3,Tablas!$A$1506:$G$1508,5,TRUE)), (IF(7-$B$19=4, (VLOOKUP(3,Tablas!$A$1506:$G$1508,5,TRUE)), (VLOOKUP(3,Tablas!$A$1506:$G$1508,5,TRUE)))))))))))), (IF($B$15=3,(IF(3-$B$19=0,0, (IF(3-$B$19=1,(VLOOKUP(1,Tablas!$A$1506:$G$1508,5,TRUE)), (IF(3-$B$19=2, (VLOOKUP(2,Tablas!$A$1506:$G$1508,5,TRUE)), (VLOOKUP(3,Tablas!$A$1506:$G$1508,5,TRUE)))))))), (IF($B$15=2,(IF(2-$B$19=0, 0, (IF(2-$B$19=1,(VLOOKUP(1,Tablas!$A$1506:$G$1508,5,TRUE)), (IF(2-$B$19=2, (VLOOKUP(2,Tablas!$A$1506:$G$1508,5,TRUE)), 0)))))), (IF($B$15=1,(IF(1-$B$19=0, 0, (IF(1-$B$19=1,(VLOOKUP(1,Tablas!$A$1506:$G$1508,5,TRUE)),0)))),0))))))))))))))))))) -> 0
A45: Total de Prima neta | C45: =SUM(C42:C44) -> 14834.064 | D45: =SUM(D42:D44) -> 9570.8725 | E45: 7910.3295
A46: Tarifa administrativa anual | C46: 75 | D46: 75 | E46: 75
A47: VAT (5%) | C47: =(C31+C32+C33)*5%/2 -> 699.72 | D47: =(D31+D32+D33)*5%/2 -> 451.45625 | E47: 373.12875
A48: ITBMS (7%) | C48: =+C46*7%+ ((C31+C32+C33)*0.06*0.07)/2 -> 64.02648 | D48: =+D46*7%+ ((D31+D32+D33)*0.06*0.07)/2 -> 43.172325 | E48: 36.592815
A49: TOTAL de primera cuota | C49: =SUM(C45:C48) -> 15672.81048 | D49: =SUM(D45:D48) -> 10140.50108 | E49: 8395.051065
A50: Costo de segunda cuota | C50: =(C45 + C47)+((C31+C32+C33)*0.06*0.07)/2 -> 15592.56048 | D50: =(D45 + D47)+((D31+D32+D33)*0.06*0.07)/2 -> 10060.25108 | E50: 8314.801065
A51: TOTAL ANUAL | C51: =C49+C50 -> 31265.37096 | D51: =D49+D50 -> 20200.75215 | E51: 16709.85213
A52: Ahorros en tarifas de prima para Dependientes | C52: =IF($B$17=1,IF($B$15=0,0,IF($B$19=0,0,IF($B$19=1,(VLOOKUP(1,Tablas!$A$1506:$G$1508,3,TRUE)),(VLOOKUP(2,Tablas!$A$1506:$G$1508,3,TRUE))))), IF($B$15=0,0,IF($B$19=0,0,IF($B$19=1,(VLOOKUP(1,Tablas!$A$1506:$G$1508,3,TRUE)),IF($B$19=2,(VLOOKUP(2,Tablas!$A$1506:$G$1508,3,TRUE)), (VLOOKUP(3,Tablas!$A$1506:$G$1508,3,TRUE))))))) -> 0 | D52: =IF($B$17=1,IF($B$15=0,0,IF($B$19=0,0,IF($B$19=1,(VLOOKUP(1,Tablas!$A$1506:$G$1508,4,TRUE)),(VLOOKUP(2,Tablas!$A$1506:$G$1508,4,TRUE))))), IF($B$15=0,0,IF($B$19=0,0,IF($B$19=1,(VLOOKUP(1,Tablas!$A$1506:$G$1508,4,TRUE)),IF($B$19=2,(VLOOKUP(2,Tablas!$A$1506:$G$1508,4,TRUE)), (VLOOKUP(3,Tablas!$A$1506:$G$1508,4,TRUE))))))) -> 0 | E52: =IF($B$17=1,IF($B$15=0,0,IF($B$19=0,0,IF($B$19=1,(VLOOKUP(1,Tablas!$A$1506:$G$1508,5,TRUE)),(VLOOKUP(2,Tablas!$A$1506:$G$1508,5,TRUE))))), IF($B$15=0,0,IF($B$19=0,0,IF($B$19=1,(VLOOKUP(1,Tablas!$A$1506:$G$1508,5,TRUE)),IF($B$19=2,(VLOOKUP(2,Tablas!$A$1506:$G$1508,5,TRUE)), (VLOOKUP(3,Tablas!$A$1506:$G$1508,5,TRUE))))))) -> 0
A54: TARIFAS TRIMESTRALES
A55: Prima para Asegurado Titular | C55: =VLOOKUP($B$21,Tablas!$A$1061:$G$1127,3,TRUE) -> 7696.92 | D55: =VLOOKUP($B$21,Tablas!$A$1061:$G$1127,4,TRUE) -> 4966.01875 | E55: =VLOOKUP($B$21,Tablas!$A$1061:$G$1127,5,TRUE) -> 4104.41625
A56: Prima para conyuge | C56: =IF($B$17=1,0,(VLOOKUP($E$21,Tablas!$A$1061:$G$1127,3,TRUE))) -> 0 | D56: =IF($B$17=1,0,(VLOOKUP($E$21,Tablas!$A$1061:$G$1127,4,TRUE))) -> 0 | E56: =IF($B$17=1,0,(VLOOKUP($E$21,Tablas!$A$1061:$G$1127,5,TRUE))) -> 0
A57: Prima para hijo (s) | C57: =IF($B$17=1, (IF($B$15=0, 0, (IF($B$19>$B$15, (VLOOKUP($B$15,Tablas!$A$1128:$G$1130,3,TRUE)), (IF($B$15>4,(IF($B$19=0, (VLOOKUP(3,Tablas!$A$1128:$G$1130,3,TRUE)), (IF($B$19=1, (VLOOKUP(3,Tablas!$A$1128:$G$1130,3,TRUE)), (IF($B$19=2, (VLOOKUP(3,Tablas!$A$1128:$G$1130,3,TRUE)), (VLOOKUP(3,Tablas!$A$1128:$G$1130,3,TRUE)))))))), (IF($B$15=4,(IF(4-$B$19=0,(VLOOKUP(2,Tablas!$A$1128:$G$1130,3,TRUE)), (IF(4-$B$19=1,(VLOOKUP(2,Tablas!$A$1128:$G$1130,3,TRUE)), (IF(4-$B$19=2, (VLOOKUP(2,Tablas!$A$1128:$G$1130,3,TRUE)), (VLOOKUP(3,Tablas!$A$1128:$G$1130,3,TRUE)))))))), (IF($B$15=3,(IF(3-$B$19=0,(VLOOKUP(1,Tablas!$A$1128:$G$1130,3,TRUE)), (IF(3-$B$19=1,(VLOOKUP(1,Tablas!$A$1128:$G$1130,3,TRUE)), (IF(3-$B$19=2, (VLOOKUP(2,Tablas!$A$1128:$G$1130,3,TRUE)), (VLOOKUP(3,Tablas!$A$1128:$G$1130,3,TRUE)))))))), (IF($B$15=2,(IF(2-$B$19=0, 0, (IF(2-$B$19=1,(VLOOKUP(1,Tablas!$A$1128:$G$1130,3,TRUE)), (IF(2-$B$19=2, (VLOOKUP(2,Tablas!$A$1128:$G$1130,3,TRUE)), 0)))))), (IF($B$15=1,(IF(1-$B$19=0, 0, (IF(1-$B$19=1,(VLOOKUP(1,Tablas!$A$1128:$G$1130,3,TRUE)),0)))),0)))))))))))))), (IF($B$15=0, 0, (IF($B$19>$B$15, (VLOOKUP($B$15,Tablas!$A$1128:$G$1130,3,TRUE)), (IF($B$15=4,(IF(4-$B$19=0, 0, (IF(4-$B$19=1, (VLOOKUP(1,Tablas!$A$1128:$G$1130,3,TRUE)), (IF(4-$B$19=2, (VLOOKUP(2,Tablas!$A$1128:$G$1130,3,TRUE)), (IF(4-$B$19=3, (VLOOKUP(3,Tablas!$A$1128:$G$1130,3,TRUE)), (IF(4-$B$19=4, (VLOOKUP(3,Tablas!$A$1128:$G$1130,3,TRUE)), 0)))))))))), (IF($B$15=5,(IF(5-$B$19=0, (VLOOKUP(1,Tablas!$A$1128:$G$1130,3,TRUE)), (IF(5-$B$19=1, (VLOOKUP(1,Tablas!$A$1128:$G$1130,3,TRUE)), (IF(5-$B$19=2, (VLOOKUP(2,Tablas!$A$1128:$G$1130,3,TRUE)), (IF(5-$B$19=3, (VLOOKUP(3,Tablas!$A$1128:$G$1130,3,TRUE)), (IF(5-$B$19=4, (VLOOKUP(3,Tablas!$A$1128:$G$1130,3,TRUE)), (VLOOKUP(3,Tablas!$A$1128:$G$1130,3,TRUE)))))))))))), (IF($B$15=6,(IF(6-$B$19=0, (VLOOKUP(2,Tablas!$A$1128:$G$1130,3,TRUE)), (IF(6-$B$19=1, (VLOOKUP(2,Tablas!$A$1128:$G$1130,3,TRUE)), (IF(6-$B$19=2, (VLOOKUP(2,Tablas!$A$1128:$G$1130,3,TRUE)), (IF(6-$B$19=3, (VLOOKUP(3,Tablas!$A$1128:$G$1130,3,TRUE)), (IF(6-$B$19=4, (VLOOKUP(3,Tablas!$A$1128:$G$1130,3,TRUE)), (VLOOKUP(3,Tablas!$A$1128:$G$1130,3,TRUE)))))))))))), (IF($B$15>6,(IF(7-$B$19=0, (VLOOKUP(3,Tablas!$A$1128:$G$1130,3,TRUE)), (IF(7-$B$19=1, (VLOOKUP(3,Tablas!$A$1128:$G$1130,3,TRUE)), (IF(7-$B$19=2, (VLOOKUP(3,Tablas!$A$1128:$G$1130,3,TRUE)), (IF(7-$B$19=3, (VLOOKUP(3,Tablas!$A$1128:$G$1130,3,TRUE)), (IF(7-$B$19=4, (VLOOKUP(3,Tablas!$A$1128:$G$1130,3,TRUE)), (VLOOKUP(3,Tablas!$A$1128:$G$1130,3,TRUE)))))))))))), (IF($B$15=3,(IF(3-$B$19=0,0, (IF(3-$B$19=1,(VLOOKUP(1,Tablas!$A$1128:$G$1130,3,TRUE)), (IF(3-$B$19=2, (VLOOKUP(2,Tablas!$A$1128:$G$1130,3,TRUE)), (VLOOKUP(3,Tablas!$A$1128:$G$1130,3,TRUE)))))))), (IF($B$15=2,(IF(2-$B$19=0, 0, (IF(2-$B$19=1,(VLOOKUP(1,Tablas!$A$1128:$G$1130,3,TRUE)), (IF(2-$B$19=2, (VLOOKUP(2,Tablas!$A$1128:$G$1130,3,TRUE)), 0)))))), (IF($B$15=1,(IF(1-$B$19=0, 0, (IF(1-$B$19=1,(VLOOKUP(1,Tablas!$A$1128:$G$1130,3,TRUE)),0)))),0))))))))))))))))))) -> 0 | D57: =IF($B$17=1, (IF($B$15=0, 0, (IF($B$19>$B$15, (VLOOKUP($B$15,Tablas!$A$1128:$G$1130,4,TRUE)), (IF($B$15>4,(IF($B$19=0, (VLOOKUP(3,Tablas!$A$1128:$G$1130,4,TRUE)), (IF($B$19=1, (VLOOKUP(3,Tablas!$A$1128:$G$1130,4,TRUE)), (IF($B$19=2, (VLOOKUP(3,Tablas!$A$1128:$G$1130,4,TRUE)), (VLOOKUP(3,Tablas!$A$1128:$G$1130,4,TRUE)))))))), (IF($B$15=4,(IF(4-$B$19=0,(VLOOKUP(2,Tablas!$A$1128:$G$1130,4,TRUE)), (IF(4-$B$19=1,(VLOOKUP(2,Tablas!$A$1128:$G$1130,4,TRUE)), (IF(4-$B$19=2, (VLOOKUP(2,Tablas!$A$1128:$G$1130,4,TRUE)), (VLOOKUP(3,Tablas!$A$1128:$G$1130,4,TRUE)))))))), (IF($B$15=3,(IF(3-$B$19=0,(VLOOKUP(1,Tablas!$A$1128:$G$1130,4,TRUE)), (IF(3-$B$19=1,(VLOOKUP(1,Tablas!$A$1128:$G$1130,4,TRUE)), (IF(3-$B$19=2, (VLOOKUP(2,Tablas!$A$1128:$G$1130,4,TRUE)), (VLOOKUP(3,Tablas!$A$1128:$G$1130,4,TRUE)))))))), (IF($B$15=2,(IF(2-$B$19=0, 0, (IF(2-$B$19=1,(VLOOKUP(1,Tablas!$A$1128:$G$1130,4,TRUE)), (IF(2-$B$19=2, (VLOOKUP(2,Tablas!$A$1128:$G$1130,4,TRUE)), 0)))))), (IF($B$15=1,(IF(1-$B$19=0, 0, (IF(1-$B$19=1,(VLOOKUP(1,Tablas!$A$1128:$G$1130,4,TRUE)),0)))),0)))))))))))))), (IF($B$15=0, 0, (IF($B$19>$B$15, (VLOOKUP($B$15,Tablas!$A$1128:$G$1130,4,TRUE)), (IF($B$15=4,(IF(4-$B$19=0, 0, (IF(4-$B$19=1, (VLOOKUP(1,Tablas!$A$1128:$G$1130,4,TRUE)), (IF(4-$B$19=2, (VLOOKUP(2,Tablas!$A$1128:$G$1130,4,TRUE)), (IF(4-$B$19=3, (VLOOKUP(3,Tablas!$A$1128:$G$1130,4,TRUE)), (IF(4-$B$19=4, (VLOOKUP(3,Tablas!$A$1128:$G$1130,4,TRUE)), 0)))))))))), (IF($B$15=5,(IF(5-$B$19=0, (VLOOKUP(1,Tablas!$A$1128:$G$1130,4,TRUE)), (IF(5-$B$19=1, (VLOOKUP(1,Tablas!$A$1128:$G$1130,4,TRUE)), (IF(5-$B$19=2, (VLOOKUP(2,Tablas!$A$1128:$G$1130,4,TRUE)), (IF(5-$B$19=3, (VLOOKUP(3,Tablas!$A$1128:$G$1130,4,TRUE)), (IF(5-$B$19=4, (VLOOKUP(3,Tablas!$A$1128:$G$1130,4,TRUE)), (VLOOKUP(3,Tablas!$A$1128:$G$1130,4,TRUE)))))))))))), (IF($B$15=6,(IF(6-$B$19=0, (VLOOKUP(2,Tablas!$A$1128:$G$1130,4,TRUE)), (IF(6-$B$19=1, (VLOOKUP(2,Tablas!$A$1128:$G$1130,4,TRUE)), (IF(6-$B$19=2, (VLOOKUP(2,Tablas!$A$1128:$G$1130,4,TRUE)), (IF(6-$B$19=3, (VLOOKUP(3,Tablas!$A$1128:$G$1130,4,TRUE)), (IF(6-$B$19=4, (VLOOKUP(3,Tablas!$A$1128:$G$1130,4,TRUE)), (VLOOKUP(3,Tablas!$A$1128:$G$1130,4,TRUE)))))))))))), (IF($B$15>6,(IF(7-$B$19=0, (VLOOKUP(3,Tablas!$A$1128:$G$1130,4,TRUE)), (IF(7-$B$19=1, (VLOOKUP(3,Tablas!$A$1128:$G$1130,4,TRUE)), (IF(7-$B$19=2, (VLOOKUP(3,Tablas!$A$1128:$G$1130,4,TRUE)), (IF(7-$B$19=3, (VLOOKUP(3,Tablas!$A$1128:$G$1130,4,TRUE)), (IF(7-$B$19=4, (VLOOKUP(3,Tablas!$A$1128:$G$1130,4,TRUE)), (VLOOKUP(3,Tablas!$A$1128:$G$1130,4,TRUE)))))))))))), (IF($B$15=3,(IF(3-$B$19=0,0, (IF(3-$B$19=1,(VLOOKUP(1,Tablas!$A$1128:$G$1130,4,TRUE)), (IF(3-$B$19=2, (VLOOKUP(2,Tablas!$A$1128:$G$1130,4,TRUE)), (VLOOKUP(3,Tablas!$A$1128:$G$1130,4,TRUE)))))))), (IF($B$15=2,(IF(2-$B$19=0, 0, (IF(2-$B$19=1,(VLOOKUP(1,Tablas!$A$1128:$G$1130,4,TRUE)), (IF(2-$B$19=2, (VLOOKUP(2,Tablas!$A$1128:$G$1130,4,TRUE)), 0)))))), (IF($B$15=1,(IF(1-$B$19=0, 0, (IF(1-$B$19=1,(VLOOKUP(1,Tablas!$A$1128:$G$1130,4,TRUE)),0)))),0))))))))))))))))))) -> 0 | E57: =IF($B$17=1, (IF($B$15=0, 0, (IF($B$19>$B$15, (VLOOKUP($B$15,Tablas!$A$1128:$G$1130,5,TRUE)), (IF($B$15>4,(IF($B$19=0, (VLOOKUP(3,Tablas!$A$1128:$G$1130,5,TRUE)), (IF($B$19=1, (VLOOKUP(3,Tablas!$A$1128:$G$1130,5,TRUE)), (IF($B$19=2, (VLOOKUP(3,Tablas!$A$1128:$G$1130,5,TRUE)), (VLOOKUP(3,Tablas!$A$1128:$G$1130,5,TRUE)))))))), (IF($B$15=4,(IF(4-$B$19=0,(VLOOKUP(2,Tablas!$A$1128:$G$1130,5,TRUE)), (IF(4-$B$19=1,(VLOOKUP(2,Tablas!$A$1128:$G$1130,5,TRUE)), (IF(4-$B$19=2, (VLOOKUP(2,Tablas!$A$1128:$G$1130,5,TRUE)), (VLOOKUP(3,Tablas!$A$1128:$G$1130,5,TRUE)))))))), (IF($B$15=3,(IF(3-$B$19=0,(VLOOKUP(1,Tablas!$A$1128:$G$1130,5,TRUE)), (IF(3-$B$19=1,(VLOOKUP(1,Tablas!$A$1128:$G$1130,5,TRUE)), (IF(3-$B$19=2, (VLOOKUP(2,Tablas!$A$1128:$G$1130,5,TRUE)), (VLOOKUP(3,Tablas!$A$1128:$G$1130,5,TRUE)))))))), (IF($B$15=2,(IF(2-$B$19=0, 0, (IF(2-$B$19=1,(VLOOKUP(1,Tablas!$A$1128:$G$1130,5,TRUE)), (IF(2-$B$19=2, (VLOOKUP(2,Tablas!$A$1128:$G$1130,5,TRUE)), 0)))))), (IF($B$15=1,(IF(1-$B$19=0, 0, (IF(1-$B$19=1,(VLOOKUP(1,Tablas!$A$1128:$G$1130,5,TRUE)),0)))),0)))))))))))))), (IF($B$15=0, 0, (IF($B$19>$B$15, (VLOOKUP($B$15,Tablas!$A$1128:$G$1130,5,TRUE)), (IF($B$15=4,(IF(4-$B$19=0, 0, (IF(4-$B$19=1, (VLOOKUP(1,Tablas!$A$1128:$G$1130,5,TRUE)), (IF(4-$B$19=2, (VLOOKUP(2,Tablas!$A$1128:$G$1130,5,TRUE)), (IF(4-$B$19=3, (VLOOKUP(3,Tablas!$A$1128:$G$1130,5,TRUE)), (IF(4-$B$19=4, (VLOOKUP(3,Tablas!$A$1128:$G$1130,5,TRUE)), 0)))))))))), (IF($B$15=5,(IF(5-$B$19=0, (VLOOKUP(1,Tablas!$A$1128:$G$1130,5,TRUE)), (IF(5-$B$19=1, (VLOOKUP(1,Tablas!$A$1128:$G$1130,5,TRUE)), (IF(5-$B$19=2, (VLOOKUP(2,Tablas!$A$1128:$G$1130,5,TRUE)), (IF(5-$B$19=3, (VLOOKUP(3,Tablas!$A$1128:$G$1130,5,TRUE)), (IF(5-$B$19=4, (VLOOKUP(3,Tablas!$A$1128:$G$1130,5,TRUE)), (VLOOKUP(3,Tablas!$A$1128:$G$1130,5,TRUE)))))))))))), (IF($B$15=6,(IF(6-$B$19=0, (VLOOKUP(2,Tablas!$A$1128:$G$1130,5,TRUE)), (IF(6-$B$19=1, (VLOOKUP(2,Tablas!$A$1128:$G$1130,5,TRUE)), (IF(6-$B$19=2, (VLOOKUP(2,Tablas!$A$1128:$G$1130,5,TRUE)), (IF(6-$B$19=3, (VLOOKUP(3,Tablas!$A$1128:$G$1130,5,TRUE)), (IF(6-$B$19=4, (VLOOKUP(3,Tablas!$A$1128:$G$1130,5,TRUE)), (VLOOKUP(3,Tablas!$A$1128:$G$1130,5,TRUE)))))))))))), (IF($B$15>6,(IF(7-$B$19=0, (VLOOKUP(3,Tablas!$A$1128:$G$1130,5,TRUE)), (IF(7-$B$19=1, (VLOOKUP(3,Tablas!$A$1128:$G$1130,5,TRUE)), (IF(7-$B$19=2, (VLOOKUP(3,Tablas!$A$1128:$G$1130,5,TRUE)), (IF(7-$B$19=3, (VLOOKUP(3,Tablas!$A$1128:$G$1130,5,TRUE)), (IF(7-$B$19=4, (VLOOKUP(3,Tablas!$A$1128:$G$1130,5,TRUE)), (VLOOKUP(3,Tablas!$A$1128:$G$1130,5,TRUE)))))))))))), (IF($B$15=3,(IF(3-$B$19=0,0, (IF(3-$B$19=1,(VLOOKUP(1,Tablas!$A$1128:$G$1130,5,TRUE)), (IF(3-$B$19=2, (VLOOKUP(2,Tablas!$A$1128:$G$1130,5,TRUE)), (VLOOKUP(3,Tablas!$A$1128:$G$1130,5,TRUE)))))))), (IF($B$15=2,(IF(2-$B$19=0, 0, (IF(2-$B$19=1,(VLOOKUP(1,Tablas!$A$1128:$G$1130,5,TRUE)), (IF(2-$B$19=2, (VLOOKUP(2,Tablas!$A$1128:$G$1130,5,TRUE)), 0)))))), (IF($B$15=1,(IF(1-$B$19=0, 0, (IF(1-$B$19=1,(VLOOKUP(1,Tablas!$A$1128:$G$1130,5,TRUE)),0)))),0))))))))))))))))))) -> 0
A58: Total de Prima neta | C58: =SUM(C55:C57) -> 7696.92 | D58: =SUM(D55:D57) -> 4966.01875 | E58: 4104.41625
A59: Tarifa administrativa anual | C59: 75 | D59: 75 | E59: 75
A60: VAT (5%) | C60: =(C31+C32+C33)*5%/4 -> 349.86 | D60: =(D31+D32+D33)*5%/4 -> 225.728125 | E60: 186.564375
A61: ITBMS (7%) | C61: ='Bupa Global Major Medical'!C44 -> 11.709915 | D61: =+D59*7% + ((D31+D32+D33)*0.1*0.07)/4 -> 36.8519375 | E61: 31.3690125
A62: TOTAL de primera cuota | C62: =SUM(C58:C61) -> 8133.489915 | D62: =SUM(D58:D61) -> 5303.598812 | E62: 4397.349638
A63: Costo de tarifa trimestral 2 a 4 | C63: =(C58 + C60)+((C31+C32+C33)*0.1*0.07)/4 -> 8095.7604 | D63: =(D58 + D60)+((D31+D32+D33)*0.1*0.07)/4 -> 5223.348812 | E63: 4317.099638
A64: TOTAL ANUAL | C64: =C62+(C63*3) -> 32420.77112 | D64: =D62+(D63*3) -> 20973.64525 | E64: 17348.64855
A65: Ahorros en tarifas de prima para Dependientes | C65: =IF($B$17=1,IF($B$15=0,0,IF($B$19=0,0,IF($B$19=1,(VLOOKUP(1,Tablas!$A$1128:$G$1130,3,TRUE)),(VLOOKUP(2,Tablas!$A$1128:$G$1130,3,TRUE))))), IF($B$15=0,0,IF($B$19=0,0,IF($B$19=1,(VLOOKUP(1,Tablas!$A$1128:$G$1130,3,TRUE)),IF($B$19=2,(VLOOKUP(2,Tablas!$A$1128:$G$1130,3,TRUE)), (VLOOKUP(3,Tablas!$A$1128:$G$1130,3,TRUE))))))) -> 0 | D65: =IF($B$17=1,IF($B$15=0,0,IF($B$19=0,0,IF($B$19=1,(VLOOKUP(1,Tablas!$A$1128:$G$1130,4,TRUE)),(VLOOKUP(2,Tablas!$A$1128:$G$1130,4,TRUE))))), IF($B$15=0,0,IF($B$19=0,0,IF($B$19=1,(VLOOKUP(1,Tablas!$A$1128:$G$1130,4,TRUE)),IF($B$19=2,(VLOOKUP(2,Tablas!$A$1128:$G$1130,4,TRUE)), (VLOOKUP(3,Tablas!$A$1128:$G$1130,4,TRUE))))))) -> 0 | E65: =IF($B$17=1,IF($B$15=0,0,IF($B$19=0,0,IF($B$19=1,(VLOOKUP(1,Tablas!$A$1128:$G$1130,5,TRUE)),(VLOOKUP(2,Tablas!$A$1128:$G$1130,5,TRUE))))), IF($B$15=0,0,IF($B$19=0,0,IF($B$19=1,(VLOOKUP(1,Tablas!$A$1128:$G$1130,5,TRUE)),IF($B$19=2,(VLOOKUP(2,Tablas!$A$1128:$G$1130,5,TRUE)), (VLOOKUP(3,Tablas!$A$1128:$G$1130,5,TRUE))))))) -> 0
A67: TARIFAS MENSUALES
A68: Prima para Asegurado Titular | C68: =VLOOKUP($B$21,Tablas!$A$986:$G$1052,3,TRUE) -> 2612.288 | D68: =VLOOKUP($B$21,Tablas!$A$986:$G$1052,4,TRUE) -> 1685.436667 | E68: =VLOOKUP($B$21,Tablas!$A$986:$G$1052,5,TRUE) -> 1393.014
A69: Prima para conyuge | C69: =IF($B$17=1,0,(VLOOKUP($E$21,Tablas!$A$986:$G$1052,3,TRUE))) -> 0 | D69: =IF($B$17=1,0,(VLOOKUP($E$21,Tablas!$A$986:$G$1052,4,TRUE))) -> 0 | E69: =IF($B$17=1,0,(VLOOKUP($E$21,Tablas!$A$986:$G$1052,5,TRUE))) -> 0
A70: Prima para hijo (s) | C70: =IF($B$17=1, (IF($B$15=0, 0, (IF($B$19>$B$15, (VLOOKUP($B$15,Tablas!$A$1053:$G$1055,3,TRUE)), (IF($B$15>4,(IF($B$19=0, (VLOOKUP(3,Tablas!$A$1053:$G$1055,3,TRUE)), (IF($B$19=1, (VLOOKUP(3,Tablas!$A$1053:$G$1055,3,TRUE)), (IF($B$19=2, (VLOOKUP(3,Tablas!$A$1053:$G$1055,3,TRUE)), (VLOOKUP(3,Tablas!$A$1053:$G$1055,3,TRUE)))))))), (IF($B$15=4,(IF(4-$B$19=0,(VLOOKUP(2,Tablas!$A$1053:$G$1055,3,TRUE)), (IF(4-$B$19=1,(VLOOKUP(2,Tablas!$A$1053:$G$1055,3,TRUE)), (IF(4-$B$19=2, (VLOOKUP(2,Tablas!$A$1053:$G$1055,3,TRUE)), (VLOOKUP(3,Tablas!$A$1053:$G$1055,3,TRUE)))))))), (IF($B$15=3,(IF(3-$B$19=0,(VLOOKUP(1,Tablas!$A$1053:$G$1055,3,TRUE)), (IF(3-$B$19=1,(VLOOKUP(1,Tablas!$A$1053:$G$1055,3,TRUE)), (IF(3-$B$19=2, (VLOOKUP(2,Tablas!$A$1053:$G$1055,3,TRUE)), (VLOOKUP(3,Tablas!$A$1053:$G$1055,3,TRUE)))))))), (IF($B$15=2,(IF(2-$B$19=0, 0, (IF(2-$B$19=1,(VLOOKUP(1,Tablas!$A$1053:$G$1055,3,TRUE)), (IF(2-$B$19=2, (VLOOKUP(2,Tablas!$A$1053:$G$1055,3,TRUE)), 0)))))), (IF($B$15=1,(IF(1-$B$19=0, 0, (IF(1-$B$19=1,(VLOOKUP(1,Tablas!$A$1053:$G$1055,3,TRUE)),0)))),0)))))))))))))), (IF($B$15=0, 0, (IF($B$19>$B$15, (VLOOKUP($B$15,Tablas!$A$1053:$G$1055,3,TRUE)), (IF($B$15=4,(IF(4-$B$19=0, 0, (IF(4-$B$19=1, (VLOOKUP(1,Tablas!$A$1053:$G$1055,3,TRUE)), (IF(4-$B$19=2, (VLOOKUP(2,Tablas!$A$1053:$G$1055,3,TRUE)), (IF(4-$B$19=3, (VLOOKUP(3,Tablas!$A$1053:$G$1055,3,TRUE)), (IF(4-$B$19=4, (VLOOKUP(3,Tablas!$A$1053:$G$1055,3,TRUE)), 0)))))))))), (IF($B$15=5,(IF(5-$B$19=0, (VLOOKUP(1,Tablas!$A$1053:$G$1055,3,TRUE)), (IF(5-$B$19=1, (VLOOKUP(1,Tablas!$A$1053:$G$1055,3,TRUE)), (IF(5-$B$19=2, (VLOOKUP(2,Tablas!$A$1053:$G$1055,3,TRUE)), (IF(5-$B$19=3, (VLOOKUP(3,Tablas!$A$1053:$G$1055,3,TRUE)), (IF(5-$B$19=4, (VLOOKUP(3,Tablas!$A$1053:$G$1055,3,TRUE)), (VLOOKUP(3,Tablas!$A$1053:$G$1055,3,TRUE)))))))))))), (IF($B$15=6,(IF(6-$B$19=0, (VLOOKUP(2,Tablas!$A$1053:$G$1055,3,TRUE)), (IF(6-$B$19=1, (VLOOKUP(2,Tablas!$A$1053:$G$1055,3,TRUE)), (IF(6-$B$19=2, (VLOOKUP(2,Tablas!$A$1053:$G$1055,3,TRUE)), (IF(6-$B$19=3, (VLOOKUP(3,Tablas!$A$1053:$G$1055,3,TRUE)), (IF(6-$B$19=4, (VLOOKUP(3,Tablas!$A$1053:$G$1055,3,TRUE)), (VLOOKUP(3,Tablas!$A$1053:$G$1055,3,TRUE)))))))))))), (IF($B$15>6,(IF(7-$B$19=0, (VLOOKUP(3,Tablas!$A$1053:$G$1055,3,TRUE)), (IF(7-$B$19=1, (VLOOKUP(3,Tablas!$A$1053:$G$1055,3,TRUE)), (IF(7-$B$19=2, (VLOOKUP(3,Tablas!$A$1053:$G$1055,3,TRUE)), (IF(7-$B$19=3, (VLOOKUP(3,Tablas!$A$1053:$G$1055,3,TRUE)), (IF(7-$B$19=4, (VLOOKUP(3,Tablas!$A$1053:$G$1055,3,TRUE)), (VLOOKUP(3,Tablas!$A$1053:$G$1055,3,TRUE)))))))))))), (IF($B$15=3,(IF(3-$B$19=0,0, (IF(3-$B$19=1,(VLOOKUP(1,Tablas!$A$1053:$G$1055,3,TRUE)), (IF(3-$B$19=2, (VLOOKUP(2,Tablas!$A$1053:$G$1055,3,TRUE)), (VLOOKUP(3,Tablas!$A$1053:$G$1055,3,TRUE)))))))), (IF($B$15=2,(IF(2-$B$19=0, 0, (IF(2-$B$19=1,(VLOOKUP(1,Tablas!$A$1053:$G$1055,3,TRUE)), (IF(2-$B$19=2, (VLOOKUP(2,Tablas!$A$1053:$G$1055,3,TRUE)), 0)))))), (IF($B$15=1,(IF(1-$B$19=0, 0, (IF(1-$B$19=1,(VLOOKUP(1,Tablas!$A$1053:$G$1055,3,TRUE)),0)))),0))))))))))))))))))) -> 0 | D70: =IF($B$17=1, (IF($B$15=0, 0, (IF($B$19>$B$15, (VLOOKUP($B$15,Tablas!$A$1053:$G$1055,4,TRUE)), (IF($B$15>4,(IF($B$19=0, (VLOOKUP(3,Tablas!$A$1053:$G$1055,4,TRUE)), (IF($B$19=1, (VLOOKUP(3,Tablas!$A$1053:$G$1055,4,TRUE)), (IF($B$19=2, (VLOOKUP(3,Tablas!$A$1053:$G$1055,4,TRUE)), (VLOOKUP(3,Tablas!$A$1053:$G$1055,4,TRUE)))))))), (IF($B$15=4,(IF(4-$B$19=0,(VLOOKUP(2,Tablas!$A$1053:$G$1055,4,TRUE)), (IF(4-$B$19=1,(VLOOKUP(2,Tablas!$A$1053:$G$1055,4,TRUE)), (IF(4-$B$19=2, (VLOOKUP(2,Tablas!$A$1053:$G$1055,4,TRUE)), (VLOOKUP(3,Tablas!$A$1053:$G$1055,4,TRUE)))))))), (IF($B$15=3,(IF(3-$B$19=0,(VLOOKUP(1,Tablas!$A$1053:$G$1055,4,TRUE)), (IF(3-$B$19=1,(VLOOKUP(1,Tablas!$A$1053:$G$1055,4,TRUE)), (IF(3-$B$19=2, (VLOOKUP(2,Tablas!$A$1053:$G$1055,4,TRUE)), (VLOOKUP(3,Tablas!$A$1053:$G$1055,4,TRUE)))))))), (IF($B$15=2,(IF(2-$B$19=0, 0, (IF(2-$B$19=1,(VLOOKUP(1,Tablas!$A$1053:$G$1055,4,TRUE)), (IF(2-$B$19=2, (VLOOKUP(2,Tablas!$A$1053:$G$1055,4,TRUE)), 0)))))), (IF($B$15=1,(IF(1-$B$19=0, 0, (IF(1-$B$19=1,(VLOOKUP(1,Tablas!$A$1053:$G$1055,4,TRUE)),0)))),0)))))))))))))), (IF($B$15=0, 0, (IF($B$19>$B$15, (VLOOKUP($B$15,Tablas!$A$1053:$G$1055,4,TRUE)), (IF($B$15=4,(IF(4-$B$19=0, 0, (IF(4-$B$19=1, (VLOOKUP(1,Tablas!$A$1053:$G$1055,4,TRUE)), (IF(4-$B$19=2, (VLOOKUP(2,Tablas!$A$1053:$G$1055,4,TRUE)), (IF(4-$B$19=3, (VLOOKUP(3,Tablas!$A$1053:$G$1055,4,TRUE)), (IF(4-$B$19=4, (VLOOKUP(3,Tablas!$A$1053:$G$1055,4,TRUE)), 0)))))))))), (IF($B$15=5,(IF(5-$B$19=0, (VLOOKUP(1,Tablas!$A$1053:$G$1055,4,TRUE)), (IF(5-$B$19=1, (VLOOKUP(1,Tablas!$A$1053:$G$1055,4,TRUE)), (IF(5-$B$19=2, (VLOOKUP(2,Tablas!$A$1053:$G$1055,4,TRUE)), (IF(5-$B$19=3, (VLOOKUP(3,Tablas!$A$1053:$G$1055,4,TRUE)), (IF(5-$B$19=4, (VLOOKUP(3,Tablas!$A$1053:$G$1055,4,TRUE)), (VLOOKUP(3,Tablas!$A$1053:$G$1055,4,TRUE)))))))))))), (IF($B$15=6,(IF(6-$B$19=0, (VLOOKUP(2,Tablas!$A$1053:$G$1055,4,TRUE)), (IF(6-$B$19=1, (VLOOKUP(2,Tablas!$A$1053:$G$1055,4,TRUE)), (IF(6-$B$19=2, (VLOOKUP(2,Tablas!$A$1053:$G$1055,4,TRUE)), (IF(6-$B$19=3, (VLOOKUP(3,Tablas!$A$1053:$G$1055,4,TRUE)), (IF(6-$B$19=4, (VLOOKUP(3,Tablas!$A$1053:$G$1055,4,TRUE)), (VLOOKUP(3,Tablas!$A$1053:$G$1055,4,TRUE)))))))))))), (IF($B$15>6,(IF(7-$B$19=0, (VLOOKUP(3,Tablas!$A$1053:$G$1055,4,TRUE)), (IF(7-$B$19=1, (VLOOKUP(3,Tablas!$A$1053:$G$1055,4,TRUE)), (IF(7-$B$19=2, (VLOOKUP(3,Tablas!$A$1053:$G$1055,4,TRUE)), (IF(7-$B$19=3, (VLOOKUP(3,Tablas!$A$1053:$G$1055,4,TRUE)), (IF(7-$B$19=4, (VLOOKUP(3,Tablas!$A$1053:$G$1055,4,TRUE)), (VLOOKUP(3,Tablas!$A$1053:$G$1055,4,TRUE)))))))))))), (IF($B$15=3,(IF(3-$B$19=0,0, (IF(3-$B$19=1,(VLOOKUP(1,Tablas!$A$1053:$G$1055,4,TRUE)), (IF(3-$B$19=2, (VLOOKUP(2,Tablas!$A$1053:$G$1055,4,TRUE)), (VLOOKUP(3,Tablas!$A$1053:$G$1055,4,TRUE)))))))), (IF($B$15=2,(IF(2-$B$19=0, 0, (IF(2-$B$19=1,(VLOOKUP(1,Tablas!$A$1053:$G$1055,4,TRUE)), (IF(2-$B$19=2, (VLOOKUP(2,Tablas!$A$1053:$G$1055,4,TRUE)), 0)))))), (IF($B$15=1,(IF(1-$B$19=0, 0, (IF(1-$B$19=1,(VLOOKUP(1,Tablas!$A$1053:$G$1055,4,TRUE)),0)))),0))))))))))))))))))) -> 0 | E70: =IF($B$17=1, (IF($B$15=0, 0, (IF($B$19>$B$15, (VLOOKUP($B$15,Tablas!$A$1053:$G$1055,5,TRUE)), (IF($B$15>4,(IF($B$19=0, (VLOOKUP(3,Tablas!$A$1053:$G$1055,5,TRUE)), (IF($B$19=1, (VLOOKUP(3,Tablas!$A$1053:$G$1055,5,TRUE)), (IF($B$19=2, (VLOOKUP(3,Tablas!$A$1053:$G$1055,5,TRUE)), (VLOOKUP(3,Tablas!$A$1053:$G$1055,5,TRUE)))))))), (IF($B$15=4,(IF(4-$B$19=0,(VLOOKUP(2,Tablas!$A$1053:$G$1055,5,TRUE)), (IF(4-$B$19=1,(VLOOKUP(2,Tablas!$A$1053:$G$1055,5,TRUE)), (IF(4-$B$19=2, (VLOOKUP(2,Tablas!$A$1053:$G$1055,5,TRUE)), (VLOOKUP(3,Tablas!$A$1053:$G$1055,5,TRUE)))))))), (IF($B$15=3,(IF(3-$B$19=0,(VLOOKUP(1,Tablas!$A$1053:$G$1055,5,TRUE)), (IF(3-$B$19=1,(VLOOKUP(1,Tablas!$A$1053:$G$1055,5,TRUE)), (IF(3-$B$19=2, (VLOOKUP(2,Tablas!$A$1053:$G$1055,5,TRUE)), (VLOOKUP(3,Tablas!$A$1053:$G$1055,5,TRUE)))))))), (IF($B$15=2,(IF(2-$B$19=0, 0, (IF(2-$B$19=1,(VLOOKUP(1,Tablas!$A$1053:$G$1055,5,TRUE)), (IF(2-$B$19=2, (VLOOKUP(2,Tablas!$A$1053:$G$1055,5,TRUE)), 0)))))), (IF($B$15=1,(IF(1-$B$19=0, 0, (IF(1-$B$19=1,(VLOOKUP(1,Tablas!$A$1053:$G$1055,5,TRUE)),0)))),0)))))))))))))), (IF($B$15=0, 0, (IF($B$19>$B$15, (VLOOKUP($B$15,Tablas!$A$1053:$G$1055,5,TRUE)), (IF($B$15=4,(IF(4-$B$19=0, 0, (IF(4-$B$19=1, (VLOOKUP(1,Tablas!$A$1053:$G$1055,5,TRUE)), (IF(4-$B$19=2, (VLOOKUP(2,Tablas!$A$1053:$G$1055,5,TRUE)), (IF(4-$B$19=3, (VLOOKUP(3,Tablas!$A$1053:$G$1055,5,TRUE)), (IF(4-$B$19=4, (VLOOKUP(3,Tablas!$A$1053:$G$1055,5,TRUE)), 0)))))))))), (IF($B$15=5,(IF(5-$B$19=0, (VLOOKUP(1,Tablas!$A$1053:$G$1055,5,TRUE)), (IF(5-$B$19=1, (VLOOKUP(1,Tablas!$A$1053:$G$1055,5,TRUE)), (IF(5-$B$19=2, (VLOOKUP(2,Tablas!$A$1053:$G$1055,5,TRUE)), (IF(5-$B$19=3, (VLOOKUP(3,Tablas!$A$1053:$G$1055,5,TRUE)), (IF(5-$B$19=4, (VLOOKUP(3,Tablas!$A$1053:$G$1055,5,TRUE)), (VLOOKUP(3,Tablas!$A$1053:$G$1055,5,TRUE)))))))))))), (IF($B$15=6,(IF(6-$B$19=0, (VLOOKUP(2,Tablas!$A$1053:$G$1055,5,TRUE)), (IF(6-$B$19=1, (VLOOKUP(2,Tablas!$A$1053:$G$1055,5,TRUE)), (IF(6-$B$19=2, (VLOOKUP(2,Tablas!$A$1053:$G$1055,5,TRUE)), (IF(6-$B$19=3, (VLOOKUP(3,Tablas!$A$1053:$G$1055,5,TRUE)), (IF(6-$B$19=4, (VLOOKUP(3,Tablas!$A$1053:$G$1055,5,TRUE)), (VLOOKUP(3,Tablas!$A$1053:$G$1055,5,TRUE)))))))))))), (IF($B$15>6,(IF(7-$B$19=0, (VLOOKUP(3,Tablas!$A$1053:$G$1055,5,TRUE)), (IF(7-$B$19=1, (VLOOKUP(3,Tablas!$A$1053:$G$1055,5,TRUE)), (IF(7-$B$19=2, (VLOOKUP(3,Tablas!$A$1053:$G$1055,5,TRUE)), (IF(7-$B$19=3, (VLOOKUP(3,Tablas!$A$1053:$G$1055,5,TRUE)), (IF(7-$B$19=4, (VLOOKUP(3,Tablas!$A$1053:$G$1055,5,TRUE)), (VLOOKUP(3,Tablas!$A$1053:$G$1055,5,TRUE)))))))))))), (IF($B$15=3,(IF(3-$B$19=0,0, (IF(3-$B$19=1,(VLOOKUP(1,Tablas!$A$1053:$G$1055,5,TRUE)), (IF(3-$B$19=2, (VLOOKUP(2,Tablas!$A$1053:$G$1055,5,TRUE)), (VLOOKUP(3,Tablas!$A$1053:$G$1055,5,TRUE)))))))), (IF($B$15=2,(IF(2-$B$19=0, 0, (IF(2-$B$19=1,(VLOOKUP(1,Tablas!$A$1053:$G$1055,5,TRUE)), (IF(2-$B$19=2, (VLOOKUP(2,Tablas!$A$1053:$G$1055,5,TRUE)), 0)))))), (IF($B$15=1,(IF(1-$B$19=0, 0, (IF(1-$B$19=1,(VLOOKUP(1,Tablas!$A$1053:$G$1055,5,TRUE)),0)))),0))))))))))))))))))) -> 0
A71: Total de Prima neta | C71: =SUM(C68:C70) -> 2612.288 | D71: =SUM(D68:D70) -> 1685.436667 | E71: 1393.014
A72: Tarifa administrativa anual | C72: 75 | D72: 75 | E72: 75
A73: VAT (5%) | C73: =(C31+C32+C33)*5%/12 -> 116.62 | D73: =(D31+D32+D33)*5%/12 -> 75.24270833 | E73: 62.188125
A74: ITBMS (7%) | C74: =+C72*7% + ((C31+C32+C33)*0.12*0.07)/12 -> 24.84216 | D74: =+D72*7% + ((D31+D32+D33)*0.12*0.07)/12 -> 17.890775 | E74: 15.697605
A75: TOTAL de primera cuota | C75: =SUM(C71:C74) -> 2828.75016 | D75: =SUM(D71:D74) -> 1853.57015 | E75: 1545.89973
A76: Costo de Tarifa mensual de 2 a 12 | C76: =(C71 + C73)+((C31+C32+C33)*0.12*0.07)/12 -> 2748.50016 | D76: =(D71 + D73)+((D31+D32+D33)*0.12*0.07)/12 -> 1773.32015 | E76: 1465.64973
A77: TOTAL ANUAL | C77: =C75+(C76*11) -> 33062.25192 | D77: =D75+(D76*11) -> 21360.0918 | E77: 17668.04676
A78: Ahorros en tarifas de prima para Dependientes | C78: =IF($B$17=1,IF($B$15=0,0,IF($B$19=0,0,IF($B$19=1,(VLOOKUP(1,Tablas!$A$1053:$G$1055,3,TRUE)),(VLOOKUP(2,Tablas!$A$1053:$G$1055,3,TRUE))))), IF($B$15=0,0,IF($B$19=0,0,IF($B$19=1,(VLOOKUP(1,Tablas!$A$1053:$G$1055,3,TRUE)),IF($B$19=2,(VLOOKUP(2,Tablas!$A$1053:$G$1055,3,TRUE)), (VLOOKUP(3,Tablas!$A$1053:$G$1055,3,TRUE))))))) -> 0 | D78: =IF($B$17=1,IF($B$15=0,0,IF($B$19=0,0,IF($B$19=1,(VLOOKUP(1,Tablas!$A$1053:$G$1055,4,TRUE)),(VLOOKUP(2,Tablas!$A$1053:$G$1055,4,TRUE))))), IF($B$15=0,0,IF($B$19=0,0,IF($B$19=1,(VLOOKUP(1,Tablas!$A$1053:$G$1055,4,TRUE)),IF($B$19=2,(VLOOKUP(2,Tablas!$A$1053:$G$1055,4,TRUE)), (VLOOKUP(3,Tablas!$A$1053:$G$1055,4,TRUE))))))) -> 0 | E78: =IF($B$17=1,IF($B$15=0,0,IF($B$19=0,0,IF($B$19=1,(VLOOKUP(1,Tablas!$A$1053:$G$1055,5,TRUE)),(VLOOKUP(2,Tablas!$A$1053:$G$1055,5,TRUE))))), IF($B$15=0,0,IF($B$19=0,0,IF($B$19=1,(VLOOKUP(1,Tablas!$A$1053:$G$1055,5,TRUE)),IF($B$19=2,(VLOOKUP(2,Tablas!$A$1053:$G$1055,5,TRUE)), (VLOOKUP(3,Tablas!$A$1053:$G$1055,5,TRUE))))))) -> 0
A80: Este presupuesto solamente tiene carácter informativo y en ningún momento expresa compromiso legal para suministrarle cobertura de seguro. La emisión de una póliza de seguro Bupa está sujeta a todas las evaluaciones de riesgo por parte de Bupa y a la recepción de todos los pagos de prima requeridos.

Sheet Bupa Global Elite
J1: RESUMEN DE BENEFICIOS | Y1: RESUMEN DE BENEFICIOS | AN1: RESUMEN DE BENEFICIOS
A5: Cotización de Seguro Médico Internacional Bupa Global Elite Health Plan Tarifas en US$ | Validas: 1 de enero de 2024
A13: Nombre del Asegurado Titular | B13: =+'INGRESO DE DATOS'!$C$37 -> John Doe
A15: Número de adultos en la póliza | B15: =+'INGRESO DE DATOS'!$C$39 -> 1
A17: Número de Dependientes en la póliza | B17: =+'INGRESO DE DATOS'!$C$41 -> 0 | C17: =IF('INGRESO DE DATOS'!$P$2=TRUE, "Cotización para dependiente de 24 años","") -> 
A19: Número de Dependientes menores de 10 años | B19: =+'INGRESO DE DATOS'!$H$42 -> 1
A21: Edad del Asegurado Titular | B21: =+'INGRESO DE DATOS'!$C$43 -> 52 | E21: Edad del/la conyuge | G21: =+'INGRESO DE DATOS'!$C$45 -> 32
A23: Fecha de la cotización | B23: =NOW() -> 2024-01-10T13:30:25.430
A25: =IF('INGRESO DE DATOS'!P3=TRUE,"Variante con coaseguro fuera del país de residencia: SI","Variante con coaseguro fuera del país de residencia: NO") -> Variante con coaseguro fuera del país de residencia: NO
A27: DEDUCIBlES | C27: PLAN 1 | D27: PLAN 2 | E27: PLAN 3 | F27: PLAN 4 | G27: PLAN 5
A28: En el país de residencia | C28: 1000 | D28: 2000 | E28: 3500 | F28: 5000 | G28: 10000
A29: Fuera del país de residencia | C29: 1000 | D29: 2000 | E29: 3500 | F29: 5000 | G29: 10000
A31: TARIFAS ANUALES
A32: Prima para Asegurado Titular | C32: =VLOOKUP($B$21,Tablas!$A$6:$G$72,3,TRUE) -> 14730.5 | D32: =VLOOKUP($B$21,Tablas!$A$6:$G$72,4,TRUE) -> 10405.7 | E32: =VLOOKUP($B$21,Tablas!$A$6:$G$72,5,TRUE) -> 8352.1 | F32: =VLOOKUP($B$21,Tablas!$A$6:$G$72,6,TRUE) -> 7242 | G32: =VLOOKUP($B$21,Tablas!$A$6:$G$72,7,TRUE) -> 5519.05
A33: Prima para conyuge | C33: =IF($B$15=1,0,(VLOOKUP($G$21,Tablas!$A$6:$G$72,3,TRUE))) -> 0 | D33: =IF($B$15=1,0,(VLOOKUP($G$21,Tablas!$A$6:$G$72,4,TRUE))) -> 0 | E33: =IF($B$15=1,0,(VLOOKUP($G$21,Tablas!$A$6:$G$72,5,TRUE))) -> 0 | F33: =IF($B$15=1,0,(VLOOKUP($G$21,Tablas!$A$6:$G$72,6,TRUE))) -> 0 | G33: =IF($B$15=1,0,(VLOOKUP($G$21,Tablas!$A$6:$G$72,7,TRUE))) -> 0
A34: Prima para hijo (s) | C34: =IF($B$15=1, (IF($B$17=0, 0, (IF($B$19>$B$17, (VLOOKUP($B$17,Tablas!$A$73:$G$75,3,TRUE)), (IF($B$17>4,(IF($B$19=0, (VLOOKUP(3,Tablas!$A$73:$G$75,3,TRUE)), (IF($B$19=1, (VLOOKUP(3,Tablas!$A$73:$G$75,3,TRUE)), (IF($B$19=2, (VLOOKUP(3,Tablas!$A$73:$G$75,3,TRUE)), (VLOOKUP(3,Tablas!$A$73:$G$75,3,TRUE)))))))), (IF($B$17=4,(IF(4-$B$19=0,(VLOOKUP(2,Tablas!$A$73:$G$75,3,TRUE)), (IF(4-$B$19=1,(VLOOKUP(2,Tablas!$A$73:$G$75,3,TRUE)), (IF(4-$B$19=2, (VLOOKUP(2,Tablas!$A$73:$G$75,3,TRUE)), (VLOOKUP(3,Tablas!$A$73:$G$75,3,TRUE)))))))), (IF($B$17=3,(IF(3-$B$19=0,(VLOOKUP(1,Tablas!$A$73:$G$75,3,TRUE)), (IF(3-$B$19=1,(VLOOKUP(1,Tablas!$A$73:$G$75,3,TRUE)), (IF(3-$B$19=2, (VLOOKUP(2,Tablas!$A$73:$G$75,3,TRUE)), (VLOOKUP(3,Tablas!$A$73:$G$75,3,TRUE)))))))), (IF($B$17=2,(IF(2-$B$19=0, 0, (IF(2-$B$19=1,(VLOOKUP(1,Tablas!$A$73:$G$75,3,TRUE)), (IF(2-$B$19=2, (VLOOKUP(2,Tablas!$A$73:$G$75,3,TRUE)), 0)))))), (IF($B$17=1,(IF(1-$B$19=0, 0, (IF(1-$B$19=1,(VLOOKUP(1,Tablas!$A$73:$G$75,3,TRUE)),0)))),0)))))))))))))), (IF($B$17=0, 0, (IF($B$19>$B$17, (VLOOKUP($B$17,Tablas!$A$73:$G$75,3,TRUE)), (IF($B$17=4,(IF(4-$B$19=0, 0, (IF(4-$B$19=1, (VLOOKUP(1,Tablas!$A$73:$G$75,3,TRUE)), (IF(4-$B$19=2, (VLOOKUP(2,Tablas!$A$73:$G$75,3,TRUE)), (IF(4-$B$19=3, (VLOOKUP(3,Tablas!$A$73:$G$75,3,TRUE)), (IF(4-$B$19=4, (VLOOKUP(3,Tablas!$A$73:$G$75,3,TRUE)), 0)))))))))), (IF($B$17=5,(IF(5-$B$19=0, (VLOOKUP(1,Tablas!$A$73:$G$75,3,TRUE)), (IF(5-$B$19=1, (VLOOKUP(1,Tablas!$A$73:$G$75,3,TRUE)), (IF(5-$B$19=2, (VLOOKUP(2,Tablas!$A$73:$G$75,3,TRUE)), (IF(5-$B$19=3, (VLOOKUP(3,Tablas!$A$73:$G$75,3,TRUE)), (IF(5-$B$19=4, (VLOOKUP(3,Tablas!$A$73:$G$75,3,TRUE)), (VLOOKUP(3,Tablas!$A$73:$G$75,3,TRUE)))))))))))), (IF($B$17=6,(IF(6-$B$19=0, (VLOOKUP(2,Tablas!$A$73:$G$75,3,TRUE)), (IF(6-$B$19=1, (VLOOKUP(2,Tablas!$A$73:$G$75,3,TRUE)), (IF(6-$B$19=2, (VLOOKUP(2,Tablas!$A$73:$G$75,3,TRUE)), (IF(6-$B$19=3, (VLOOKUP(3,Tablas!$A$73:$G$75,3,TRUE)), (IF(6-$B$19=4, (VLOOKUP(3,Tablas!$A$73:$G$75,3,TRUE)), (VLOOKUP(3,Tablas!$A$73:$G$75,3,TRUE)))))))))))), (IF($B$17>6,(IF(7-$B$19=0, (VLOOKUP(3,Tablas!$A$73:$G$75,3,TRUE)), (IF(7-$B$19=1, (VLOOKUP(3,Tablas!$A$73:$G$75,3,TRUE)), (IF(7-$B$19=2, (VLOOKUP(3,Tablas!$A$73:$G$75,3,TRUE)), (IF(7-$B$19=3, (VLOOKUP(3,Tablas!$A$73:$G$75,3,TRUE)), (IF(7-$B$19=4, (VLOOKUP(3,Tablas!$A$73:$G$75,3,TRUE)), (VLOOKUP(3,Tablas!$A$73:$G$75,3,TRUE)))))))))))), (IF($B$17=3,(IF(3-$B$19=0,0, (IF(3-$B$19=1,(VLOOKUP(1,Tablas!$A$73:$G$75,3,TRUE)), (IF(3-$B$19=2, (VLOOKUP(2,Tablas!$A$73:$G$75,3,TRUE)), (VLOOKUP(3,Tablas!$A$73:$G$75,3,TRUE)))))))), (IF($B$17=2,(IF(2-$B$19=0, 0, (IF(2-$B$19=1,(VLOOKUP(1,Tablas!$A$73:$G$75,3,TRUE)), (IF(2-$B$19=2, (VLOOKUP(2,Tablas!$A$73:$G$75,3,TRUE)), 0)))))), (IF($B$17=1,(IF(1-$B$19=0, 0, (IF(1-$B$19=1,(VLOOKUP(1,Tablas!$A$73:$G$75,3,TRUE)),0)))),0))))))))))))))))))) -> 0 | D34: =IF($B$15=1, (IF($B$17=0, 0, (IF($B$19>$B$17, (VLOOKUP($B$17,Tablas!$A$73:$G$75,4,TRUE)), (IF($B$17>4,(IF($B$19=0, (VLOOKUP(3,Tablas!$A$73:$G$75,4,TRUE)), (IF($B$19=1, (VLOOKUP(3,Tablas!$A$73:$G$75,4,TRUE)), (IF($B$19=2, (VLOOKUP(3,Tablas!$A$73:$G$75,4,TRUE)), (VLOOKUP(3,Tablas!$A$73:$G$75,4,TRUE)))))))), (IF($B$17=4,(IF(4-$B$19=0,(VLOOKUP(2,Tablas!$A$73:$G$75,4,TRUE)), (IF(4-$B$19=1,(VLOOKUP(2,Tablas!$A$73:$G$75,4,TRUE)), (IF(4-$B$19=2, (VLOOKUP(2,Tablas!$A$73:$G$75,4,TRUE)), (VLOOKUP(3,Tablas!$A$73:$G$75,4,TRUE)))))))), (IF($B$17=3,(IF(3-$B$19=0,(VLOOKUP(1,Tablas!$A$73:$G$75,4,TRUE)), (IF(3-$B$19=1,(VLOOKUP(1,Tablas!$A$73:$G$75,4,TRUE)), (IF(3-$B$19=2, (VLOOKUP(2,Tablas!$A$73:$G$75,4,TRUE)), (VLOOKUP(3,Tablas!$A$73:$G$75,4,TRUE)))))))), (IF($B$17=2,(IF(2-$B$19=0, 0, (IF(2-$B$19=1,(VLOOKUP(1,Tablas!$A$73:$G$75,4,TRUE)), (IF(2-$B$19=2, (VLOOKUP(2,Tablas!$A$73:$G$75,4,TRUE)), 0)))))), (IF($B$17=1,(IF(1-$B$19=0, 0, (IF(1-$B$19=1,(VLOOKUP(1,Tablas!$A$73:$G$75,4,TRUE)),0)))),0)))))))))))))), (IF($B$17=0, 0, (IF($B$19>$B$17, (VLOOKUP($B$17,Tablas!$A$73:$G$75,4,TRUE)), (IF($B$17=4,(IF(4-$B$19=0, 0, (IF(4-$B$19=1, (VLOOKUP(1,Tablas!$A$73:$G$75,4,TRUE)), (IF(4-$B$19=2, (VLOOKUP(2,Tablas!$A$73:$G$75,4,TRUE)), (IF(4-$B$19=3, (VLOOKUP(3,Tablas!$A$73:$G$75,4,TRUE)), (IF(4-$B$19=4, (VLOOKUP(3,Tablas!$A$73:$G$75,4,TRUE)), 0)))))))))), (IF($B$17=5,(IF(5-$B$19=0, (VLOOKUP(1,Tablas!$A$73:$G$75,4,TRUE)), (IF(5-$B$19=1, (VLOOKUP(1,Tablas!$A$73:$G$75,4,TRUE)), (IF(5-$B$19=2, (VLOOKUP(2,Tablas!$A$73:$G$75,4,TRUE)), (IF(5-$B$19=3, (VLOOKUP(3,Tablas!$A$73:$G$75,4,TRUE)), (IF(5-$B$19=4, (VLOOKUP(3,Tablas!$A$73:$G$75,4,TRUE)), (VLOOKUP(3,Tablas!$A$73:$G$75,4,TRUE)))))))))))), (IF($B$17=6,(IF(6-$B$19=0, (VLOOKUP(2,Tablas!$A$73:$G$75,4,TRUE)), (IF(6-$B$19=1, (VLOOKUP(2,Tablas!$A$73:$G$75,4,TRUE)), (IF(6-$B$19=2, (VLOOKUP(2,Tablas!$A$73:$G$75,4,TRUE)), (IF(6-$B$19=3, (VLOOKUP(3,Tablas!$A$73:$G$75,4,TRUE)), (IF(6-$B$19=4, (VLOOKUP(3,Tablas!$A$73:$G$75,4,TRUE)), (VLOOKUP(3,Tablas!$A$73:$G$75,4,TRUE)))))))))))), (IF($B$17>6,(IF(7-$B$19=0, (VLOOKUP(3,Tablas!$A$73:$G$75,4,TRUE)), (IF(7-$B$19=1, (VLOOKUP(3,Tablas!$A$73:$G$75,4,TRUE)), (IF(7-$B$19=2, (VLOOKUP(3,Tablas!$A$73:$G$75,4,TRUE)), (IF(7-$B$19=3, (VLOOKUP(3,Tablas!$A$73:$G$75,4,TRUE)), (IF(7-$B$19=4, (VLOOKUP(3,Tablas!$A$73:$G$75,4,TRUE)), (VLOOKUP(3,Tablas!$A$73:$G$75,4,TRUE)))))))))))), (IF($B$17=3,(IF(3-$B$19=0,0, (IF(3-$B$19=1,(VLOOKUP(1,Tablas!$A$73:$G$75,4,TRUE)), (IF(3-$B$19=2, (VLOOKUP(2,Tablas!$A$73:$G$75,4,TRUE)), (VLOOKUP(3,Tablas!$A$73:$G$75,4,TRUE)))))))), (IF($B$17=2,(IF(2-$B$19=0, 0, (IF(2-$B$19=1,(VLOOKUP(1,Tablas!$A$73:$G$75,4,TRUE)), (IF(2-$B$19=2, (VLOOKUP(2,Tablas!$A$73:$G$75,4,TRUE)), 0)))))), (IF($B$17=1,(IF(1-$B$19=0, 0, (IF(1-$B$19=1,(VLOOKUP(1,Tablas!$A$73:$G$75,4,TRUE)),0)))),0))))))))))))))))))) -> 0 | E34: =IF($B$15=1, (IF($B$17=0, 0, (IF($B$19>$B$17, (VLOOKUP($B$17,Tablas!$A$73:$G$75,5,TRUE)), (IF($B$17>4,(IF($B$19=0, (VLOOKUP(3,Tablas!$A$73:$G$75,5,TRUE)), (IF($B$19=1, (VLOOKUP(3,Tablas!$A$73:$G$75,5,TRUE)), (IF($B$19=2, (VLOOKUP(3,Tablas!$A$73:$G$75,5,TRUE)), (VLOOKUP(3,Tablas!$A$73:$G$75,5,TRUE)))))))), (IF($B$17=4,(IF(4-$B$19=0,(VLOOKUP(2,Tablas!$A$73:$G$75,5,TRUE)), (IF(4-$B$19=1,(VLOOKUP(2,Tablas!$A$73:$G$75,5,TRUE)), (IF(4-$B$19=2, (VLOOKUP(2,Tablas!$A$73:$G$75,5,TRUE)), (VLOOKUP(3,Tablas!$A$73:$G$75,5,TRUE)))))))), (IF($B$17=3,(IF(3-$B$19=0,(VLOOKUP(1,Tablas!$A$73:$G$75,5,TRUE)), (IF(3-$B$19=1,(VLOOKUP(1,Tablas!$A$73:$G$75,5,TRUE)), (IF(3-$B$19=2, (VLOOKUP(2,Tablas!$A$73:$G$75,5,TRUE)), (VLOOKUP(3,Tablas!$A$73:$G$75,5,TRUE)))))))), (IF($B$17=2,(IF(2-$B$19=0, 0, (IF(2-$B$19=1,(VLOOKUP(1,Tablas!$A$73:$G$75,5,TRUE)), (IF(2-$B$19=2, (VLOOKUP(2,Tablas!$A$73:$G$75,5,TRUE)), 0)))))), (IF($B$17=1,(IF(1-$B$19=0, 0, (IF(1-$B$19=1,(VLOOKUP(1,Tablas!$A$73:$G$75,5,TRUE)),0)))),0)))))))))))))), (IF($B$17=0, 0, (IF($B$19>$B$17, (VLOOKUP($B$17,Tablas!$A$73:$G$75,5,TRUE)), (IF($B$17=4,(IF(4-$B$19=0, 0, (IF(4-$B$19=1, (VLOOKUP(1,Tablas!$A$73:$G$75,5,TRUE)), (IF(4-$B$19=2, (VLOOKUP(2,Tablas!$A$73:$G$75,5,TRUE)), (IF(4-$B$19=3, (VLOOKUP(3,Tablas!$A$73:$G$75,5,TRUE)), (IF(4-$B$19=4, (VLOOKUP(3,Tablas!$A$73:$G$75,5,TRUE)), 0)))))))))), (IF($B$17=5,(IF(5-$B$19=0, (VLOOKUP(1,Tablas!$A$73:$G$75,5,TRUE)), (IF(5-$B$19=1, (VLOOKUP(1,Tablas!$A$73:$G$75,5,TRUE)), (IF(5-$B$19=2, (VLOOKUP(2,Tablas!$A$73:$G$75,5,TRUE)), (IF(5-$B$19=3, (VLOOKUP(3,Tablas!$A$73:$G$75,5,TRUE)), (IF(5-$B$19=4, (VLOOKUP(3,Tablas!$A$73:$G$75,5,TRUE)), (VLOOKUP(3,Tablas!$A$73:$G$75,5,TRUE)))))))))))), (IF($B$17=6,(IF(6-$B$19=0, (VLOOKUP(2,Tablas!$A$73:$G$75,5,TRUE)), (IF(6-$B$19=1, (VLOOKUP(2,Tablas!$A$73:$G$75,5,TRUE)), (IF(6-$B$19=2, (VLOOKUP(2,Tablas!$A$73:$G$75,5,TRUE)), (IF(6-$B$19=3, (VLOOKUP(3,Tablas!$A$73:$G$75,5,TRUE)), (IF(6-$B$19=4, (VLOOKUP(3,Tablas!$A$73:$G$75,5,TRUE)), (VLOOKUP(3,Tablas!$A$73:$G$75,5,TRUE)))))))))))), (IF($B$17>6,(IF(7-$B$19=0, (VLOOKUP(3,Tablas!$A$73:$G$75,5,TRUE)), (IF(7-$B$19=1, (VLOOKUP(3,Tablas!$A$73:$G$75,5,TRUE)), (IF(7-$B$19=2, (VLOOKUP(3,Tablas!$A$73:$G$75,5,TRUE)), (IF(7-$B$19=3, (VLOOKUP(3,Tablas!$A$73:$G$75,5,TRUE)), (IF(7-$B$19=4, (VLOOKUP(3,Tablas!$A$73:$G$75,5,TRUE)), (VLOOKUP(3,Tablas!$A$73:$G$75,5,TRUE)))))))))))), (IF($B$17=3,(IF(3-$B$19=0,0, (IF(3-$B$19=1,(VLOOKUP(1,Tablas!$A$73:$G$75,5,TRUE)), (IF(3-$B$19=2, (VLOOKUP(2,Tablas!$A$73:$G$75,5,TRUE)), (VLOOKUP(3,Tablas!$A$73:$G$75,5,TRUE)))))))), (IF($B$17=2,(IF(2-$B$19=0, 0, (IF(2-$B$19=1,(VLOOKUP(1,Tablas!$A$73:$G$75,5,TRUE)), (IF(2-$B$19=2, (VLOOKUP(2,Tablas!$A$73:$G$75,5,TRUE)), 0)))))), (IF($B$17=1,(IF(1-$B$19=0, 0, (IF(1-$B$19=1,(VLOOKUP(1,Tablas!$A$73:$G$75,5,TRUE)),0)))),0))))))))))))))))))) -> 0 | F34: =IF($B$15=1, (IF($B$17=0, 0, (IF($B$19>$B$17, (VLOOKUP($B$17,Tablas!$A$73:$G$75,6,TRUE)), (IF($B$17>4,(IF($B$19=0, (VLOOKUP(3,Tablas!$A$73:$G$75,6,TRUE)), (IF($B$19=1, (VLOOKUP(3,Tablas!$A$73:$G$75,6,TRUE)), (IF($B$19=2, (VLOOKUP(3,Tablas!$A$73:$G$75,6,TRUE)), (VLOOKUP(3,Tablas!$A$73:$G$75,6,TRUE)))))))), (IF($B$17=4,(IF(4-$B$19=0,(VLOOKUP(2,Tablas!$A$73:$G$75,6,TRUE)), (IF(4-$B$19=1,(VLOOKUP(2,Tablas!$A$73:$G$75,6,TRUE)), (IF(4-$B$19=2, (VLOOKUP(2,Tablas!$A$73:$G$75,6,TRUE)), (VLOOKUP(3,Tablas!$A$73:$G$75,6,TRUE)))))))), (IF($B$17=3,(IF(3-$B$19=0,(VLOOKUP(1,Tablas!$A$73:$G$75,6,TRUE)), (IF(3-$B$19=1,(VLOOKUP(1,Tablas!$A$73:$G$75,6,TRUE)), (IF(3-$B$19=2, (VLOOKUP(2,Tablas!$A$73:$G$75,6,TRUE)), (VLOOKUP(3,Tablas!$A$73:$G$75,6,TRUE)))))))), (IF($B$17=2,(IF(2-$B$19=0, 0, (IF(2-$B$19=1,(VLOOKUP(1,Tablas!$A$73:$G$75,6,TRUE)), (IF(2-$B$19=2, (VLOOKUP(2,Tablas!$A$73:$G$75,6,TRUE)), 0)))))), (IF($B$17=1,(IF(1-$B$19=0, 0, (IF(1-$B$19=1,(VLOOKUP(1,Tablas!$A$73:$G$75,6,TRUE)),0)))),0)))))))))))))), (IF($B$17=0, 0, (IF($B$19>$B$17, (VLOOKUP($B$17,Tablas!$A$73:$G$75,6,TRUE)), (IF($B$17=4,(IF(4-$B$19=0, 0, (IF(4-$B$19=1, (VLOOKUP(1,Tablas!$A$73:$G$75,6,TRUE)), (IF(4-$B$19=2, (VLOOKUP(2,Tablas!$A$73:$G$75,6,TRUE)), (IF(4-$B$19=3, (VLOOKUP(3,Tablas!$A$73:$G$75,6,TRUE)), (IF(4-$B$19=4, (VLOOKUP(3,Tablas!$A$73:$G$75,6,TRUE)), 0)))))))))), (IF($B$17=5,(IF(5-$B$19=0, (VLOOKUP(1,Tablas!$A$73:$G$75,6,TRUE)), (IF(5-$B$19=1, (VLOOKUP(1,Tablas!$A$73:$G$75,6,TRUE)), (IF(5-$B$19=2, (VLOOKUP(2,Tablas!$A$73:$G$75,6,TRUE)), (IF(5-$B$19=3, (VLOOKUP(3,Tablas!$A$73:$G$75,6,TRUE)), (IF(5-$B$19=4, (VLOOKUP(3,Tablas!$A$73:$G$75,6,TRUE)), (VLOOKUP(3,Tablas!$A$73:$G$75,6,TRUE)))))))))))), (IF($B$17=6,(IF(6-$B$19=0, (VLOOKUP(2,Tablas!$A$73:$G$75,6,TRUE)), (IF(6-$B$19=1, (VLOOKUP(2,Tablas!$A$73:$G$75,6,TRUE)), (IF(6-$B$19=2, (VLOOKUP(2,Tablas!$A$73:$G$75,6,TRUE)), (IF(6-$B$19=3, (VLOOKUP(3,Tablas!$A$73:$G$75,6,TRUE)), (IF(6-$B$19=4, (VLOOKUP(3,Tablas!$A$73:$G$75,6,TRUE)), (VLOOKUP(3,Tablas!$A$73:$G$75,6,TRUE)))))))))))), (IF($B$17>6,(IF(7-$B$19=0, (VLOOKUP(3,Tablas!$A$73:$G$75,6,TRUE)), (IF(7-$B$19=1, (VLOOKUP(3,Tablas!$A$73:$G$75,6,TRUE)), (IF(7-$B$19=2, (VLOOKUP(3,Tablas!$A$73:$G$75,6,TRUE)), (IF(7-$B$19=3, (VLOOKUP(3,Tablas!$A$73:$G$75,6,TRUE)), (IF(7-$B$19=4, (VLOOKUP(3,Tablas!$A$73:$G$75,6,TRUE)), (VLOOKUP(3,Tablas!$A$73:$G$75,6,TRUE)))))))))))), (IF($B$17=3,(IF(3-$B$19=0,0, (IF(3-$B$19=1,(VLOOKUP(1,Tablas!$A$73:$G$75,6,TRUE)), (IF(3-$B$19=2, (VLOOKUP(2,Tablas!$A$73:$G$75,6,TRUE)), (VLOOKUP(3,Tablas!$A$73:$G$75,6,TRUE)))))))), (IF($B$17=2,(IF(2-$B$19=0, 0, (IF(2-$B$19=1,(VLOOKUP(1,Tablas!$A$73:$G$75,6,TRUE)), (IF(2-$B$19=2, (VLOOKUP(2,Tablas!$A$73:$G$75,6,TRUE)), 0)))))), (IF($B$17=1,(IF(1-$B$19=0, 0, (IF(1-$B$19=1,(VLOOKUP(1,Tablas!$A$73:$G$75,6,TRUE)),0)))),0))))))))))))))))))) -> 0 | G34: =IF($B$15=1, (IF($B$17=0, 0, (IF($B$19>$B$17, (VLOOKUP($B$17,Tablas!$A$73:$G$75,7,TRUE)), (IF($B$17>4,(IF($B$19=0, (VLOOKUP(3,Tablas!$A$73:$G$75,7,TRUE)), (IF($B$19=1, (VLOOKUP(3,Tablas!$A$73:$G$75,7,TRUE)), (IF($B$19=2, (VLOOKUP(3,Tablas!$A$73:$G$75,7,TRUE)), (VLOOKUP(3,Tablas!$A$73:$G$75,7,TRUE)))))))), (IF($B$17=4,(IF(4-$B$19=0,(VLOOKUP(2,Tablas!$A$73:$G$75,7,TRUE)), (IF(4-$B$19=1,(VLOOKUP(2,Tablas!$A$73:$G$75,7,TRUE)), (IF(4-$B$19=2, (VLOOKUP(2,Tablas!$A$73:$G$75,7,TRUE)), (VLOOKUP(3,Tablas!$A$73:$G$75,7,TRUE)))))))), (IF($B$17=3,(IF(3-$B$19=0,(VLOOKUP(1,Tablas!$A$73:$G$75,7,TRUE)), (IF(3-$B$19=1,(VLOOKUP(1,Tablas!$A$73:$G$75,7,TRUE)), (IF(3-$B$19=2, (VLOOKUP(2,Tablas!$A$73:$G$75,7,TRUE)), (VLOOKUP(3,Tablas!$A$73:$G$75,7,TRUE)))))))), (IF($B$17=2,(IF(2-$B$19=0, 0, (IF(2-$B$19=1,(VLOOKUP(1,Tablas!$A$73:$G$75,7,TRUE)), (IF(2-$B$19=2, (VLOOKUP(2,Tablas!$A$73:$G$75,7,TRUE)), 0)))))), (IF($B$17=1,(IF(1-$B$19=0, 0, (IF(1-$B$19=1,(VLOOKUP(1,Tablas!$A$73:$G$75,7,TRUE)),0)))),0)))))))))))))), (IF($B$17=0, 0, (IF($B$19>$B$17, (VLOOKUP($B$17,Tablas!$A$73:$G$75,7,TRUE)), (IF($B$17=4,(IF(4-$B$19=0, 0, (IF(4-$B$19=1, (VLOOKUP(1,Tablas!$A$73:$G$75,7,TRUE)), (IF(4-$B$19=2, (VLOOKUP(2,Tablas!$A$73:$G$75,7,TRUE)), (IF(4-$B$19=3, (VLOOKUP(3,Tablas!$A$73:$G$75,7,TRUE)), (IF(4-$B$19=4, (VLOOKUP(3,Tablas!$A$73:$G$75,7,TRUE)), 0)))))))))), (IF($B$17=5,(IF(5-$B$19=0, (VLOOKUP(1,Tablas!$A$73:$G$75,7,TRUE)), (IF(5-$B$19=1, (VLOOKUP(1,Tablas!$A$73:$G$75,7,TRUE)), (IF(5-$B$19=2, (VLOOKUP(2,Tablas!$A$73:$G$75,7,TRUE)), (IF(5-$B$19=3, (VLOOKUP(3,Tablas!$A$73:$G$75,7,TRUE)), (IF(5-$B$19=4, (VLOOKUP(3,Tablas!$A$73:$G$75,7,TRUE)), (VLOOKUP(3,Tablas!$A$73:$G$75,7,TRUE)))))))))))), (IF($B$17=6,(IF(6-$B$19=0, (VLOOKUP(2,Tablas!$A$73:$G$75,7,TRUE)), (IF(6-$B$19=1, (VLOOKUP(2,Tablas!$A$73:$G$75,7,TRUE)), (IF(6-$B$19=2, (VLOOKUP(2,Tablas!$A$73:$G$75,7,TRUE)), (IF(6-$B$19=3, (VLOOKUP(3,Tablas!$A$73:$G$75,7,TRUE)), (IF(6-$B$19=4, (VLOOKUP(3,Tablas!$A$73:$G$75,7,TRUE)), (VLOOKUP(3,Tablas!$A$73:$G$75,7,TRUE)))))))))))), (IF($B$17>6,(IF(7-$B$19=0, (VLOOKUP(3,Tablas!$A$73:$G$75,7,TRUE)), (IF(7-$B$19=1, (VLOOKUP(3,Tablas!$A$73:$G$75,7,TRUE)), (IF(7-$B$19=2, (VLOOKUP(3,Tablas!$A$73:$G$75,7,TRUE)), (IF(7-$B$19=3, (VLOOKUP(3,Tablas!$A$73:$G$75,7,TRUE)), (IF(7-$B$19=4, (VLOOKUP(3,Tablas!$A$73:$G$75,7,TRUE)), (VLOOKUP(3,Tablas!$A$73:$G$75,7,TRUE)))))))))))), (IF($B$17=3,(IF(3-$B$19=0,0, (IF(3-$B$19=1,(VLOOKUP(1,Tablas!$A$73:$G$75,7,TRUE)), (IF(3-$B$19=2, (VLOOKUP(2,Tablas!$A$73:$G$75,7,TRUE)), (VLOOKUP(3,Tablas!$A$73:$G$75,7,TRUE)))))))), (IF($B$17=2,(IF(2-$B$19=0, 0, (IF(2-$B$19=1,(VLOOKUP(1,Tablas!$A$73:$G$75,7,TRUE)), (IF(2-$B$19=2, (VLOOKUP(2,Tablas!$A$73:$G$75,7,TRUE)), 0)))))), (IF($B$17=1,(IF(1-$B$19=0, 0, (IF(1-$B$19=1,(VLOOKUP(1,Tablas!$A$73:$G$75,7,TRUE)),0)))),0))))))))))))))))))) -> 0
A35: Total de Prima neta | C35: =SUM(C32:C34) -> 14730.5 | D35: =SUM(D32:D34) -> 10405.7 | E35: 8352.1 | F35: 7242 | G35: 5519.05
A36: Ajuste por la variante con coaseguro fuera del país de residencia | C36: =IF('INGRESO DE DATOS'!$P$3,C35*-15%,0) -> 0 | D36: =IF('INGRESO DE DATOS'!$P$3,D35*-15%,0) -> 0 | E36: =IF('INGRESO DE DATOS'!$P$3,E35*-15%,0) -> 0 | F36: =IF('INGRESO DE DATOS'!$P$3,F35*-15%,0) -> 0 | G36: =IF('INGRESO DE DATOS'!$P$3,G35*-15%,0) -> 0
A37: Tarifa administrativa annual | C37: 75 | D37: 75 | E37: 75 | F37: 75 | G37: 75
A38: VAT (5%) : | C38: =(C35+C36)*5% -> 736.525 | D38: =(D35+D36)*5% -> 520.285 | E38: 417.605 | F38: 362.1 | G38: 275.9525
A39: ITBMS (7%) | C39: =+C37*7% -> 5.25 | D39: =+D37*7% -> 5.25 | E39: 5.25 | F39: 5.25 | G39: 5.25
A40: TOTAL ANUAL | C40: =SUM(C35:C39) -> 15547.275 | D40: =SUM(D35:D39) -> 11006.235 | E40: 8849.955 | F40: =SUM(F35:F39) -> 7684.35 | G40: 5875.2525
A41: Ahorros en tarifas de prima para Dependientes | C41: =IF($B$15=1,IF($B$17=0,0,IF($B$19=0,0,IF($B$19=1,(VLOOKUP(1,Tablas!$A$73:$G$75,3,TRUE)),(VLOOKUP(2,Tablas!$A$73:$G$75,3,TRUE))))), IF($B$17=0,0,IF($B$19=0,0,IF($B$19=1,(VLOOKUP(1,Tablas!$A$73:$G$75,3,TRUE)),IF($B$19=2,(VLOOKUP(2,Tablas!$A$73:$G$75,3,TRUE)), (VLOOKUP(3,Tablas!$A$73:$G$75,3,TRUE))))))) -> 0 | D41: =IF($B$15=1,IF($B$17=0,0,IF($B$19=0,0,IF($B$19=1,(VLOOKUP(1,Tablas!$A$73:$G$75,4,TRUE)),(VLOOKUP(2,Tablas!$A$73:$G$75,4,TRUE))))), IF($B$17=0,0,IF($B$19=0,0,IF($B$19=1,(VLOOKUP(1,Tablas!$A$73:$G$75,4,TRUE)),IF($B$19=2,(VLOOKUP(2,Tablas!$A$73:$G$75,4,TRUE)), (VLOOKUP(3,Tablas!$A$73:$G$75,4,TRUE))))))) -> 0 | E41: =IF($B$15=1,IF($B$17=0,0,IF($B$19=0,0,IF($B$19=1,(VLOOKUP(1,Tablas!$A$73:$G$75,5,TRUE)),(VLOOKUP(2,Tablas!$A$73:$G$75,5,TRUE))))), IF($B$17=0,0,IF($B$19=0,0,IF($B$19=1,(VLOOKUP(1,Tablas!$A$73:$G$75,5,TRUE)),IF($B$19=2,(VLOOKUP(2,Tablas!$A$73:$G$75,5,TRUE)), (VLOOKUP(3,Tablas!$A$73:$G$75,5,TRUE))))))) -> 0 | F41: =IF($B$15=1,IF($B$17=0,0,IF($B$19=0,0,IF($B$19=1,(VLOOKUP(1,Tablas!$A$73:$G$75,6,TRUE)),(VLOOKUP(2,Tablas!$A$73:$G$75,6,TRUE))))), IF($B$17=0,0,IF($B$19=0,0,IF($B$19=1,(VLOOKUP(1,Tablas!$A$73:$G$75,6,TRUE)),IF($B$19=2,(VLOOKUP(2,Tablas!$A$73:$G$75,6,TRUE)), (VLOOKUP(3,Tablas!$A$73:$G$75,6,TRUE))))))) -> 0 | G41: =IF($B$15=1,IF($B$17=0,0,IF($B$19=0,0,IF($B$19=1,(VLOOKUP(1,Tablas!$A$73:$G$75,7,TRUE)),(VLOOKUP(2,Tablas!$A$73:$G$75,7,TRUE))))), IF($B$17=0,0,IF($B$19=0,0,IF($B$19=1,(VLOOKUP(1,Tablas!$A$73:$G$75,7,TRUE)),IF($B$19=2,(VLOOKUP(2,Tablas!$A$73:$G$75,7,TRUE)), (VLOOKUP(3,Tablas!$A$73:$G$75,7,TRUE))))))) -> 0
A43: TARIFAS SEMIANUALES
A44: Prima para Asegurado Titular | C44: =VLOOKUP($B$21,Tablas!$A$458:$G$524,3,TRUE) -> 7807.165 | D44: =VLOOKUP($B$21,Tablas!$A$458:$G$524,4,TRUE) -> 5515.021 | E44: =VLOOKUP($B$21,Tablas!$A$458:$G$524,5,TRUE) -> 4426.613 | F44: =VLOOKUP($B$21,Tablas!$A$458:$G$524,6,TRUE) -> 3838.26 | G44: =VLOOKUP($B$21,Tablas!$A$458:$G$524,7,TRUE) -> 2925.0965
A45: Prima para conyuge | C45: =IF($B$15=1,0,(VLOOKUP($G$21,Tablas!$A$458:$G$524,3,TRUE))) -> 0 | D45: =IF($B$15=1,0,(VLOOKUP($G$21,Tablas!$A$458:$G$524,4,TRUE))) -> 0 | E45: =IF($B$15=1,0,(VLOOKUP($G$21,Tablas!$A$458:$G$524,5,TRUE))) -> 0 | F45: =IF($B$15=1,0,(VLOOKUP($G$21,Tablas!$A$458:$G$524,6,TRUE))) -> 0 | G45: =IF($B$15=1,0,(VLOOKUP($G$21,Tablas!$A$458:$G$524,7,TRUE))) -> 0
A46: Prima para hijo (s) | C46: =IF($B$15=1, (IF($B$17=0, 0, (IF($B$19>$B$17, (VLOOKUP($B$17,Tablas!$A$525:$G$527,3,TRUE)), (IF($B$17>4,(IF($B$19=0, (VLOOKUP(3,Tablas!$A$525:$G$527,3,TRUE)), (IF($B$19=1, (VLOOKUP(3,Tablas!$A$525:$G$527,3,TRUE)), (IF($B$19=2, (VLOOKUP(3,Tablas!$A$525:$G$527,3,TRUE)), (VLOOKUP(3,Tablas!$A$525:$G$527,3,TRUE)))))))), (IF($B$17=4,(IF(4-$B$19=0,(VLOOKUP(2,Tablas!$A$525:$G$527,3,TRUE)), (IF(4-$B$19=1,(VLOOKUP(2,Tablas!$A$525:$G$527,3,TRUE)), (IF(4-$B$19=2, (VLOOKUP(2,Tablas!$A$525:$G$527,3,TRUE)), (VLOOKUP(3,Tablas!$A$525:$G$527,3,TRUE)))))))), (IF($B$17=3,(IF(3-$B$19=0,(VLOOKUP(1,Tablas!$A$525:$G$527,3,TRUE)), (IF(3-$B$19=1,(VLOOKUP(1,Tablas!$A$525:$G$527,3,TRUE)), (IF(3-$B$19=2, (VLOOKUP(2,Tablas!$A$525:$G$527,3,TRUE)), (VLOOKUP(3,Tablas!$A$525:$G$527,3,TRUE)))))))), (IF($B$17=2,(IF(2-$B$19=0, 0, (IF(2-$B$19=1,(VLOOKUP(1,Tablas!$A$525:$G$527,3,TRUE)), (IF(2-$B$19=2, (VLOOKUP(2,Tablas!$A$525:$G$527,3,TRUE)), 0)))))), (IF($B$17=1,(IF(1-$B$19=0, 0, (IF(1-$B$19=1,(VLOOKUP(1,Tablas!$A$525:$G$527,3,TRUE)),0)))),0)))))))))))))), (IF($B$17=0, 0, (IF($B$19>$B$17, (VLOOKUP($B$17,Tablas!$A$525:$G$527,3,TRUE)), (IF($B$17=4,(IF(4-$B$19=0, 0, (IF(4-$B$19=1, (VLOOKUP(1,Tablas!$A$525:$G$527,3,TRUE)), (IF(4-$B$19=2, (VLOOKUP(2,Tablas!$A$525:$G$527,3,TRUE)), (IF(4-$B$19=3, (VLOOKUP(3,Tablas!$A$525:$G$527,3,TRUE)), (IF(4-$B$19=4, (VLOOKUP(3,Tablas!$A$525:$G$527,3,TRUE)), 0)))))))))), (IF($B$17=5,(IF(5-$B$19=0, (VLOOKUP(1,Tablas!$A$525:$G$527,3,TRUE)), (IF(5-$B$19=1, (VLOOKUP(1,Tablas!$A$525:$G$527,3,TRUE)), (IF(5-$B$19=2, (VLOOKUP(2,Tablas!$A$525:$G$527,3,TRUE)), (IF(5-$B$19=3, (VLOOKUP(3,Tablas!$A$525:$G$527,3,TRUE)), (IF(5-$B$19=4, (VLOOKUP(3,Tablas!$A$525:$G$527,3,TRUE)), (VLOOKUP(3,Tablas!$A$525:$G$527,3,TRUE)))))))))))), (IF($B$17=6,(IF(6-$B$19=0, (VLOOKUP(2,Tablas!$A$525:$G$527,3,TRUE)), (IF(6-$B$19=1, (VLOOKUP(2,Tablas!$A$525:$G$527,3,TRUE)), (IF(6-$B$19=2, (VLOOKUP(2,Tablas!$A$525:$G$527,3,TRUE)), (IF(6-$B$19=3, (VLOOKUP(3,Tablas!$A$525:$G$527,3,TRUE)), (IF(6-$B$19=4, (VLOOKUP(3,Tablas!$A$525:$G$527,3,TRUE)), (VLOOKUP(3,Tablas!$A$525:$G$527,3,TRUE)))))))))))), (IF($B$17>6,(IF(7-$B$19=0, (VLOOKUP(3,Tablas!$A$525:$G$527,3,TRUE)), (IF(7-$B$19=1, (VLOOKUP(3,Tablas!$A$525:$G$527,3,TRUE)), (IF(7-$B$19=2, (VLOOKUP(3,Tablas!$A$525:$G$527,3,TRUE)), (IF(7-$B$19=3, (VLOOKUP(3,Tablas!$A$525:$G$527,3,TRUE)), (IF(7-$B$19=4, (VLOOKUP(3,Tablas!$A$525:$G$527,3,TRUE)), (VLOOKUP(3,Tablas!$A$525:$G$527,3,TRUE)))))))))))), (IF($B$17=3,(IF(3-$B$19=0,0, (IF(3-$B$19=1,(VLOOKUP(1,Tablas!$A$525:$G$527,3,TRUE)), (IF(3-$B$19=2, (VLOOKUP(2,Tablas!$A$525:$G$527,3,TRUE)), (VLOOKUP(3,Tablas!$A$525:$G$527,3,TRUE)))))))), (IF($B$17=2,(IF(2-$B$19=0, 0, (IF(2-$B$19=1,(VLOOKUP(1,Tablas!$A$525:$G$527,3,TRUE)), (IF(2-$B$19=2, (VLOOKUP(2,Tablas!$A$525:$G$527,3,TRUE)), 0)))))), (IF($B$17=1,(IF(1-$B$19=0, 0, (IF(1-$B$19=1,(VLOOKUP(1,Tablas!$A$525:$G$527,3,TRUE)),0)))),0))))))))))))))))))) -> 0 | D46: =IF($B$15=1, (IF($B$17=0, 0, (IF($B$19>$B$17, (VLOOKUP($B$17,Tablas!$A$525:$G$527,4,TRUE)), (IF($B$17>4,(IF($B$19=0, (VLOOKUP(3,Tablas!$A$525:$G$527,4,TRUE)), (IF($B$19=1, (VLOOKUP(3,Tablas!$A$525:$G$527,4,TRUE)), (IF($B$19=2, (VLOOKUP(3,Tablas!$A$525:$G$527,4,TRUE)), (VLOOKUP(3,Tablas!$A$525:$G$527,4,TRUE)))))))), (IF($B$17=4,(IF(4-$B$19=0,(VLOOKUP(2,Tablas!$A$525:$G$527,4,TRUE)), (IF(4-$B$19=1,(VLOOKUP(2,Tablas!$A$525:$G$527,4,TRUE)), (IF(4-$B$19=2, (VLOOKUP(2,Tablas!$A$525:$G$527,4,TRUE)), (VLOOKUP(3,Tablas!$A$525:$G$527,4,TRUE)))))))), (IF($B$17=3,(IF(3-$B$19=0,(VLOOKUP(1,Tablas!$A$525:$G$527,4,TRUE)), (IF(3-$B$19=1,(VLOOKUP(1,Tablas!$A$525:$G$527,4,TRUE)), (IF(3-$B$19=2, (VLOOKUP(2,Tablas!$A$525:$G$527,4,TRUE)), (VLOOKUP(3,Tablas!$A$525:$G$527,4,TRUE)))))))), (IF($B$17=2,(IF(2-$B$19=0, 0, (IF(2-$B$19=1,(VLOOKUP(1,Tablas!$A$525:$G$527,4,TRUE)), (IF(2-$B$19=2, (VLOOKUP(2,Tablas!$A$525:$G$527,4,TRUE)), 0)))))), (IF($B$17=1,(IF(1-$B$19=0, 0, (IF(1-$B$19=1,(VLOOKUP(1,Tablas!$A$525:$G$527,4,TRUE)),0)))),0)))))))))))))), (IF($B$17=0, 0, (IF($B$19>$B$17, (VLOOKUP($B$17,Tablas!$A$525:$G$527,4,TRUE)), (IF($B$17=4,(IF(4-$B$19=0, 0, (IF(4-$B$19=1, (VLOOKUP(1,Tablas!$A$525:$G$527,4,TRUE)), (IF(4-$B$19=2, (VLOOKUP(2,Tablas!$A$525:$G$527,4,TRUE)), (IF(4-$B$19=3, (VLOOKUP(3,Tablas!$A$525:$G$527,4,TRUE)), (IF(4-$B$19=4, (VLOOKUP(3,Tablas!$A$525:$G$527,4,TRUE)), 0)))))))))), (IF($B$17=5,(IF(5-$B$19=0, (VLOOKUP(1,Tablas!$A$525:$G$527,4,TRUE)), (IF(5-$B$19=1, (VLOOKUP(1,Tablas!$A$525:$G$527,4,TRUE)), (IF(5-$B$19=2, (VLOOKUP(2,Tablas!$A$525:$G$527,4,TRUE)), (IF(5-$B$19=3, (VLOOKUP(3,Tablas!$A$525:$G$527,4,TRUE)), (IF(5-$B$19=4, (VLOOKUP(3,Tablas!$A$525:$G$527,4,TRUE)), (VLOOKUP(3,Tablas!$A$525:$G$527,4,TRUE)))))))))))), (IF($B$17=6,(IF(6-$B$19=0, (VLOOKUP(2,Tablas!$A$525:$G$527,4,TRUE)), (IF(6-$B$19=1, (VLOOKUP(2,Tablas!$A$525:$G$527,4,TRUE)), (IF(6-$B$19=2, (VLOOKUP(2,Tablas!$A$525:$G$527,4,TRUE)), (IF(6-$B$19=3, (VLOOKUP(3,Tablas!$A$525:$G$527,4,TRUE)), (IF(6-$B$19=4, (VLOOKUP(3,Tablas!$A$525:$G$527,4,TRUE)), (VLOOKUP(3,Tablas!$A$525:$G$527,4,TRUE)))))))))))), (IF($B$17>6,(IF(7-$B$19=0, (VLOOKUP(3,Tablas!$A$525:$G$527,4,TRUE)), (IF(7-$B$19=1, (VLOOKUP(3,Tablas!$A$525:$G$527,4,TRUE)), (IF(7-$B$19=2, (VLOOKUP(3,Tablas!$A$525:$G$527,4,TRUE)), (IF(7-$B$19=3, (VLOOKUP(3,Tablas!$A$525:$G$527,4,TRUE)), (IF(7-$B$19=4, (VLOOKUP(3,Tablas!$A$525:$G$527,4,TRUE)), (VLOOKUP(3,Tablas!$A$525:$G$527,4,TRUE)))))))))))), (IF($B$17=3,(IF(3-$B$19=0,0, (IF(3-$B$19=1,(VLOOKUP(1,Tablas!$A$525:$G$527,4,TRUE)), (IF(3-$B$19=2, (VLOOKUP(2,Tablas!$A$525:$G$527,4,TRUE)), (VLOOKUP(3,Tablas!$A$525:$G$527,4,TRUE)))))))), (IF($B$17=2,(IF(2-$B$19=0, 0, (IF(2-$B$19=1,(VLOOKUP(1,Tablas!$A$525:$G$527,4,TRUE)), (IF(2-$B$19=2, (VLOOKUP(2,Tablas!$A$525:$G$527,4,TRUE)), 0)))))), (IF($B$17=1,(IF(1-$B$19=0, 0, (IF(1-$B$19=1,(VLOOKUP(1,Tablas!$A$525:$G$527,4,TRUE)),0)))),0))))))))))))))))))) -> 0 | E46: =IF($B$15=1, (IF($B$17=0, 0, (IF($B$19>$B$17, (VLOOKUP($B$17,Tablas!$A$525:$G$527,5,TRUE)), (IF($B$17>4,(IF($B$19=0, (VLOOKUP(3,Tablas!$A$525:$G$527,5,TRUE)), (IF($B$19=1, (VLOOKUP(3,Tablas!$A$525:$G$527,5,TRUE)), (IF($B$19=2, (VLOOKUP(3,Tablas!$A$525:$G$527,5,TRUE)), (VLOOKUP(3,Tablas!$A$525:$G$527,5,TRUE)))))))), (IF($B$17=4,(IF(4-$B$19=0,(VLOOKUP(2,Tablas!$A$525:$G$527,5,TRUE)), (IF(4-$B$19=1,(VLOOKUP(2,Tablas!$A$525:$G$527,5,TRUE)), (IF(4-$B$19=2, (VLOOKUP(2,Tablas!$A$525:$G$527,5,TRUE)), (VLOOKUP(3,Tablas!$A$525:$G$527,5,TRUE)))))))), (IF($B$17=3,(IF(3-$B$19=0,(VLOOKUP(1,Tablas!$A$525:$G$527,5,TRUE)), (IF(3-$B$19=1,(VLOOKUP(1,Tablas!$A$525:$G$527,5,TRUE)), (IF(3-$B$19=2, (VLOOKUP(2,Tablas!$A$525:$G$527,5,TRUE)), (VLOOKUP(3,Tablas!$A$525:$G$527,5,TRUE)))))))), (IF($B$17=2,(IF(2-$B$19=0, 0, (IF(2-$B$19=1,(VLOOKUP(1,Tablas!$A$525:$G$527,5,TRUE)), (IF(2-$B$19=2, (VLOOKUP(2,Tablas!$A$525:$G$527,5,TRUE)), 0)))))), (IF($B$17=1,(IF(1-$B$19=0, 0, (IF(1-$B$19=1,(VLOOKUP(1,Tablas!$A$525:$G$527,5,TRUE)),0)))),0)))))))))))))), (IF($B$17=0, 0, (IF($B$19>$B$17, (VLOOKUP($B$17,Tablas!$A$525:$G$527,5,TRUE)), (IF($B$17=4,(IF(4-$B$19=0, 0, (IF(4-$B$19=1, (VLOOKUP(1,Tablas!$A$525:$G$527,5,TRUE)), (IF(4-$B$19=2, (VLOOKUP(2,Tablas!$A$525:$G$527,5,TRUE)), (IF(4-$B$19=3, (VLOOKUP(3,Tablas!$A$525:$G$527,5,TRUE)), (IF(4-$B$19=4, (VLOOKUP(3,Tablas!$A$525:$G$527,5,TRUE)), 0)))))))))), (IF($B$17=5,(IF(5-$B$19=0, (VLOOKUP(1,Tablas!$A$525:$G$527,5,TRUE)), (IF(5-$B$19=1, (VLOOKUP(1,Tablas!$A$525:$G$527,5,TRUE)), (IF(5-$B$19=2, (VLOOKUP(2,Tablas!$A$525:$G$527,5,TRUE)), (IF(5-$B$19=3, (VLOOKUP(3,Tablas!$A$525:$G$527,5,TRUE)), (IF(5-$B$19=4, (VLOOKUP(3,Tablas!$A$525:$G$527,5,TRUE)), (VLOOKUP(3,Tablas!$A$525:$G$527,5,TRUE)))))))))))), (IF($B$17=6,(IF(6-$B$19=0, (VLOOKUP(2,Tablas!$A$525:$G$527,5,TRUE)), (IF(6-$B$19=1, (VLOOKUP(2,Tablas!$A$525:$G$527,5,TRUE)), (IF(6-$B$19=2, (VLOOKUP(2,Tablas!$A$525:$G$527,5,TRUE)), (IF(6-$B$19=3, (VLOOKUP(3,Tablas!$A$525:$G$527,5,TRUE)), (IF(6-$B$19=4, (VLOOKUP(3,Tablas!$A$525:$G$527,5,TRUE)), (VLOOKUP(3,Tablas!$A$525:$G$527,5,TRUE)))))))))))), (IF($B$17>6,(IF(7-$B$19=0, (VLOOKUP(3,Tablas!$A$525:$G$527,5,TRUE)), (IF(7-$B$19=1, (VLOOKUP(3,Tablas!$A$525:$G$527,5,TRUE)), (IF(7-$B$19=2, (VLOOKUP(3,Tablas!$A$525:$G$527,5,TRUE)), (IF(7-$B$19=3, (VLOOKUP(3,Tablas!$A$525:$G$527,5,TRUE)), (IF(7-$B$19=4, (VLOOKUP(3,Tablas!$A$525:$G$527,5,TRUE)), (VLOOKUP(3,Tablas!$A$525:$G$527,5,TRUE)))))))))))), (IF($B$17=3,(IF(3-$B$19=0,0, (IF(3-$B$19=1,(VLOOKUP(1,Tablas!$A$525:$G$527,5,TRUE)), (IF(3-$B$19=2, (VLOOKUP(2,Tablas!$A$525:$G$527,5,TRUE)), (VLOOKUP(3,Tablas!$A$525:$G$527,5,TRUE)))))))), (IF($B$17=2,(IF(2-$B$19=0, 0, (IF(2-$B$19=1,(VLOOKUP(1,Tablas!$A$525:$G$527,5,TRUE)), (IF(2-$B$19=2, (VLOOKUP(2,Tablas!$A$525:$G$527,5,TRUE)), 0)))))), (IF($B$17=1,(IF(1-$B$19=0, 0, (IF(1-$B$19=1,(VLOOKUP(1,Tablas!$A$525:$G$527,5,TRUE)),0)))),0))))))))))))))))))) -> 0 | F46: =IF($B$15=1, (IF($B$17=0, 0, (IF($B$19>$B$17, (VLOOKUP($B$17,Tablas!$A$525:$G$527,6,TRUE)), (IF($B$17>4,(IF($B$19=0, (VLOOKUP(3,Tablas!$A$525:$G$527,6,TRUE)), (IF($B$19=1, (VLOOKUP(3,Tablas!$A$525:$G$527,6,TRUE)), (IF($B$19=2, (VLOOKUP(3,Tablas!$A$525:$G$527,6,TRUE)), (VLOOKUP(3,Tablas!$A$525:$G$527,7,TRUE)))))))), (IF($B$17=4,(IF(4-$B$19=0,(VLOOKUP(2,Tablas!$A$525:$G$527,6,TRUE)), (IF(4-$B$19=1,(VLOOKUP(2,Tablas!$A$525:$G$527,6,TRUE)), (IF(4-$B$19=2, (VLOOKUP(2,Tablas!$A$525:$G$527,6,TRUE)), (VLOOKUP(3,Tablas!$A$525:$G$527,6,TRUE)))))))), (IF($B$17=3,(IF(3-$B$19=0,(VLOOKUP(1,Tablas!$A$525:$G$527,6,TRUE)), (IF(3-$B$19=1,(VLOOKUP(1,Tablas!$A$525:$G$527,6,TRUE)), (IF(3-$B$19=2, (VLOOKUP(2,Tablas!$A$525:$G$527,6,TRUE)), (VLOOKUP(3,Tablas!$A$525:$G$527,6,TRUE)))))))), (IF($B$17=2,(IF(2-$B$19=0, 0, (IF(2-$B$19=1,(VLOOKUP(1,Tablas!$A$525:$G$527,6,TRUE)), (IF(2-$B$19=2, (VLOOKUP(2,Tablas!$A$525:$G$527,6,TRUE)), 0)))))), (IF($B$17=1,(IF(1-$B$19=0, 0, (IF(1-$B$19=1,(VLOOKUP(1,Tablas!$A$525:$G$527,6,TRUE)),0)))),0)))))))))))))), (IF($B$17=0, 0, (IF($B$19>$B$17, (VLOOKUP($B$17,Tablas!$A$525:$G$527,6,TRUE)), (IF($B$17=4,(IF(4-$B$19=0, 0, (IF(4-$B$19=1, (VLOOKUP(1,Tablas!$A$525:$G$527,6,TRUE)), (IF(4-$B$19=2, (VLOOKUP(2,Tablas!$A$525:$G$527,6,TRUE)), (IF(4-$B$19=3, (VLOOKUP(3,Tablas!$A$525:$G$527,6,TRUE)), (IF(4-$B$19=4, (VLOOKUP(3,Tablas!$A$525:$G$527,6,TRUE)), 0)))))))))), (IF($B$17=5,(IF(5-$B$19=0, (VLOOKUP(1,Tablas!$A$525:$G$527,6,TRUE)), (IF(5-$B$19=1, (VLOOKUP(1,Tablas!$A$525:$G$527,6,TRUE)), (IF(5-$B$19=2, (VLOOKUP(2,Tablas!$A$525:$G$527,6,TRUE)), (IF(5-$B$19=3, (VLOOKUP(3,Tablas!$A$525:$G$527,6,TRUE)), (IF(5-$B$19=4, (VLOOKUP(3,Tablas!$A$525:$G$527,6,TRUE)), (VLOOKUP(3,Tablas!$A$525:$G$527,7,TRUE)))))))))))), (IF($B$17=6,(IF(6-$B$19=0, (VLOOKUP(2,Tablas!$A$525:$G$527,6,TRUE)), (IF(6-$B$19=1, (VLOOKUP(2,Tablas!$A$525:$G$527,6,TRUE)), (IF(6-$B$19=2, (VLOOKUP(2,Tablas!$A$525:$G$527,6,TRUE)), (IF(6-$B$19=3, (VLOOKUP(3,Tablas!$A$525:$G$527,6,TRUE)), (IF(6-$B$19=4, (VLOOKUP(3,Tablas!$A$525:$G$527,6,TRUE)), (VLOOKUP(3,Tablas!$A$525:$G$527,7,TRUE)))))))))))), (IF($B$17>6,(IF(7-$B$19=0, (VLOOKUP(3,Tablas!$A$525:$G$527,6,TRUE)), (IF(7-$B$19=1, (VLOOKUP(3,Tablas!$A$525:$G$527,6,TRUE)), (IF(7-$B$19=2, (VLOOKUP(3,Tablas!$A$525:$G$527,6,TRUE)), (IF(7-$B$19=3, (VLOOKUP(3,Tablas!$A$525:$G$527,6,TRUE)), (IF(7-$B$19=4, (VLOOKUP(3,Tablas!$A$525:$G$527,6,TRUE)), (VLOOKUP(3,Tablas!$A$525:$G$527,6,TRUE)))))))))))), (IF($B$17=3,(IF(3-$B$19=0,0, (IF(3-$B$19=1,(VLOOKUP(1,Tablas!$A$525:$G$527,6,TRUE)), (IF(3-$B$19=2, (VLOOKUP(2,Tablas!$A$525:$G$527,6,TRUE)), (VLOOKUP(3,Tablas!$A$525:$G$527,7,TRUE)))))))), (IF($B$17=2,(IF(2-$B$19=0, 0, (IF(2-$B$19=1,(VLOOKUP(1,Tablas!$A$525:$G$527,6,TRUE)), (IF(2-$B$19=2, (VLOOKUP(2,Tablas!$A$525:$G$527,6,TRUE)), 0)))))), (IF($B$17=1,(IF(1-$B$19=0, 0, (IF(1-$B$19=1,(VLOOKUP(1,Tablas!$A$525:$G$527,6,TRUE)),0)))),0))))))))))))))))))) -> 0 | G46: =IF($B$15=1, (IF($B$17=0, 0, (IF($B$19>$B$17, (VLOOKUP($B$17,Tablas!$A$525:$G$527,7,TRUE)), (IF($B$17>4,(IF($B$19=0, (VLOOKUP(3,Tablas!$A$525:$G$527,7,TRUE)), (IF($B$19=1, (VLOOKUP(3,Tablas!$A$525:$G$527,7,TRUE)), (IF($B$19=2, (VLOOKUP(3,Tablas!$A$525:$G$527,7,TRUE)), (VLOOKUP(3,Tablas!$A$525:$G$527,7,TRUE)))))))), (IF($B$17=4,(IF(4-$B$19=0,(VLOOKUP(2,Tablas!$A$525:$G$527,7,TRUE)), (IF(4-$B$19=1,(VLOOKUP(2,Tablas!$A$525:$G$527,7,TRUE)), (IF(4-$B$19=2, (VLOOKUP(2,Tablas!$A$525:$G$527,7,TRUE)), (VLOOKUP(3,Tablas!$A$525:$G$527,7,TRUE)))))))), (IF($B$17=3,(IF(3-$B$19=0,(VLOOKUP(1,Tablas!$A$525:$G$527,7,TRUE)), (IF(3-$B$19=1,(VLOOKUP(1,Tablas!$A$525:$G$527,7,TRUE)), (IF(3-$B$19=2, (VLOOKUP(2,Tablas!$A$525:$G$527,7,TRUE)), (VLOOKUP(3,Tablas!$A$525:$G$527,7,TRUE)))))))), (IF($B$17=2,(IF(2-$B$19=0, 0, (IF(2-$B$19=1,(VLOOKUP(1,Tablas!$A$525:$G$527,7,TRUE)), (IF(2-$B$19=2, (VLOOKUP(2,Tablas!$A$525:$G$527,7,TRUE)), 0)))))), (IF($B$17=1,(IF(1-$B$19=0, 0, (IF(1-$B$19=1,(VLOOKUP(1,Tablas!$A$525:$G$527,7,TRUE)),0)))),0)))))))))))))), (IF($B$17=0, 0, (IF($B$19>$B$17, (VLOOKUP($B$17,Tablas!$A$525:$G$527,7,TRUE)), (IF($B$17=4,(IF(4-$B$19=0, 0, (IF(4-$B$19=1, (VLOOKUP(1,Tablas!$A$525:$G$527,7,TRUE)), (IF(4-$B$19=2, (VLOOKUP(2,Tablas!$A$525:$G$527,7,TRUE)), (IF(4-$B$19=3, (VLOOKUP(3,Tablas!$A$525:$G$527,7,TRUE)), (IF(4-$B$19=4, (VLOOKUP(3,Tablas!$A$525:$G$527,7,TRUE)), 0)))))))))), (IF($B$17=5,(IF(5-$B$19=0, (VLOOKUP(1,Tablas!$A$525:$G$527,7,TRUE)), (IF(5-$B$19=1, (VLOOKUP(1,Tablas!$A$525:$G$527,7,TRUE)), (IF(5-$B$19=2, (VLOOKUP(2,Tablas!$A$525:$G$527,7,TRUE)), (IF(5-$B$19=3, (VLOOKUP(3,Tablas!$A$525:$G$527,7,TRUE)), (IF(5-$B$19=4, (VLOOKUP(3,Tablas!$A$525:$G$527,7,TRUE)), (VLOOKUP(3,Tablas!$A$525:$G$527,7,TRUE)))))))))))), (IF($B$17=6,(IF(6-$B$19=0, (VLOOKUP(2,Tablas!$A$525:$G$527,7,TRUE)), (IF(6-$B$19=1, (VLOOKUP(2,Tablas!$A$525:$G$527,7,TRUE)), (IF(6-$B$19=2, (VLOOKUP(2,Tablas!$A$525:$G$527,7,TRUE)), (IF(6-$B$19=3, (VLOOKUP(3,Tablas!$A$525:$G$527,7,TRUE)), (IF(6-$B$19=4, (VLOOKUP(3,Tablas!$A$525:$G$527,7,TRUE)), (VLOOKUP(3,Tablas!$A$525:$G$527,7,TRUE)))))))))))), (IF($B$17>6,(IF(7-$B$19=0, (VLOOKUP(3,Tablas!$A$525:$G$527,7,TRUE)), (IF(7-$B$19=1, (VLOOKUP(3,Tablas!$A$525:$G$527,7,TRUE)), (IF(7-$B$19=2, (VLOOKUP(3,Tablas!$A$525:$G$527,7,TRUE)), (IF(7-$B$19=3, (VLOOKUP(3,Tablas!$A$525:$G$527,7,TRUE)), (IF(7-$B$19=4, (VLOOKUP(3,Tablas!$A$525:$G$527,7,TRUE)), (VLOOKUP(3,Tablas!$A$525:$G$527,7,TRUE)))))))))))), (IF($B$17=3,(IF(3-$B$19=0,0, (IF(3-$B$19=1,(VLOOKUP(1,Tablas!$A$525:$G$527,7,TRUE)), (IF(3-$B$19=2, (VLOOKUP(2,Tablas!$A$525:$G$527,7,TRUE)), (VLOOKUP(3,Tablas!$A$525:$G$527,7,TRUE)))))))), (IF($B$17=2,(IF(2-$B$19=0, 0, (IF(2-$B$19=1,(VLOOKUP(1,Tablas!$A$525:$G$527,7,TRUE)), (IF(2-$B$19=2, (VLOOKUP(2,Tablas!$A$525:$G$527,7,TRUE)), 0)))))), (IF($B$17=1,(IF(1-$B$19=0, 0, (IF(1-$B$19=1,(VLOOKUP(1,Tablas!$A$525:$G$527,7,TRUE)),0)))),0))))))))))))))))))) -> 0
A47: Total de Prima neta | C47: =SUM(C44:C46) -> 7807.165 | D47: =SUM(D44:D46) -> 5515.021 | E47: 4426.613 | F47: 3838.26 | G47: 2925.0965
A48: Ajuste por la variante con coaseguro fuera del país de residencia | C48: =IF('INGRESO DE DATOS'!$P$3,C47*-15%,0) -> 0 | D48: =IF('INGRESO DE DATOS'!$P$3,D47*-15%,0) -> 0 | E48: =IF('INGRESO DE DATOS'!$P$3,E47*-15%,0) -> 0 | F48: =IF('INGRESO DE DATOS'!$P$3,F47*-15%,0) -> 0 | G48: =IF('INGRESO DE DATOS'!$P$3,G47*-15%,0) -> 0
A49: Tarifa administrativa anual | C49: 75 | D49: 75 | E49: 75 | F49: 75 | G49: 75
A50: VAT (5%) : | C50: =(C32+C33+C34+C36)*5%/2 -> 368.2625 | D50: =(D32+D33+D34+D36)*5%/2 -> 260.1425 | E50: 208.8025 | F50: 181.05 | G50: 137.97625
A51: ITBMS (7%) | C51: =+C49*7%+ ((C32+C33+C34+C36)*0.06*0.07)/2 -> 36.18405 | D51: =+D49*7%+ ((D32+D33+D34+D36)*0.06*0.07)/2 -> 27.10197 | E51: 22.78941 | F51: 20.4582 | G51: 16.840005
A52: TOTAL de primera cuota | C52: =SUM(C47:C51) -> 8286.61155 | D52: =SUM(D47:D51) -> 5877.26547 | E52: 4733.20491 | F52: 4114.7682 | G52: 3154.912755
A53: Costo de segunda cuota | C53: =((C47+C48)+ C50)+((C32+C33+C34+C36)*0.06*0.07)/2 -> 8206.36155 | D53: =((D47+D48)+ D50)+((D32+D33+D34+D36)*0.06*0.07)/2 -> 5797.01547 | E53: 4652.95491 | F53: 4034.5182 | G53: 3074.662755
A54: TOTAL ANUAL | C54: =C52+C53 -> 16492.9731 | D54: =D52+D53 -> 11674.28094 | E54: 9386.15982 | F54: =F52+F53 -> 8149.2864 | G54: 6229.57551
A55: Ahorros en tarifas de prima para Dependientes | C55: =IF($B$15=1,IF($B$17=0,0,IF($B$19=0,0,IF($B$19=1,(VLOOKUP(1,Tablas!$A$525:$G$527,3,TRUE)),(VLOOKUP(2,Tablas!$A$525:$G$527,3,TRUE))))), IF($B$17=0,0,IF($B$19=0,0,IF($B$19=1,(VLOOKUP(1,Tablas!$A$525:$G$527,3,TRUE)),IF($B$19=2,(VLOOKUP(2,Tablas!$A$525:$G$527,3,TRUE)), (VLOOKUP(3,Tablas!$A$525:$G$527,3,TRUE))))))) -> 0 | D55: =IF($B$15=1,IF($B$17=0,0,IF($B$19=0,0,IF($B$19=1,(VLOOKUP(1,Tablas!$A$525:$G$527,4,TRUE)),(VLOOKUP(2,Tablas!$A$525:$G$527,4,TRUE))))), IF($B$17=0,0,IF($B$19=0,0,IF($B$19=1,(VLOOKUP(1,Tablas!$A$525:$G$527,4,TRUE)),IF($B$19=2,(VLOOKUP(2,Tablas!$A$525:$G$527,4,TRUE)), (VLOOKUP(3,Tablas!$A$525:$G$527,4,TRUE))))))) -> 0 | E55: =IF($B$15=1,IF($B$17=0,0,IF($B$19=0,0,IF($B$19=1,(VLOOKUP(1,Tablas!$A$525:$G$527,5,TRUE)),(VLOOKUP(2,Tablas!$A$525:$G$527,5,TRUE))))), IF($B$17=0,0,IF($B$19=0,0,IF($B$19=1,(VLOOKUP(1,Tablas!$A$525:$G$527,5,TRUE)),IF($B$19=2,(VLOOKUP(2,Tablas!$A$525:$G$527,5,TRUE)), (VLOOKUP(3,Tablas!$A$525:$G$527,5,TRUE))))))) -> 0 | F55: =IF($B$15=1,IF($B$17=0,0,IF($B$19=0,0,IF($B$19=1,(VLOOKUP(1,Tablas!$A$525:$G$527,7,TRUE)),(VLOOKUP(2,Tablas!$A$525:$G$527,7,TRUE))))), IF($B$17=0,0,IF($B$19=0,0,IF($B$19=1,(VLOOKUP(1,Tablas!$A$525:$G$527,7,TRUE)),IF($B$19=2,(VLOOKUP(2,Tablas!$A$525:$G$527,7,TRUE)), (VLOOKUP(3,Tablas!$A$525:$G$527,7,TRUE))))))) -> 0 | G55: =IF($B$15=1,IF($B$17=0,0,IF($B$19=0,0,IF($B$19=1,(VLOOKUP(1,Tablas!$A$525:$G$527,7,TRUE)),(VLOOKUP(2,Tablas!$A$525:$G$527,7,TRUE))))), IF($B$17=0,0,IF($B$19=0,0,IF($B$19=1,(VLOOKUP(1,Tablas!$A$525:$G$527,7,TRUE)),IF($B$19=2,(VLOOKUP(2,Tablas!$A$525:$G$527,7,TRUE)), (VLOOKUP(3,Tablas!$A$525:$G$527,7,TRUE))))))) -> 0
A57: TARIFAS TRIMESTRALES
A58: Prima para Asegurado Titular | C58: =VLOOKUP($B$21,Tablas!$A$685:$G$751,3,TRUE) -> 4050.8875 | D58: =VLOOKUP($B$21,Tablas!$A$685:$G$751,4,TRUE) -> 2861.5675 | E58: =VLOOKUP($B$21,Tablas!$A$685:$G$751,5,TRUE) -> 2296.8275 | F58: =VLOOKUP($B$21,Tablas!$A$685:$G$751,6,TRUE) -> 1991.55 | G58: =VLOOKUP($B$21,Tablas!$A$685:$G$751,7,TRUE) -> 1517.73875
A59: Prima para conyuge | C59: =IF($B$15=1,0,(VLOOKUP($G$21,Tablas!$A$685:$G$751,3,TRUE))) -> 0 | D59: =IF($B$15=1,0,(VLOOKUP($G$21,Tablas!$A$685:$G$751,4,TRUE))) -> 0 | E59: =IF($B$15=1,0,(VLOOKUP($G$21,Tablas!$A$685:$G$751,5,TRUE))) -> 0 | F59: =IF($B$15=1,0,(VLOOKUP($G$21,Tablas!$A$685:$G$751,6,TRUE))) -> 0 | G59: =IF($B$15=1,0,(VLOOKUP($G$21,Tablas!$A$685:$G$751,7,TRUE))) -> 0
A60: Prima para hijo (s) | C60: =IF($B$15=1, (IF($B$17=0, 0, (IF($B$19>$B$17, (VLOOKUP($B$17,Tablas!$A$752:$G$754,3,TRUE)), (IF($B$17>4,(IF($B$19=0, (VLOOKUP(3,Tablas!$A$752:$G$754,3,TRUE)), (IF($B$19=1, (VLOOKUP(3,Tablas!$A$752:$G$754,3,TRUE)), (IF($B$19=2, (VLOOKUP(3,Tablas!$A$752:$G$754,3,TRUE)), (VLOOKUP(3,Tablas!$A$752:$G$754,3,TRUE)))))))), (IF($B$17=4,(IF(4-$B$19=0,(VLOOKUP(2,Tablas!$A$752:$G$754,3,TRUE)), (IF(4-$B$19=1,(VLOOKUP(2,Tablas!$A$752:$G$754,3,TRUE)), (IF(4-$B$19=2, (VLOOKUP(2,Tablas!$A$752:$G$754,3,TRUE)), (VLOOKUP(3,Tablas!$A$752:$G$754,3,TRUE)))))))), (IF($B$17=3,(IF(3-$B$19=0,(VLOOKUP(1,Tablas!$A$752:$G$754,3,TRUE)), (IF(3-$B$19=1,(VLOOKUP(1,Tablas!$A$752:$G$754,3,TRUE)), (IF(3-$B$19=2, (VLOOKUP(2,Tablas!$A$752:$G$754,3,TRUE)), (VLOOKUP(3,Tablas!$A$752:$G$754,3,TRUE)))))))), (IF($B$17=2,(IF(2-$B$19=0, 0, (IF(2-$B$19=1,(VLOOKUP(1,Tablas!$A$752:$G$754,3,TRUE)), (IF(2-$B$19=2, (VLOOKUP(2,Tablas!$A$752:$G$754,3,TRUE)), 0)))))), (IF($B$17=1,(IF(1-$B$19=0, 0, (IF(1-$B$19=1,(VLOOKUP(1,Tablas!$A$752:$G$754,3,TRUE)),0)))),0)))))))))))))), (IF($B$17=0, 0, (IF($B$19>$B$17, (VLOOKUP($B$17,Tablas!$A$752:$G$754,3,TRUE)), (IF($B$17=4,(IF(4-$B$19=0, 0, (IF(4-$B$19=1, (VLOOKUP(1,Tablas!$A$752:$G$754,3,TRUE)), (IF(4-$B$19=2, (VLOOKUP(2,Tablas!$A$752:$G$754,3,TRUE)), (IF(4-$B$19=3, (VLOOKUP(3,Tablas!$A$752:$G$754,3,TRUE)), (IF(4-$B$19=4, (VLOOKUP(3,Tablas!$A$752:$G$754,3,TRUE)), 0)))))))))), (IF($B$17=5,(IF(5-$B$19=0, (VLOOKUP(1,Tablas!$A$752:$G$754,3,TRUE)), (IF(5-$B$19=1, (VLOOKUP(1,Tablas!$A$752:$G$754,3,TRUE)), (IF(5-$B$19=2, (VLOOKUP(2,Tablas!$A$752:$G$754,3,TRUE)), (IF(5-$B$19=3, (VLOOKUP(3,Tablas!$A$752:$G$754,3,TRUE)), (IF(5-$B$19=4, (VLOOKUP(3,Tablas!$A$752:$G$754,3,TRUE)), (VLOOKUP(3,Tablas!$A$752:$G$754,3,TRUE)))))))))))), (IF($B$17=6,(IF(6-$B$19=0, (VLOOKUP(2,Tablas!$A$752:$G$754,3,TRUE)), (IF(6-$B$19=1, (VLOOKUP(2,Tablas!$A$752:$G$754,3,TRUE)), (IF(6-$B$19=2, (VLOOKUP(2,Tablas!$A$752:$G$754,3,TRUE)), (IF(6-$B$19=3, (VLOOKUP(3,Tablas!$A$752:$G$754,3,TRUE)), (IF(6-$B$19=4, (VLOOKUP(3,Tablas!$A$752:$G$754,3,TRUE)), (VLOOKUP(3,Tablas!$A$752:$G$754,3,TRUE)))))))))))), (IF($B$17>6,(IF(7-$B$19=0, (VLOOKUP(3,Tablas!$A$752:$G$754,3,TRUE)), (IF(7-$B$19=1, (VLOOKUP(3,Tablas!$A$752:$G$754,3,TRUE)), (IF(7-$B$19=2, (VLOOKUP(3,Tablas!$A$752:$G$754,3,TRUE)), (IF(7-$B$19=3, (VLOOKUP(3,Tablas!$A$752:$G$754,3,TRUE)), (IF(7-$B$19=4, (VLOOKUP(3,Tablas!$A$752:$G$754,3,TRUE)), (VLOOKUP(3,Tablas!$A$752:$G$754,3,TRUE)))))))))))), (IF($B$17=3,(IF(3-$B$19=0,0, (IF(3-$B$19=1,(VLOOKUP(1,Tablas!$A$752:$G$754,3,TRUE)), (IF(3-$B$19=2, (VLOOKUP(2,Tablas!$A$752:$G$754,3,TRUE)), (VLOOKUP(3,Tablas!$A$752:$G$754,3,TRUE)))))))), (IF($B$17=2,(IF(2-$B$19=0, 0, (IF(2-$B$19=1,(VLOOKUP(1,Tablas!$A$752:$G$754,3,TRUE)), (IF(2-$B$19=2, (VLOOKUP(2,Tablas!$A$752:$G$754,3,TRUE)), 0)))))), (IF($B$17=1,(IF(1-$B$19=0, 0, (IF(1-$B$19=1,(VLOOKUP(1,Tablas!$A$752:$G$754,3,TRUE)),0)))),0))))))))))))))))))) -> 0 | D60: =IF($B$15=1, (IF($B$17=0, 0, (IF($B$19>$B$17, (VLOOKUP($B$17,Tablas!$A$752:$G$754,4,TRUE)), (IF($B$17>4,(IF($B$19=0, (VLOOKUP(3,Tablas!$A$752:$G$754,4,TRUE)), (IF($B$19=1, (VLOOKUP(3,Tablas!$A$752:$G$754,4,TRUE)), (IF($B$19=2, (VLOOKUP(3,Tablas!$A$752:$G$754,4,TRUE)), (VLOOKUP(3,Tablas!$A$752:$G$754,4,TRUE)))))))), (IF($B$17=4,(IF(4-$B$19=0,(VLOOKUP(2,Tablas!$A$752:$G$754,4,TRUE)), (IF(4-$B$19=1,(VLOOKUP(2,Tablas!$A$752:$G$754,4,TRUE)), (IF(4-$B$19=2, (VLOOKUP(2,Tablas!$A$752:$G$754,4,TRUE)), (VLOOKUP(3,Tablas!$A$752:$G$754,4,TRUE)))))))), (IF($B$17=3,(IF(3-$B$19=0,(VLOOKUP(1,Tablas!$A$752:$G$754,4,TRUE)), (IF(3-$B$19=1,(VLOOKUP(1,Tablas!$A$752:$G$754,4,TRUE)), (IF(3-$B$19=2, (VLOOKUP(2,Tablas!$A$752:$G$754,4,TRUE)), (VLOOKUP(3,Tablas!$A$752:$G$754,4,TRUE)))))))), (IF($B$17=2,(IF(2-$B$19=0, 0, (IF(2-$B$19=1,(VLOOKUP(1,Tablas!$A$752:$G$754,4,TRUE)), (IF(2-$B$19=2, (VLOOKUP(2,Tablas!$A$752:$G$754,4,TRUE)), 0)))))), (IF($B$17=1,(IF(1-$B$19=0, 0, (IF(1-$B$19=1,(VLOOKUP(1,Tablas!$A$752:$G$754,4,TRUE)),0)))),0)))))))))))))), (IF($B$17=0, 0, (IF($B$19>$B$17, (VLOOKUP($B$17,Tablas!$A$752:$G$754,4,TRUE)), (IF($B$17=4,(IF(4-$B$19=0, 0, (IF(4-$B$19=1, (VLOOKUP(1,Tablas!$A$752:$G$754,4,TRUE)), (IF(4-$B$19=2, (VLOOKUP(2,Tablas!$A$752:$G$754,4,TRUE)), (IF(4-$B$19=3, (VLOOKUP(3,Tablas!$A$752:$G$754,4,TRUE)), (IF(4-$B$19=4, (VLOOKUP(3,Tablas!$A$752:$G$754,4,TRUE)), 0)))))))))), (IF($B$17=5,(IF(5-$B$19=0, (VLOOKUP(1,Tablas!$A$752:$G$754,4,TRUE)), (IF(5-$B$19=1, (VLOOKUP(1,Tablas!$A$752:$G$754,4,TRUE)), (IF(5-$B$19=2, (VLOOKUP(2,Tablas!$A$752:$G$754,4,TRUE)), (IF(5-$B$19=3, (VLOOKUP(3,Tablas!$A$752:$G$754,4,TRUE)), (IF(5-$B$19=4, (VLOOKUP(3,Tablas!$A$752:$G$754,4,TRUE)), (VLOOKUP(3,Tablas!$A$752:$G$754,4,TRUE)))))))))))), (IF($B$17=6,(IF(6-$B$19=0, (VLOOKUP(2,Tablas!$A$752:$G$754,4,TRUE)), (IF(6-$B$19=1, (VLOOKUP(2,Tablas!$A$752:$G$754,4,TRUE)), (IF(6-$B$19=2, (VLOOKUP(2,Tablas!$A$752:$G$754,4,TRUE)), (IF(6-$B$19=3, (VLOOKUP(3,Tablas!$A$752:$G$754,4,TRUE)), (IF(6-$B$19=4, (VLOOKUP(3,Tablas!$A$752:$G$754,4,TRUE)), (VLOOKUP(3,Tablas!$A$752:$G$754,4,TRUE)))))))))))), (IF($B$17>6,(IF(7-$B$19=0, (VLOOKUP(3,Tablas!$A$752:$G$754,4,TRUE)), (IF(7-$B$19=1, (VLOOKUP(3,Tablas!$A$752:$G$754,4,TRUE)), (IF(7-$B$19=2, (VLOOKUP(3,Tablas!$A$752:$G$754,4,TRUE)), (IF(7-$B$19=3, (VLOOKUP(3,Tablas!$A$752:$G$754,4,TRUE)), (IF(7-$B$19=4, (VLOOKUP(3,Tablas!$A$752:$G$754,4,TRUE)), (VLOOKUP(3,Tablas!$A$752:$G$754,4,TRUE)))))))))))), (IF($B$17=3,(IF(3-$B$19=0,0, (IF(3-$B$19=1,(VLOOKUP(1,Tablas!$A$752:$G$754,4,TRUE)), (IF(3-$B$19=2, (VLOOKUP(2,Tablas!$A$752:$G$754,4,TRUE)), (VLOOKUP(3,Tablas!$A$752:$G$754,4,TRUE)))))))), (IF($B$17=2,(IF(2-$B$19=0, 0, (IF(2-$B$19=1,(VLOOKUP(1,Tablas!$A$752:$G$754,4,TRUE)), (IF(2-$B$19=2, (VLOOKUP(2,Tablas!$A$752:$G$754,4,TRUE)), 0)))))), (IF($B$17=1,(IF(1-$B$19=0, 0, (IF(1-$B$19=1,(VLOOKUP(1,Tablas!$A$752:$G$754,4,TRUE)),0)))),0))))))))))))))))))) -> 0 | E60: =IF($B$15=1, (IF($B$17=0, 0, (IF($B$19>$B$17, (VLOOKUP($B$17,Tablas!$A$752:$G$754,5,TRUE)), (IF($B$17>4,(IF($B$19=0, (VLOOKUP(3,Tablas!$A$752:$G$754,5,TRUE)), (IF($B$19=1, (VLOOKUP(3,Tablas!$A$752:$G$754,5,TRUE)), (IF($B$19=2, (VLOOKUP(3,Tablas!$A$752:$G$754,5,TRUE)), (VLOOKUP(3,Tablas!$A$752:$G$754,5,TRUE)))))))), (IF($B$17=4,(IF(4-$B$19=0,(VLOOKUP(2,Tablas!$A$752:$G$754,5,TRUE)), (IF(4-$B$19=1,(VLOOKUP(2,Tablas!$A$752:$G$754,5,TRUE)), (IF(4-$B$19=2, (VLOOKUP(2,Tablas!$A$752:$G$754,5,TRUE)), (VLOOKUP(3,Tablas!$A$752:$G$754,5,TRUE)))))))), (IF($B$17=3,(IF(3-$B$19=0,(VLOOKUP(1,Tablas!$A$752:$G$754,5,TRUE)), (IF(3-$B$19=1,(VLOOKUP(1,Tablas!$A$752:$G$754,5,TRUE)), (IF(3-$B$19=2, (VLOOKUP(2,Tablas!$A$752:$G$754,5,TRUE)), (VLOOKUP(3,Tablas!$A$752:$G$754,5,TRUE)))))))), (IF($B$17=2,(IF(2-$B$19=0, 0, (IF(2-$B$19=1,(VLOOKUP(1,Tablas!$A$752:$G$754,5,TRUE)), (IF(2-$B$19=2, (VLOOKUP(2,Tablas!$A$752:$G$754,5,TRUE)), 0)))))), (IF($B$17=1,(IF(1-$B$19=0, 0, (IF(1-$B$19=1,(VLOOKUP(1,Tablas!$A$752:$G$754,5,TRUE)),0)))),0)))))))))))))), (IF($B$17=0, 0, (IF($B$19>$B$17, (VLOOKUP($B$17,Tablas!$A$752:$G$754,5,TRUE)), (IF($B$17=4,(IF(4-$B$19=0, 0, (IF(4-$B$19=1, (VLOOKUP(1,Tablas!$A$752:$G$754,5,TRUE)), (IF(4-$B$19=2, (VLOOKUP(2,Tablas!$A$752:$G$754,5,TRUE)), (IF(4-$B$19=3, (VLOOKUP(3,Tablas!$A$752:$G$754,5,TRUE)), (IF(4-$B$19=4, (VLOOKUP(3,Tablas!$A$752:$G$754,5,TRUE)), 0)))))))))), (IF($B$17=5,(IF(5-$B$19=0, (VLOOKUP(1,Tablas!$A$752:$G$754,5,TRUE)), (IF(5-$B$19=1, (VLOOKUP(1,Tablas!$A$752:$G$754,5,TRUE)), (IF(5-$B$19=2, (VLOOKUP(2,Tablas!$A$752:$G$754,5,TRUE)), (IF(5-$B$19=3, (VLOOKUP(3,Tablas!$A$752:$G$754,5,TRUE)), (IF(5-$B$19=4, (VLOOKUP(3,Tablas!$A$752:$G$754,5,TRUE)), (VLOOKUP(3,Tablas!$A$752:$G$754,5,TRUE)))))))))))), (IF($B$17=6,(IF(6-$B$19=0, (VLOOKUP(2,Tablas!$A$752:$G$754,5,TRUE)), (IF(6-$B$19=1, (VLOOKUP(2,Tablas!$A$752:$G$754,5,TRUE)), (IF(6-$B$19=2, (VLOOKUP(2,Tablas!$A$752:$G$754,5,TRUE)), (IF(6-$B$19=3, (VLOOKUP(3,Tablas!$A$752:$G$754,5,TRUE)), (IF(6-$B$19=4, (VLOOKUP(3,Tablas!$A$752:$G$754,5,TRUE)), (VLOOKUP(3,Tablas!$A$752:$G$754,5,TRUE)))))))))))), (IF($B$17>6,(IF(7-$B$19=0, (VLOOKUP(3,Tablas!$A$752:$G$754,5,TRUE)), (IF(7-$B$19=1, (VLOOKUP(3,Tablas!$A$752:$G$754,5,TRUE)), (IF(7-$B$19=2, (VLOOKUP(3,Tablas!$A$752:$G$754,5,TRUE)), (IF(7-$B$19=3, (VLOOKUP(3,Tablas!$A$752:$G$754,5,TRUE)), (IF(7-$B$19=4, (VLOOKUP(3,Tablas!$A$752:$G$754,5,TRUE)), (VLOOKUP(3,Tablas!$A$752:$G$754,5,TRUE)))))))))))), (IF($B$17=3,(IF(3-$B$19=0,0, (IF(3-$B$19=1,(VLOOKUP(1,Tablas!$A$752:$G$754,5,TRUE)), (IF(3-$B$19=2, (VLOOKUP(2,Tablas!$A$752:$G$754,5,TRUE)), (VLOOKUP(3,Tablas!$A$752:$G$754,5,TRUE)))))))), (IF($B$17=2,(IF(2-$B$19=0, 0, (IF(2-$B$19=1,(VLOOKUP(1,Tablas!$A$752:$G$754,5,TRUE)), (IF(2-$B$19=2, (VLOOKUP(2,Tablas!$A$752:$G$754,5,TRUE)), 0)))))), (IF($B$17=1,(IF(1-$B$19=0, 0, (IF(1-$B$19=1,(VLOOKUP(1,Tablas!$A$752:$G$754,5,TRUE)),0)))),0))))))))))))))))))) -> 0 | F60: =IF($B$15=1, (IF($B$17=0, 0, (IF($B$19>$B$17, (VLOOKUP($B$17,Tablas!$A$752:$G$754,6,TRUE)), (IF($B$17>4,(IF($B$19=0, (VLOOKUP(3,Tablas!$A$752:$G$754,6,TRUE)), (IF($B$19=1, (VLOOKUP(3,Tablas!$A$752:$G$754,6,TRUE)), (IF($B$19=2, (VLOOKUP(3,Tablas!$A$752:$G$754,6,TRUE)), (VLOOKUP(3,Tablas!$A$752:$G$754,6,TRUE)))))))), (IF($B$17=4,(IF(4-$B$19=0,(VLOOKUP(2,Tablas!$A$752:$G$754,6,TRUE)), (IF(4-$B$19=1,(VLOOKUP(2,Tablas!$A$752:$G$754,6,TRUE)), (IF(4-$B$19=2, (VLOOKUP(2,Tablas!$A$752:$G$754,6,TRUE)), (VLOOKUP(3,Tablas!$A$752:$G$754,6,TRUE)))))))), (IF($B$17=3,(IF(3-$B$19=0,(VLOOKUP(1,Tablas!$A$752:$G$754,6,TRUE)), (IF(3-$B$19=1,(VLOOKUP(1,Tablas!$A$752:$G$754,6,TRUE)), (IF(3-$B$19=2, (VLOOKUP(2,Tablas!$A$752:$G$754,6,TRUE)), (VLOOKUP(3,Tablas!$A$752:$G$754,6,TRUE)))))))), (IF($B$17=2,(IF(2-$B$19=0, 0, (IF(2-$B$19=1,(VLOOKUP(1,Tablas!$A$752:$G$754,6,TRUE)), (IF(2-$B$19=2, (VLOOKUP(2,Tablas!$A$752:$G$754,6,TRUE)), 0)))))), (IF($B$17=1,(IF(1-$B$19=0, 0, (IF(1-$B$19=1,(VLOOKUP(1,Tablas!$A$752:$G$754,6,TRUE)),0)))),0)))))))))))))), (IF($B$17=0, 0, (IF($B$19>$B$17, (VLOOKUP($B$17,Tablas!$A$752:$G$754,6,TRUE)), (IF($B$17=4,(IF(4-$B$19=0, 0, (IF(4-$B$19=1, (VLOOKUP(1,Tablas!$A$752:$G$754,6,TRUE)), (IF(4-$B$19=2, (VLOOKUP(2,Tablas!$A$752:$G$754,6,TRUE)), (IF(4-$B$19=3, (VLOOKUP(3,Tablas!$A$752:$G$754,6,TRUE)), (IF(4-$B$19=4, (VLOOKUP(3,Tablas!$A$752:$G$754,6,TRUE)), 0)))))))))), (IF($B$17=5,(IF(5-$B$19=0, (VLOOKUP(1,Tablas!$A$752:$G$754,6,TRUE)), (IF(5-$B$19=1, (VLOOKUP(1,Tablas!$A$752:$G$754,6,TRUE)), (IF(5-$B$19=2, (VLOOKUP(2,Tablas!$A$752:$G$754,6,TRUE)), (IF(5-$B$19=3, (VLOOKUP(3,Tablas!$A$752:$G$754,6,TRUE)), (IF(5-$B$19=4, (VLOOKUP(3,Tablas!$A$752:$G$754,6,TRUE)), (VLOOKUP(3,Tablas!$A$752:$G$754,6,TRUE)))))))))))), (IF($B$17=6,(IF(6-$B$19=0, (VLOOKUP(2,Tablas!$A$752:$G$754,6,TRUE)), (IF(6-$B$19=1, (VLOOKUP(2,Tablas!$A$752:$G$754,6,TRUE)), (IF(6-$B$19=2, (VLOOKUP(2,Tablas!$A$752:$G$754,6,TRUE)), (IF(6-$B$19=3, (VLOOKUP(3,Tablas!$A$752:$G$754,6,TRUE)), (IF(6-$B$19=4, (VLOOKUP(3,Tablas!$A$752:$G$754,6,TRUE)), (VLOOKUP(3,Tablas!$A$752:$G$754,6,TRUE)))))))))))), (IF($B$17>6,(IF(7-$B$19=0, (VLOOKUP(3,Tablas!$A$752:$G$754,6,TRUE)), (IF(7-$B$19=1, (VLOOKUP(3,Tablas!$A$752:$G$754,6,TRUE)), (IF(7-$B$19=2, (VLOOKUP(3,Tablas!$A$752:$G$754,6,TRUE)), (IF(7-$B$19=3, (VLOOKUP(3,Tablas!$A$752:$G$754,6,TRUE)), (IF(7-$B$19=4, (VLOOKUP(3,Tablas!$A$752:$G$754,6,TRUE)), (VLOOKUP(3,Tablas!$A$752:$G$754,6,TRUE)))))))))))), (IF($B$17=3,(IF(3-$B$19=0,0, (IF(3-$B$19=1,(VLOOKUP(1,Tablas!$A$752:$G$754,6,TRUE)), (IF(3-$B$19=2, (VLOOKUP(2,Tablas!$A$752:$G$754,6,TRUE)), (VLOOKUP(3,Tablas!$A$752:$G$754,6,TRUE)))))))), (IF($B$17=2,(IF(2-$B$19=0, 0, (IF(2-$B$19=1,(VLOOKUP(1,Tablas!$A$752:$G$754,6,TRUE)), (IF(2-$B$19=2, (VLOOKUP(2,Tablas!$A$752:$G$754,6,TRUE)), 0)))))), (IF($B$17=1,(IF(1-$B$19=0, 0, (IF(1-$B$19=1,(VLOOKUP(1,Tablas!$A$752:$G$754,6,TRUE)),0)))),0))))))))))))))))))) -> 0 | G60: =IF($B$15=1, (IF($B$17=0, 0, (IF($B$19>$B$17, (VLOOKUP($B$17,Tablas!$A$752:$G$754,7,TRUE)), (IF($B$17>4,(IF($B$19=0, (VLOOKUP(3,Tablas!$A$752:$G$754,7,TRUE)), (IF($B$19=1, (VLOOKUP(3,Tablas!$A$752:$G$754,7,TRUE)), (IF($B$19=2, (VLOOKUP(3,Tablas!$A$752:$G$754,7,TRUE)), (VLOOKUP(3,Tablas!$A$752:$G$754,7,TRUE)))))))), (IF($B$17=4,(IF(4-$B$19=0,(VLOOKUP(2,Tablas!$A$752:$G$754,7,TRUE)), (IF(4-$B$19=1,(VLOOKUP(2,Tablas!$A$752:$G$754,7,TRUE)), (IF(4-$B$19=2, (VLOOKUP(2,Tablas!$A$752:$G$754,7,TRUE)), (VLOOKUP(3,Tablas!$A$752:$G$754,7,TRUE)))))))), (IF($B$17=3,(IF(3-$B$19=0,(VLOOKUP(1,Tablas!$A$752:$G$754,7,TRUE)), (IF(3-$B$19=1,(VLOOKUP(1,Tablas!$A$752:$G$754,7,TRUE)), (IF(3-$B$19=2, (VLOOKUP(2,Tablas!$A$752:$G$754,7,TRUE)), (VLOOKUP(3,Tablas!$A$752:$G$754,7,TRUE)))))))), (IF($B$17=2,(IF(2-$B$19=0, 0, (IF(2-$B$19=1,(VLOOKUP(1,Tablas!$A$752:$G$754,7,TRUE)), (IF(2-$B$19=2, (VLOOKUP(2,Tablas!$A$752:$G$754,7,TRUE)), 0)))))), (IF($B$17=1,(IF(1-$B$19=0, 0, (IF(1-$B$19=1,(VLOOKUP(1,Tablas!$A$752:$G$754,7,TRUE)),0)))),0)))))))))))))), (IF($B$17=0, 0, (IF($B$19>$B$17, (VLOOKUP($B$17,Tablas!$A$752:$G$754,7,TRUE)), (IF($B$17=4,(IF(4-$B$19=0, 0, (IF(4-$B$19=1, (VLOOKUP(1,Tablas!$A$752:$G$754,7,TRUE)), (IF(4-$B$19=2, (VLOOKUP(2,Tablas!$A$752:$G$754,7,TRUE)), (IF(4-$B$19=3, (VLOOKUP(3,Tablas!$A$752:$G$754,7,TRUE)), (IF(4-$B$19=4, (VLOOKUP(3,Tablas!$A$752:$G$754,7,TRUE)), 0)))))))))), (IF($B$17=5,(IF(5-$B$19=0, (VLOOKUP(1,Tablas!$A$752:$G$754,7,TRUE)), (IF(5-$B$19=1, (VLOOKUP(1,Tablas!$A$752:$G$754,7,TRUE)), (IF(5-$B$19=2, (VLOOKUP(2,Tablas!$A$752:$G$754,7,TRUE)), (IF(5-$B$19=3, (VLOOKUP(3,Tablas!$A$752:$G$754,7,TRUE)), (IF(5-$B$19=4, (VLOOKUP(3,Tablas!$A$752:$G$754,7,TRUE)), (VLOOKUP(3,Tablas!$A$752:$G$754,7,TRUE)))))))))))), (IF($B$17=6,(IF(6-$B$19=0, (VLOOKUP(2,Tablas!$A$752:$G$754,7,TRUE)), (IF(6-$B$19=1, (VLOOKUP(2,Tablas!$A$752:$G$754,7,TRUE)), (IF(6-$B$19=2, (VLOOKUP(2,Tablas!$A$752:$G$754,7,TRUE)), (IF(6-$B$19=3, (VLOOKUP(3,Tablas!$A$752:$G$754,7,TRUE)), (IF(6-$B$19=4, (VLOOKUP(3,Tablas!$A$752:$G$754,7,TRUE)), (VLOOKUP(3,Tablas!$A$752:$G$754,7,TRUE)))))))))))), (IF($B$17>6,(IF(7-$B$19=0, (VLOOKUP(3,Tablas!$A$752:$G$754,7,TRUE)), (IF(7-$B$19=1, (VLOOKUP(3,Tablas!$A$752:$G$754,7,TRUE)), (IF(7-$B$19=2, (VLOOKUP(3,Tablas!$A$752:$G$754,7,TRUE)), (IF(7-$B$19=3, (VLOOKUP(3,Tablas!$A$752:$G$754,7,TRUE)), (IF(7-$B$19=4, (VLOOKUP(3,Tablas!$A$752:$G$754,7,TRUE)), (VLOOKUP(3,Tablas!$A$752:$G$754,7,TRUE)))))))))))), (IF($B$17=3,(IF(3-$B$19=0,0, (IF(3-$B$19=1,(VLOOKUP(1,Tablas!$A$752:$G$754,7,TRUE)), (IF(3-$B$19=2, (VLOOKUP(2,Tablas!$A$752:$G$754,7,TRUE)), (VLOOKUP(3,Tablas!$A$752:$G$754,7,TRUE)))))))), (IF($B$17=2,(IF(2-$B$19=0, 0, (IF(2-$B$19=1,(VLOOKUP(1,Tablas!$A$752:$G$754,7,TRUE)), (IF(2-$B$19=2, (VLOOKUP(2,Tablas!$A$752:$G$754,7,TRUE)), 0)))))), (IF($B$17=1,(IF(1-$B$19=0, 0, (IF(1-$B$19=1,(VLOOKUP(1,Tablas!$A$752:$G$754,7,TRUE)),0)))),0))))))))))))))))))) -> 0
A61: Total de Prima neta | C61: =SUM(C58:C60) -> 4050.8875 | D61: =SUM(D58:D60) -> 2861.5675 | E61: 2296.8275 | F61: 1991.55 | G61: 1517.73875
A62: Ajuste por la variante con coaseguro fuera del país de residencia | C62: =IF('INGRESO DE DATOS'!$P$3,C61*-15%,0) -> 0 | D62: =IF('INGRESO DE DATOS'!$P$3,D61*-15%,0) -> 0 | E62: =IF('INGRESO DE DATOS'!$P$3,E61*-15%,0) -> 0 | F62: =IF('INGRESO DE DATOS'!$P$3,F61*-15%,0) -> 0 | G62: =IF('INGRESO DE DATOS'!$P$3,G61*-15%,0) -> 0
A63: Tarifa administrativa anual | C63: 75 | D63: 75 | E63: 75 | F63: 75 | G63: 75
A64: VAT (5%) : | C64: =(C32+C33+C34+C36)*5%/4 -> 184.13125 | D64: =(D32+D33+D34+D36)*5%/4 -> 130.07125 | E64: 104.40125 | F64: 90.525 | G64: 68.988125
A65: ITBMS (7%) | C65: =+C63*7% + ((C32+C33+C34+C36)*0.1*0.07)/4 -> 31.028375 | D65: =+D63*7% + ((D32+D33+D34+D36)*0.1*0.07)/4 -> 23.459975 | E65: 19.866175 | F65: 17.9235 | G65: 14.9083375
A66: TOTAL de primera cuota | C66: =SUM(C61:C65) -> 4341.047125 | D66: =SUM(D61:D65) -> 3090.098725 | E66: 2496.094925 | F66: 2174.9985 | G66: 1676.635213
A67: Costo de tarifa trimestral 2 a 4 | C67: =(C61+C62)+C64+((C32+C33+C34+C36)*0.1*0.07)/4 -> 4260.797125 | D67: =(D61+D62)+D64+((D32+D33+D34+D36)*0.1*0.07)/4 -> 3009.848725 | E67: 2415.844925 | F67: 2094.7485 | G67: 1596.385213
A68: TOTAL ANUAL | C68: =C66+(C67*3) -> 17123.4385 | D68: =D66+(D67*3) -> 12119.6449 | E68: 9743.6297 | F68: =F66+(F67*3) -> 8459.244 | G68: 6465.79085
A69: Ahorros en tarifas de prima para Dependientes | C69: =IF($B$15=1,IF($B$17=0,0,IF($B$19=0,0,IF($B$19=1,(VLOOKUP(1,Tablas!$A$752:$G$754,3,TRUE)),(VLOOKUP(2,Tablas!$A$752:$G$754,3,TRUE))))), IF($B$17=0,0,IF($B$19=0,0,IF($B$19=1,(VLOOKUP(1,Tablas!$A$752:$G$754,3,TRUE)),IF($B$19=2,(VLOOKUP(2,Tablas!$A$752:$G$754,3,TRUE)), (VLOOKUP(3,Tablas!$A$752:$G$754,3,TRUE))))))) -> 0 | D69: =IF($B$15=1,IF($B$17=0,0,IF($B$19=0,0,IF($B$19=1,(VLOOKUP(1,Tablas!$A$752:$G$754,4,TRUE)),(VLOOKUP(2,Tablas!$A$752:$G$754,4,TRUE))))), IF($B$17=0,0,IF($B$19=0,0,IF($B$19=1,(VLOOKUP(1,Tablas!$A$752:$G$754,4,TRUE)),IF($B$19=2,(VLOOKUP(2,Tablas!$A$752:$G$754,4,TRUE)), (VLOOKUP(3,Tablas!$A$752:$G$754,4,TRUE))))))) -> 0 | E69: =IF($B$15=1,IF($B$17=0,0,IF($B$19=0,0,IF($B$19=1,(VLOOKUP(1,Tablas!$A$752:$G$754,5,TRUE)),(VLOOKUP(2,Tablas!$A$752:$G$754,5,TRUE))))), IF($B$17=0,0,IF($B$19=0,0,IF($B$19=1,(VLOOKUP(1,Tablas!$A$752:$G$754,5,TRUE)),IF($B$19=2,(VLOOKUP(2,Tablas!$A$752:$G$754,5,TRUE)), (VLOOKUP(3,Tablas!$A$752:$G$754,5,TRUE))))))) -> 0 | F69: =IF($B$15=1,IF($B$17=0,0,IF($B$19=0,0,IF($B$19=1,(VLOOKUP(1,Tablas!$A$752:$G$754,6,TRUE)),(VLOOKUP(2,Tablas!$A$752:$G$754,6,TRUE))))), IF($B$17=0,0,IF($B$19=0,0,IF($B$19=1,(VLOOKUP(1,Tablas!$A$752:$G$754,6,TRUE)),IF($B$19=2,(VLOOKUP(2,Tablas!$A$752:$G$754,6,TRUE)), (VLOOKUP(3,Tablas!$A$752:$G$754,6,TRUE))))))) -> 0 | G69: =IF($B$15=1,IF($B$17=0,0,IF($B$19=0,0,IF($B$19=1,(VLOOKUP(1,Tablas!$A$752:$G$754,7,TRUE)),(VLOOKUP(2,Tablas!$A$752:$G$754,7,TRUE))))), IF($B$17=0,0,IF($B$19=0,0,IF($B$19=1,(VLOOKUP(1,Tablas!$A$752:$G$754,7,TRUE)),IF($B$19=2,(VLOOKUP(2,Tablas!$A$752:$G$754,7,TRUE)), (VLOOKUP(3,Tablas!$A$752:$G$754,7,TRUE))))))) -> 0
A71: TARIFAS MENSUALES
A72: Prima para Asegurado Titular | C72: =VLOOKUP($B$21,Tablas!$A$80:$G$146,3,TRUE) -> 1374.846667 | D72: =VLOOKUP($B$21,Tablas!$A$80:$G$146,4,TRUE) -> 971.1986667 | E72: =VLOOKUP($B$21,Tablas!$A$80:$G$146,5,TRUE) -> 779.5293333 | F72: =VLOOKUP($B$21,Tablas!$A$80:$G$146,6,TRUE) -> 675.92 | G72: =VLOOKUP($B$21,Tablas!$A$80:$G$146,7,TRUE) -> 515.1113333
A73: Prima para conyuge | C73: =IF($B$15=1,0,(VLOOKUP($G$21,Tablas!$A$80:$G$146,3,TRUE))) -> 0 | D73: =IF($B$15=1,0,(VLOOKUP($G$21,Tablas!$A$80:$G$146,4,TRUE))) -> 0 | E73: =IF($B$15=1,0,(VLOOKUP($G$21,Tablas!$A$80:$G$146,5,TRUE))) -> 0 | F73: =IF($B$15=1,0,(VLOOKUP($G$21,Tablas!$A$80:$G$146,6,TRUE))) -> 0 | G73: =IF($B$15=1,0,(VLOOKUP($G$21,Tablas!$A$80:$G$146,7,TRUE))) -> 0
A74: Prima para hijo (s) | C74: =IF($B$15=1, (IF($B$17=0, 0, (IF($B$19>$B$17, (VLOOKUP($B$17,Tablas!$A$147:$G$149,3,TRUE)), (IF($B$17>4,(IF($B$19=0, (VLOOKUP(3,Tablas!$A$147:$G$149,3,TRUE)), (IF($B$19=1, (VLOOKUP(3,Tablas!$A$147:$G$149,3,TRUE)), (IF($B$19=2, (VLOOKUP(3,Tablas!$A$147:$G$149,3,TRUE)), (VLOOKUP(3,Tablas!$A$147:$G$149,3,TRUE)))))))), (IF($B$17=4,(IF(4-$B$19=0,(VLOOKUP(2,Tablas!$A$147:$G$149,3,TRUE)), (IF(4-$B$19=1,(VLOOKUP(2,Tablas!$A$147:$G$149,3,TRUE)), (IF(4-$B$19=2, (VLOOKUP(2,Tablas!$A$147:$G$149,3,TRUE)), (VLOOKUP(3,Tablas!$A$147:$G$149,3,TRUE)))))))), (IF($B$17=3,(IF(3-$B$19=0,(VLOOKUP(1,Tablas!$A$147:$G$149,3,TRUE)), (IF(3-$B$19=1,(VLOOKUP(1,Tablas!$A$147:$G$149,3,TRUE)), (IF(3-$B$19=2, (VLOOKUP(2,Tablas!$A$147:$G$149,3,TRUE)), (VLOOKUP(3,Tablas!$A$147:$G$149,3,TRUE)))))))), (IF($B$17=2,(IF(2-$B$19=0, 0, (IF(2-$B$19=1,(VLOOKUP(1,Tablas!$A$147:$G$149,3,TRUE)), (IF(2-$B$19=2, (VLOOKUP(2,Tablas!$A$147:$G$149,3,TRUE)), 0)))))), (IF($B$17=1,(IF(1-$B$19=0, 0, (IF(1-$B$19=1,(VLOOKUP(1,Tablas!$A$147:$G$149,3,TRUE)),0)))),0)))))))))))))), (IF($B$17=0, 0, (IF($B$19>$B$17, (VLOOKUP($B$17,Tablas!$A$147:$G$149,3,TRUE)), (IF($B$17=4,(IF(4-$B$19=0, 0, (IF(4-$B$19=1, (VLOOKUP(1,Tablas!$A$147:$G$149,3,TRUE)), (IF(4-$B$19=2, (VLOOKUP(2,Tablas!$A$147:$G$149,3,TRUE)), (IF(4-$B$19=3, (VLOOKUP(3,Tablas!$A$147:$G$149,3,TRUE)), (IF(4-$B$19=4, (VLOOKUP(3,Tablas!$A$147:$G$149,3,TRUE)), 0)))))))))), (IF($B$17=5,(IF(5-$B$19=0, (VLOOKUP(1,Tablas!$A$147:$G$149,3,TRUE)), (IF(5-$B$19=1, (VLOOKUP(1,Tablas!$A$147:$G$149,3,TRUE)), (IF(5-$B$19=2, (VLOOKUP(2,Tablas!$A$147:$G$149,3,TRUE)), (IF(5-$B$19=3, (VLOOKUP(3,Tablas!$A$147:$G$149,3,TRUE)), (IF(5-$B$19=4, (VLOOKUP(3,Tablas!$A$147:$G$149,3,TRUE)), (VLOOKUP(3,Tablas!$A$147:$G$149,3,TRUE)))))))))))), (IF($B$17=6,(IF(6-$B$19=0, (VLOOKUP(2,Tablas!$A$147:$G$149,3,TRUE)), (IF(6-$B$19=1, (VLOOKUP(2,Tablas!$A$147:$G$149,3,TRUE)), (IF(6-$B$19=2, (VLOOKUP(2,Tablas!$A$147:$G$149,3,TRUE)), (IF(6-$B$19=3, (VLOOKUP(3,Tablas!$A$147:$G$149,3,TRUE)), (IF(6-$B$19=4, (VLOOKUP(3,Tablas!$A$147:$G$149,3,TRUE)), (VLOOKUP(3,Tablas!$A$147:$G$149,3,TRUE)))))))))))), (IF($B$17>6,(IF(7-$B$19=0, (VLOOKUP(3,Tablas!$A$147:$G$149,3,TRUE)), (IF(7-$B$19=1, (VLOOKUP(3,Tablas!$A$147:$G$149,3,TRUE)), (IF(7-$B$19=2, (VLOOKUP(3,Tablas!$A$147:$G$149,3,TRUE)), (IF(7-$B$19=3, (VLOOKUP(3,Tablas!$A$147:$G$149,3,TRUE)), (IF(7-$B$19=4, (VLOOKUP(3,Tablas!$A$147:$G$149,3,TRUE)), (VLOOKUP(3,Tablas!$A$147:$G$149,3,TRUE)))))))))))), (IF($B$17=3,(IF(3-$B$19=0,0, (IF(3-$B$19=1,(VLOOKUP(1,Tablas!$A$147:$G$149,3,TRUE)), (IF(3-$B$19=2, (VLOOKUP(2,Tablas!$A$147:$G$149,3,TRUE)), (VLOOKUP(3,Tablas!$A$147:$G$149,3,TRUE)))))))), (IF($B$17=2,(IF(2-$B$19=0, 0, (IF(2-$B$19=1,(VLOOKUP(1,Tablas!$A$147:$G$149,3,TRUE)), (IF(2-$B$19=2, (VLOOKUP(2,Tablas!$A$147:$G$149,3,TRUE)), 0)))))), (IF($B$17=1,(IF(1-$B$19=0, 0, (IF(1-$B$19=1,(VLOOKUP(1,Tablas!$A$147:$G$149,3,TRUE)),0)))),0))))))))))))))))))) -> 0 | D74: =IF($B$15=1, (IF($B$17=0, 0, (IF($B$19>$B$17, (VLOOKUP($B$17,Tablas!$A$147:$G$149,4,TRUE)), (IF($B$17>4,(IF($B$19=0, (VLOOKUP(3,Tablas!$A$147:$G$149,4,TRUE)), (IF($B$19=1, (VLOOKUP(3,Tablas!$A$147:$G$149,4,TRUE)), (IF($B$19=2, (VLOOKUP(3,Tablas!$A$147:$G$149,4,TRUE)), (VLOOKUP(3,Tablas!$A$147:$G$149,4,TRUE)))))))), (IF($B$17=4,(IF(4-$B$19=0,(VLOOKUP(2,Tablas!$A$147:$G$149,4,TRUE)), (IF(4-$B$19=1,(VLOOKUP(2,Tablas!$A$147:$G$149,4,TRUE)), (IF(4-$B$19=2, (VLOOKUP(2,Tablas!$A$147:$G$149,4,TRUE)), (VLOOKUP(3,Tablas!$A$147:$G$149,4,TRUE)))))))), (IF($B$17=3,(IF(3-$B$19=0,(VLOOKUP(1,Tablas!$A$147:$G$149,4,TRUE)), (IF(3-$B$19=1,(VLOOKUP(1,Tablas!$A$147:$G$149,4,TRUE)), (IF(3-$B$19=2, (VLOOKUP(2,Tablas!$A$147:$G$149,4,TRUE)), (VLOOKUP(3,Tablas!$A$147:$G$149,4,TRUE)))))))), (IF($B$17=2,(IF(2-$B$19=0, 0, (IF(2-$B$19=1,(VLOOKUP(1,Tablas!$A$147:$G$149,4,TRUE)), (IF(2-$B$19=2, (VLOOKUP(2,Tablas!$A$147:$G$149,4,TRUE)), 0)))))), (IF($B$17=1,(IF(1-$B$19=0, 0, (IF(1-$B$19=1,(VLOOKUP(1,Tablas!$A$147:$G$149,4,TRUE)),0)))),0)))))))))))))), (IF($B$17=0, 0, (IF($B$19>$B$17, (VLOOKUP($B$17,Tablas!$A$147:$G$149,4,TRUE)), (IF($B$17=4,(IF(4-$B$19=0, 0, (IF(4-$B$19=1, (VLOOKUP(1,Tablas!$A$147:$G$149,4,TRUE)), (IF(4-$B$19=2, (VLOOKUP(2,Tablas!$A$147:$G$149,4,TRUE)), (IF(4-$B$19=3, (VLOOKUP(3,Tablas!$A$147:$G$149,4,TRUE)), (IF(4-$B$19=4, (VLOOKUP(3,Tablas!$A$147:$G$149,4,TRUE)), 0)))))))))), (IF($B$17=5,(IF(5-$B$19=0, (VLOOKUP(1,Tablas!$A$147:$G$149,4,TRUE)), (IF(5-$B$19=1, (VLOOKUP(1,Tablas!$A$147:$G$149,4,TRUE)), (IF(5-$B$19=2, (VLOOKUP(2,Tablas!$A$147:$G$149,4,TRUE)), (IF(5-$B$19=3, (VLOOKUP(3,Tablas!$A$147:$G$149,4,TRUE)), (IF(5-$B$19=4, (VLOOKUP(3,Tablas!$A$147:$G$149,4,TRUE)), (VLOOKUP(3,Tablas!$A$147:$G$149,4,TRUE)))))))))))), (IF($B$17=6,(IF(6-$B$19=0, (VLOOKUP(2,Tablas!$A$147:$G$149,4,TRUE)), (IF(6-$B$19=1, (VLOOKUP(2,Tablas!$A$147:$G$149,4,TRUE)), (IF(6-$B$19=2, (VLOOKUP(2,Tablas!$A$147:$G$149,4,TRUE)), (IF(6-$B$19=3, (VLOOKUP(3,Tablas!$A$147:$G$149,4,TRUE)), (IF(6-$B$19=4, (VLOOKUP(3,Tablas!$A$147:$G$149,4,TRUE)), (VLOOKUP(3,Tablas!$A$147:$G$149,4,TRUE)))))))))))), (IF($B$17>6,(IF(7-$B$19=0, (VLOOKUP(3,Tablas!$A$147:$G$149,4,TRUE)), (IF(7-$B$19=1, (VLOOKUP(3,Tablas!$A$147:$G$149,4,TRUE)), (IF(7-$B$19=2, (VLOOKUP(3,Tablas!$A$147:$G$149,4,TRUE)), (IF(7-$B$19=3, (VLOOKUP(3,Tablas!$A$147:$G$149,4,TRUE)), (IF(7-$B$19=4, (VLOOKUP(3,Tablas!$A$147:$G$149,4,TRUE)), (VLOOKUP(3,Tablas!$A$147:$G$149,4,TRUE)))))))))))), (IF($B$17=3,(IF(3-$B$19=0,0, (IF(3-$B$19=1,(VLOOKUP(1,Tablas!$A$147:$G$149,4,TRUE)), (IF(3-$B$19=2, (VLOOKUP(2,Tablas!$A$147:$G$149,4,TRUE)), (VLOOKUP(3,Tablas!$A$147:$G$149,4,TRUE)))))))), (IF($B$17=2,(IF(2-$B$19=0, 0, (IF(2-$B$19=1,(VLOOKUP(1,Tablas!$A$147:$G$149,4,TRUE)), (IF(2-$B$19=2, (VLOOKUP(2,Tablas!$A$147:$G$149,4,TRUE)), 0)))))), (IF($B$17=1,(IF(1-$B$19=0, 0, (IF(1-$B$19=1,(VLOOKUP(1,Tablas!$A$147:$G$149,4,TRUE)),0)))),0))))))))))))))))))) -> 0 | E74: =IF($B$15=1, (IF($B$17=0, 0, (IF($B$19>$B$17, (VLOOKUP($B$17,Tablas!$A$147:$G$149,5,TRUE)), (IF($B$17>4,(IF($B$19=0, (VLOOKUP(3,Tablas!$A$147:$G$149,5,TRUE)), (IF($B$19=1, (VLOOKUP(3,Tablas!$A$147:$G$149,5,TRUE)), (IF($B$19=2, (VLOOKUP(3,Tablas!$A$147:$G$149,5,TRUE)), (VLOOKUP(3,Tablas!$A$147:$G$149,5,TRUE)))))))), (IF($B$17=4,(IF(4-$B$19=0,(VLOOKUP(2,Tablas!$A$147:$G$149,5,TRUE)), (IF(4-$B$19=1,(VLOOKUP(2,Tablas!$A$147:$G$149,5,TRUE)), (IF(4-$B$19=2, (VLOOKUP(2,Tablas!$A$147:$G$149,5,TRUE)), (VLOOKUP(3,Tablas!$A$147:$G$149,5,TRUE)))))))), (IF($B$17=3,(IF(3-$B$19=0,(VLOOKUP(1,Tablas!$A$147:$G$149,5,TRUE)), (IF(3-$B$19=1,(VLOOKUP(1,Tablas!$A$147:$G$149,5,TRUE)), (IF(3-$B$19=2, (VLOOKUP(2,Tablas!$A$147:$G$149,5,TRUE)), (VLOOKUP(3,Tablas!$A$147:$G$149,5,TRUE)))))))), (IF($B$17=2,(IF(2-$B$19=0, 0, (IF(2-$B$19=1,(VLOOKUP(1,Tablas!$A$147:$G$149,5,TRUE)), (IF(2-$B$19=2, (VLOOKUP(2,Tablas!$A$147:$G$149,5,TRUE)), 0)))))), (IF($B$17=1,(IF(1-$B$19=0, 0, (IF(1-$B$19=1,(VLOOKUP(1,Tablas!$A$147:$G$149,5,TRUE)),0)))),0)))))))))))))), (IF($B$17=0, 0, (IF($B$19>$B$17, (VLOOKUP($B$17,Tablas!$A$147:$G$149,5,TRUE)), (IF($B$17=4,(IF(4-$B$19=0, 0, (IF(4-$B$19=1, (VLOOKUP(1,Tablas!$A$147:$G$149,5,TRUE)), (IF(4-$B$19=2, (VLOOKUP(2,Tablas!$A$147:$G$149,5,TRUE)), (IF(4-$B$19=3, (VLOOKUP(3,Tablas!$A$147:$G$149,5,TRUE)), (IF(4-$B$19=4, (VLOOKUP(3,Tablas!$A$147:$G$149,5,TRUE)), 0)))))))))), (IF($B$17=5,(IF(5-$B$19=0, (VLOOKUP(1,Tablas!$A$147:$G$149,5,TRUE)), (IF(5-$B$19=1, (VLOOKUP(1,Tablas!$A$147:$G$149,5,TRUE)), (IF(5-$B$19=2, (VLOOKUP(2,Tablas!$A$147:$G$149,5,TRUE)), (IF(5-$B$19=3, (VLOOKUP(3,Tablas!$A$147:$G$149,5,TRUE)), (IF(5-$B$19=4, (VLOOKUP(3,Tablas!$A$147:$G$149,5,TRUE)), (VLOOKUP(3,Tablas!$A$147:$G$149,5,TRUE)))))))))))), (IF($B$17=6,(IF(6-$B$19=0, (VLOOKUP(2,Tablas!$A$147:$G$149,5,TRUE)), (IF(6-$B$19=1, (VLOOKUP(2,Tablas!$A$147:$G$149,5,TRUE)), (IF(6-$B$19=2, (VLOOKUP(2,Tablas!$A$147:$G$149,5,TRUE)), (IF(6-$B$19=3, (VLOOKUP(3,Tablas!$A$147:$G$149,5,TRUE)), (IF(6-$B$19=4, (VLOOKUP(3,Tablas!$A$147:$G$149,5,TRUE)), (VLOOKUP(3,Tablas!$A$147:$G$149,5,TRUE)))))))))))), (IF($B$17>6,(IF(7-$B$19=0, (VLOOKUP(3,Tablas!$A$147:$G$149,5,TRUE)), (IF(7-$B$19=1, (VLOOKUP(3,Tablas!$A$147:$G$149,5,TRUE)), (IF(7-$B$19=2, (VLOOKUP(3,Tablas!$A$147:$G$149,5,TRUE)), (IF(7-$B$19=3, (VLOOKUP(3,Tablas!$A$147:$G$149,5,TRUE)), (IF(7-$B$19=4, (VLOOKUP(3,Tablas!$A$147:$G$149,5,TRUE)), (VLOOKUP(3,Tablas!$A$147:$G$149,5,TRUE)))))))))))), (IF($B$17=3,(IF(3-$B$19=0,0, (IF(3-$B$19=1,(VLOOKUP(1,Tablas!$A$147:$G$149,5,TRUE)), (IF(3-$B$19=2, (VLOOKUP(2,Tablas!$A$147:$G$149,5,TRUE)), (VLOOKUP(3,Tablas!$A$147:$G$149,5,TRUE)))))))), (IF($B$17=2,(IF(2-$B$19=0, 0, (IF(2-$B$19=1,(VLOOKUP(1,Tablas!$A$147:$G$149,5,TRUE)), (IF(2-$B$19=2, (VLOOKUP(2,Tablas!$A$147:$G$149,5,TRUE)), 0)))))), (IF($B$17=1,(IF(1-$B$19=0, 0, (IF(1-$B$19=1,(VLOOKUP(1,Tablas!$A$147:$G$149,5,TRUE)),0)))),0))))))))))))))))))) -> 0 | F74: =IF($B$15=1, (IF($B$17=0, 0, (IF($B$19>$B$17, (VLOOKUP($B$17,Tablas!$A$147:$G$149,6,TRUE)), (IF($B$17>4,(IF($B$19=0, (VLOOKUP(3,Tablas!$A$147:$G$149,6,TRUE)), (IF($B$19=1, (VLOOKUP(3,Tablas!$A$147:$G$149,6,TRUE)), (IF($B$19=2, (VLOOKUP(3,Tablas!$A$147:$G$149,6,TRUE)), (VLOOKUP(3,Tablas!$A$147:$G$149,6,TRUE)))))))), (IF($B$17=4,(IF(4-$B$19=0,(VLOOKUP(2,Tablas!$A$147:$G$149,6,TRUE)), (IF(4-$B$19=1,(VLOOKUP(2,Tablas!$A$147:$G$149,6,TRUE)), (IF(4-$B$19=2, (VLOOKUP(2,Tablas!$A$147:$G$149,6,TRUE)), (VLOOKUP(3,Tablas!$A$147:$G$149,6,TRUE)))))))), (IF($B$17=3,(IF(3-$B$19=0,(VLOOKUP(1,Tablas!$A$147:$G$149,6,TRUE)), (IF(3-$B$19=1,(VLOOKUP(1,Tablas!$A$147:$G$149,6,TRUE)), (IF(3-$B$19=2, (VLOOKUP(2,Tablas!$A$147:$G$149,6,TRUE)), (VLOOKUP(3,Tablas!$A$147:$G$149,6,TRUE)))))))), (IF($B$17=2,(IF(2-$B$19=0, 0, (IF(2-$B$19=1,(VLOOKUP(1,Tablas!$A$147:$G$149,6,TRUE)), (IF(2-$B$19=2, (VLOOKUP(2,Tablas!$A$147:$G$149,6,TRUE)), 0)))))), (IF($B$17=1,(IF(1-$B$19=0, 0, (IF(1-$B$19=1,(VLOOKUP(1,Tablas!$A$147:$G$149,6,TRUE)),0)))),0)))))))))))))), (IF($B$17=0, 0, (IF($B$19>$B$17, (VLOOKUP($B$17,Tablas!$A$147:$G$149,6,TRUE)), (IF($B$17=4,(IF(4-$B$19=0, 0, (IF(4-$B$19=1, (VLOOKUP(1,Tablas!$A$147:$G$149,6,TRUE)), (IF(4-$B$19=2, (VLOOKUP(2,Tablas!$A$147:$G$149,6,TRUE)), (IF(4-$B$19=3, (VLOOKUP(3,Tablas!$A$147:$G$149,6,TRUE)), (IF(4-$B$19=4, (VLOOKUP(3,Tablas!$A$147:$G$149,6,TRUE)), 0)))))))))), (IF($B$17=5,(IF(5-$B$19=0, (VLOOKUP(1,Tablas!$A$147:$G$149,6,TRUE)), (IF(5-$B$19=1, (VLOOKUP(1,Tablas!$A$147:$G$149,6,TRUE)), (IF(5-$B$19=2, (VLOOKUP(2,Tablas!$A$147:$G$149,6,TRUE)), (IF(5-$B$19=3, (VLOOKUP(3,Tablas!$A$147:$G$149,6,TRUE)), (IF(5-$B$19=4, (VLOOKUP(3,Tablas!$A$147:$G$149,6,TRUE)), (VLOOKUP(3,Tablas!$A$147:$G$149,6,TRUE)))))))))))), (IF($B$17=6,(IF(6-$B$19=0, (VLOOKUP(2,Tablas!$A$147:$G$149,6,TRUE)), (IF(6-$B$19=1, (VLOOKUP(2,Tablas!$A$147:$G$149,6,TRUE)), (IF(6-$B$19=2, (VLOOKUP(2,Tablas!$A$147:$G$149,6,TRUE)), (IF(6-$B$19=3, (VLOOKUP(3,Tablas!$A$147:$G$149,6,TRUE)), (IF(6-$B$19=4, (VLOOKUP(3,Tablas!$A$147:$G$149,6,TRUE)), (VLOOKUP(3,Tablas!$A$147:$G$149,6,TRUE)))))))))))), (IF($B$17>6,(IF(7-$B$19=0, (VLOOKUP(3,Tablas!$A$147:$G$149,6,TRUE)), (IF(7-$B$19=1, (VLOOKUP(3,Tablas!$A$147:$G$149,6,TRUE)), (IF(7-$B$19=2, (VLOOKUP(3,Tablas!$A$147:$G$149,6,TRUE)), (IF(7-$B$19=3, (VLOOKUP(3,Tablas!$A$147:$G$149,6,TRUE)), (IF(7-$B$19=4, (VLOOKUP(3,Tablas!$A$147:$G$149,6,TRUE)), (VLOOKUP(3,Tablas!$A$147:$G$149,6,TRUE)))))))))))), (IF($B$17=3,(IF(3-$B$19=0,0, (IF(3-$B$19=1,(VLOOKUP(1,Tablas!$A$147:$G$149,6,TRUE)), (IF(3-$B$19=2, (VLOOKUP(2,Tablas!$A$147:$G$149,6,TRUE)), (VLOOKUP(3,Tablas!$A$147:$G$149,6,TRUE)))))))), (IF($B$17=2,(IF(2-$B$19=0, 0, (IF(2-$B$19=1,(VLOOKUP(1,Tablas!$A$147:$G$149,6,TRUE)), (IF(2-$B$19=2, (VLOOKUP(2,Tablas!$A$147:$G$149,6,TRUE)), 0)))))), (IF($B$17=1,(IF(1-$B$19=0, 0, (IF(1-$B$19=1,(VLOOKUP(1,Tablas!$A$147:$G$149,6,TRUE)),0)))),0))))))))))))))))))) -> 0 | G74: =IF($B$15=1, (IF($B$17=0, 0, (IF($B$19>$B$17, (VLOOKUP($B$17,Tablas!$A$147:$G$149,7,TRUE)), (IF($B$17>4,(IF($B$19=0, (VLOOKUP(3,Tablas!$A$147:$G$149,7,TRUE)), (IF($B$19=1, (VLOOKUP(3,Tablas!$A$147:$G$149,7,TRUE)), (IF($B$19=2, (VLOOKUP(3,Tablas!$A$147:$G$149,7,TRUE)), (VLOOKUP(3,Tablas!$A$147:$G$149,7,TRUE)))))))), (IF($B$17=4,(IF(4-$B$19=0,(VLOOKUP(2,Tablas!$A$147:$G$149,7,TRUE)), (IF(4-$B$19=1,(VLOOKUP(2,Tablas!$A$147:$G$149,7,TRUE)), (IF(4-$B$19=2, (VLOOKUP(2,Tablas!$A$147:$G$149,7,TRUE)), (VLOOKUP(3,Tablas!$A$147:$G$149,7,TRUE)))))))), (IF($B$17=3,(IF(3-$B$19=0,(VLOOKUP(1,Tablas!$A$147:$G$149,7,TRUE)), (IF(3-$B$19=1,(VLOOKUP(1,Tablas!$A$147:$G$149,7,TRUE)), (IF(3-$B$19=2, (VLOOKUP(2,Tablas!$A$147:$G$149,7,TRUE)), (VLOOKUP(3,Tablas!$A$147:$G$149,7,TRUE)))))))), (IF($B$17=2,(IF(2-$B$19=0, 0, (IF(2-$B$19=1,(VLOOKUP(1,Tablas!$A$147:$G$149,7,TRUE)), (IF(2-$B$19=2, (VLOOKUP(2,Tablas!$A$147:$G$149,7,TRUE)), 0)))))), (IF($B$17=1,(IF(1-$B$19=0, 0, (IF(1-$B$19=1,(VLOOKUP(1,Tablas!$A$147:$G$149,7,TRUE)),0)))),0)))))))))))))), (IF($B$17=0, 0, (IF($B$19>$B$17, (VLOOKUP($B$17,Tablas!$A$147:$G$149,7,TRUE)), (IF($B$17=4,(IF(4-$B$19=0, 0, (IF(4-$B$19=1, (VLOOKUP(1,Tablas!$A$147:$G$149,7,TRUE)), (IF(4-$B$19=2, (VLOOKUP(2,Tablas!$A$147:$G$149,7,TRUE)), (IF(4-$B$19=3, (VLOOKUP(3,Tablas!$A$147:$G$149,7,TRUE)), (IF(4-$B$19=4, (VLOOKUP(3,Tablas!$A$147:$G$149,7,TRUE)), 0)))))))))), (IF($B$17=5,(IF(5-$B$19=0, (VLOOKUP(1,Tablas!$A$147:$G$149,7,TRUE)), (IF(5-$B$19=1, (VLOOKUP(1,Tablas!$A$147:$G$149,7,TRUE)), (IF(5-$B$19=2, (VLOOKUP(2,Tablas!$A$147:$G$149,7,TRUE)), (IF(5-$B$19=3, (VLOOKUP(3,Tablas!$A$147:$G$149,7,TRUE)), (IF(5-$B$19=4, (VLOOKUP(3,Tablas!$A$147:$G$149,7,TRUE)), (VLOOKUP(3,Tablas!$A$147:$G$149,7,TRUE)))))))))))), (IF($B$17=6,(IF(6-$B$19=0, (VLOOKUP(2,Tablas!$A$147:$G$149,7,TRUE)), (IF(6-$B$19=1, (VLOOKUP(2,Tablas!$A$147:$G$149,7,TRUE)), (IF(6-$B$19=2, (VLOOKUP(2,Tablas!$A$147:$G$149,7,TRUE)), (IF(6-$B$19=3, (VLOOKUP(3,Tablas!$A$147:$G$149,7,TRUE)), (IF(6-$B$19=4, (VLOOKUP(3,Tablas!$A$147:$G$149,7,TRUE)), (VLOOKUP(3,Tablas!$A$147:$G$149,7,TRUE)))))))))))), (IF($B$17>6,(IF(7-$B$19=0, (VLOOKUP(3,Tablas!$A$147:$G$149,7,TRUE)), (IF(7-$B$19=1, (VLOOKUP(3,Tablas!$A$147:$G$149,7,TRUE)), (IF(7-$B$19=2, (VLOOKUP(3,Tablas!$A$147:$G$149,7,TRUE)), (IF(7-$B$19=3, (VLOOKUP(3,Tablas!$A$147:$G$149,7,TRUE)), (IF(7-$B$19=4, (VLOOKUP(3,Tablas!$A$147:$G$149,7,TRUE)), (VLOOKUP(3,Tablas!$A$147:$G$149,7,TRUE)))))))))))), (IF($B$17=3,(IF(3-$B$19=0,0, (IF(3-$B$19=1,(VLOOKUP(1,Tablas!$A$147:$G$149,7,TRUE)), (IF(3-$B$19=2, (VLOOKUP(2,Tablas!$A$147:$G$149,7,TRUE)), (VLOOKUP(3,Tablas!$A$147:$G$149,7,TRUE)))))))), (IF($B$17=2,(IF(2-$B$19=0, 0, (IF(2-$B$19=1,(VLOOKUP(1,Tablas!$A$147:$G$149,7,TRUE)), (IF(2-$B$19=2, (VLOOKUP(2,Tablas!$A$147:$G$149,7,TRUE)), 0)))))), (IF($B$17=1,(IF(1-$B$19=0, 0, (IF(1-$B$19=1,(VLOOKUP(1,Tablas!$A$147:$G$149,7,TRUE)),0)))),0))))))))))))))))))) -> 0
A75: Total de Prima neta | C75: =SUM(C72:C74) -> 1374.846667 | D75: =SUM(D72:D74) -> 971.1986667 | E75: 779.5293333 | F75: 675.92 | G75: 515.1113333
A76: Ajuste por la variante con coaseguro fuera del país de residencia | C76: =IF('INGRESO DE DATOS'!$P$3,C75*-15%,0) -> 0 | D76: =IF('INGRESO DE DATOS'!$P$3,D75*-15%,0) -> 0 | E76: =IF('INGRESO DE DATOS'!$P$3,E75*-15%,0) -> 0 | F76: =IF('INGRESO DE DATOS'!$P$3,F75*-15%,0) -> 0 | G76: =IF('INGRESO DE DATOS'!$P$3,G75*-15%,0) -> 0
A77: Tarifa administrativa anual | C77: 75 | D77: 75 | E77: 75 | F77: 75 | G77: 75
A78: VAT (5%) : | C78: =(C32+C33+C34+C36)*5%/12 -> 61.37708333 | D78: =(D32+D33+D34+D36)*5%/12 -> 43.35708333 | E78: 34.80041667 | F78: 30.175 | G78: 22.99604167
A79: ITBMS (7%) | C79: =+C77*7% + ((C32+C33+C34+C36)*0.12*0.07)/12 -> 15.56135 | D79: =+D77*7% + ((D32+D33+D34+D36)*0.12*0.07)/12 -> 12.53399 | E79: 11.09647 | F79: 10.3194 | G79: 9.113335
A80: TOTAL de primera cuota | C80: =SUM(C75:C79) -> 1526.7851 | D80: =SUM(D75:D79) -> 1102.08974 | E80: 900.42622 | F80: 791.4144 | G80: 622.22071
A81: Costo de Tarifa mensual de 2 a 12 | C81: =((C75+C76)+C78)+((C32+C33+C34+C36)*0.12*0.07)/12 -> 1446.5351 | D81: =((D75+D76)+D78)+((D32+D33+D34+D36)*0.12*0.07)/12 -> 1021.83974 | E81: 820.17622 | F81: 711.1644 | G81: 541.97071
A82: TOTAL ANUAL | C82: =C80+(C81*11) -> 17438.6712 | D82: =D80+(D81*11) -> 12342.32688 | E82: 9922.36464 | F82: =F80+(F81*11) -> 8614.2228 | G82: 6583.89852
A83: Ahorros en tarifas de prima para Dependientes | C83: =IF($B$15=1,IF($B$17=0,0,IF($B$19=0,0,IF($B$19=1,(VLOOKUP(1,Tablas!$A$147:$G$149,3,TRUE)),(VLOOKUP(2,Tablas!$A$147:$G$149,3,TRUE))))), IF($B$17=0,0,IF($B$19=0,0,IF($B$19=1,(VLOOKUP(1,Tablas!$A$147:$G$149,3,TRUE)),IF($B$19=2,(VLOOKUP(2,Tablas!$A$147:$G$149,3,TRUE)), (VLOOKUP(3,Tablas!$A$147:$G$149,3,TRUE))))))) -> 0 | D83: =IF($B$15=1,IF($B$17=0,0,IF($B$19=0,0,IF($B$19=1,(VLOOKUP(1,Tablas!$A$147:$G$149,4,TRUE)),(VLOOKUP(2,Tablas!$A$147:$G$149,4,TRUE))))), IF($B$17=0,0,IF($B$19=0,0,IF($B$19=1,(VLOOKUP(1,Tablas!$A$147:$G$149,4,TRUE)),IF($B$19=2,(VLOOKUP(2,Tablas!$A$147:$G$149,4,TRUE)), (VLOOKUP(3,Tablas!$A$147:$G$149,4,TRUE))))))) -> 0 | E83: =IF($B$15=1,IF($B$17=0,0,IF($B$19=0,0,IF($B$19=1,(VLOOKUP(1,Tablas!$A$147:$G$149,5,TRUE)),(VLOOKUP(2,Tablas!$A$147:$G$149,5,TRUE))))), IF($B$17=0,0,IF($B$19=0,0,IF($B$19=1,(VLOOKUP(1,Tablas!$A$147:$G$149,5,TRUE)),IF($B$19=2,(VLOOKUP(2,Tablas!$A$147:$G$149,5,TRUE)), (VLOOKUP(3,Tablas!$A$147:$G$149,5,TRUE))))))) -> 0 | F83: =IF($B$15=1,IF($B$17=0,0,IF($B$19=0,0,IF($B$19=1,(VLOOKUP(1,Tablas!$A$147:$G$149,6,TRUE)),(VLOOKUP(2,Tablas!$A$147:$G$149,6,TRUE))))), IF($B$17=0,0,IF($B$19=0,0,IF($B$19=1,(VLOOKUP(1,Tablas!$A$147:$G$149,6,TRUE)),IF($B$19=2,(VLOOKUP(2,Tablas!$A$147:$G$149,6,TRUE)), (VLOOKUP(3,Tablas!$A$147:$G$149,6,TRUE))))))) -> 0 | G83: =IF($B$15=1,IF($B$17=0,0,IF($B$19=0,0,IF($B$19=1,(VLOOKUP(1,Tablas!$A$147:$G$149,7,TRUE)),(VLOOKUP(2,Tablas!$A$147:$G$149,7,TRUE))))), IF($B$17=0,0,IF($B$19=0,0,IF($B$19=1,(VLOOKUP(1,Tablas!$A$147:$G$149,7,TRUE)),IF($B$19=2,(VLOOKUP(2,Tablas!$A$147:$G$149,7,TRUE)), (VLOOKUP(3,Tablas!$A$147:$G$149,7,TRUE))))))) -> 0
A85: Este presupuesto solamente tiene carácter informativo y en ningún momento expresa compromiso legal para suministrarle cobertura de seguro. La emisión de una póliza de seguro Bupa está sujeta a todas las evaluaciones de riesgo por parte de Bupa y a la recepción de todos los pagos de prima requeridos.

Sheet Bupa Global Premier
I1: RESUMEN DE BENEFICIOS | X1: RESUMEN DE BENEFICIOS | AM1: RESUMEN DE BENEFICIOS
A5: Cotización de Seguro Médico Internacional Bupa Global Premier Health Plan Tarifas en US$ | Validas: 1 de enero de 2024
A13: Nombre del Asegurado Titular | B13: =+'INGRESO DE DATOS'!$C$37 -> John Doe
A15: Número de adultos en la póliza | B15: =+'INGRESO DE DATOS'!$C$39 -> 1
A17: Número de Dependientes en la póliza | B17: =+'INGRESO DE DATOS'!$C$41 -> 0 | C17: =IF('INGRESO DE DATOS'!$P$2=TRUE, "Cotización para dependiente de 24 años","") -> 
A19: Edad del Asegurado Titular | B19: =+'INGRESO DE DATOS'!$C$43 -> 52 | D19: Edad del/la conyuge | F19: =+'INGRESO DE DATOS'!$C$45 -> 32
A21: Fecha de la cotización | B21: =NOW() -> 2024-01-10T13:30:25.430
A23: =IF('INGRESO DE DATOS'!P3=TRUE,"Variante con coaseguro fuera del país de residencia: SI","Variante con coaseguro fuera del país de residencia: NO") -> Variante con coaseguro fuera del país de residencia: NO
A25: Deducibles | C25: PLAN 1 | D25: PLAN 2 | E25: PLAN 3 | F25: PLAN 4
A26: En el país de residencia | C26: 2000 | D26: 3500 | E26: 5000 | F26: 10000
A27: Fuera del país de residencia | C27: 2000 | D27: 3500 | E27: 5000 | F27: 10000
A29: TARIFAS ANUALES
A30: Prima para Asegurado Titular | C30: =VLOOKUP($B$19,Tablas!$A$156:$G$222,3,TRUE) -> 8419.25 | D30: =VLOOKUP($B$19,Tablas!$A$156:$G$222,4,TRUE) -> 6772.8 | E30: =VLOOKUP($B$19,Tablas!$A$156:$G$222,5,TRUE) -> 6034.15 | F30: =VLOOKUP($B$19,Tablas!$A$156:$G$222,6,TRUE) -> 4409.8
A31: Prima para conyuge | C31: =IF($B$15=1,0,(VLOOKUP($F$19,Tablas!$A$156:$G$222,3,TRUE))) -> 0 | D31: =IF($B$15=1,0,(VLOOKUP($F$19,Tablas!$A$156:$G$222,4,TRUE))) -> 0 | E31: =IF($B$15=1,0,(VLOOKUP($F$19,Tablas!$A$156:$G$222,5,TRUE))) -> 0 | F31: =IF($B$15=1,0,(VLOOKUP($F$19,Tablas!$A$156:$G$222,6,TRUE))) -> 0
A32: Prima para hijo (s) | C32: =IF($B$17=0,0,(VLOOKUP($B$17,Tablas!$A$223:$G$225,3,TRUE))) -> 0 | D32: =IF($B$17=0,0,(VLOOKUP($B$17,Tablas!$A$223:$G$225,4,TRUE))) -> 0 | E32: =IF($B$17=0,0,(VLOOKUP($B$17,Tablas!$A$223:$G$225,5,TRUE))) -> 0 | F32: =IF($B$17=0,0,(VLOOKUP($B$17,Tablas!$A$223:$G$225,6,TRUE))) -> 0
A33: Total de Prima neta | C33: =SUM(C30:C32) -> 8419.25 | D33: =SUM(D30:D32) -> 6772.8 | E33: 6034.15 | F33: 4409.8
A34: Ajuste por la variante con coaseguro fuera del país de residencia | C34: =IF('INGRESO DE DATOS'!$P$3,C33*-15%,0) -> 0 | D34: =IF('INGRESO DE DATOS'!$P$3,D33*-15%,0) -> 0 | E34: =IF('INGRESO DE DATOS'!$P$3,E33*-15%,0) -> 0 | F34: =IF('INGRESO DE DATOS'!$P$3,F33*-15%,0) -> 0
A35: Tarifa administrativa anual | C35: 75 | D35: 75 | E35: 75 | F35: 75
A36: VAT (5%) : | C36: =(C33+C34)*5% -> 420.9625 | D36: =(D33+D34)*5% -> 338.64 | E36: 301.7075 | F36: 220.49
A37: ITBMS (7%) | C37: =+C35*7% -> 5.25 | D37: =+D35*7% -> 5.25 | E37: 5.25 | F37: 5.25
A38: TOTAL ANUAL | C38: =SUM(C33:C37) -> 8920.4625 | D38: =SUM(D33:D37) -> 7191.69 | E38: 6416.1075 | F38: =SUM(F33:F37) -> 4710.54
A40: TARIFAS SEMESTRALES
A41: Prima para Asegurado Titular | C41: =VLOOKUP($B$19,Tablas!$A$533:$G$599,3,TRUE) -> 4462.2025 | D41: =VLOOKUP($B$19,Tablas!$A$533:$G$599,4,TRUE) -> 3589.584 | E41: =VLOOKUP($B$19,Tablas!$A$533:$G$599,5,TRUE) -> 3198.0995 | F41: =VLOOKUP($B$19,Tablas!$A$533:$G$599,6,TRUE) -> 2337.194
A42: Prima para conyuge | C42: =IF($B$15=1,0,(VLOOKUP($F$19,Tablas!$A$533:$G$599,3,TRUE))) -> 0 | D42: =IF($B$15=1,0,(VLOOKUP($F$19,Tablas!$A$533:$G$599,4,TRUE))) -> 0 | E42: =IF($B$15=1,0,(VLOOKUP($F$19,Tablas!$A$533:$G$599,5,TRUE))) -> 0 | F42: =IF($B$15=1,0,(VLOOKUP($F$19,Tablas!$A$533:$G$599,6,TRUE))) -> 0
A43: Prima para hijo (s) | C43: =IF($B$17=0,0,(VLOOKUP($B$17,Tablas!$A$600:$G$602,3,TRUE))) -> 0 | D43: =IF($B$17=0,0,(VLOOKUP($B$17,Tablas!$A$600:$G$602,4,TRUE))) -> 0 | E43: =IF($B$17=0,0,(VLOOKUP($B$17,Tablas!$A$600:$G$602,5,TRUE))) -> 0 | F43: =IF($B$17=0,0,(VLOOKUP($B$17,Tablas!$A$600:$G$602,6,TRUE))) -> 0
A44: Total de Prima neta | C44: =SUM(C41:C43) -> 4462.2025 | D44: =SUM(D41:D43) -> 3589.584 | E44: 3198.0995 | F44: 2337.194
A45: Ajuste por la variante con coaseguro fuera del país de residencia | C45: =IF('INGRESO DE DATOS'!$P$3,C44*-15%,0) -> 0 | D45: =IF('INGRESO DE DATOS'!$P$3,D44*-15%,0) -> 0 | E45: =IF('INGRESO DE DATOS'!$P$3,E44*-15%,0) -> 0 | F45: =IF('INGRESO DE DATOS'!$P$3,F44*-15%,0) -> 0
A46: Tarifa administrativa anual | C46: 75 | D46: 75 | E46: 75 | F46: 75
A47: VAT (5%) : | C47: =(C30+C31+C32+C34)*5%/2 -> 210.48125 | D47: =(D30+D31+D32+D34)*5%/2 -> 169.32 | E47: 150.85375 | F47: 110.245
A48: ITBMS (7%) | C48: =+C46*7%+ ((C30+C31+C32+C34)*0.06*0.07)/2 -> 22.930425 | D48: =+D46*7%+ ((D30+D31+D32+D34)*0.06*0.07)/2 -> 19.47288 | E48: 17.921715 | F48: 14.51058
A49: TOTAL de primera cuota | C49: =SUM(C44:C48) -> 4770.614175 | D49: =SUM(D44:D48) -> 3853.37688 | E49: 3441.874965 | F49: 2536.94958
A50: Costo de segunda cuota | C50: =((C44+C45)+ C47)+ ((C30+C31+C32+C34)*0.06*0.07)/2 -> 4690.364175 | D50: =((D44+D45)+ D47)+ ((D30+D31+D32+D34)*0.06*0.07)/2 -> 3773.12688 | E50: 3361.624965 | F50: 2456.69958
A51: TOTAL ANUAL | C51: =C49+C50 -> 9460.97835 | D51: =D49+D50 -> 7626.50376 | E51: 6803.49993 | F51: =F49+F50 -> 4993.64916
A53: TARIFAS TRIMESTRALES
A54: Prima para Asegurado Titular | C54: =VLOOKUP($B$19,Tablas!$A$760:$G$826,3,TRUE) -> 2315.29375 | D54: =VLOOKUP($B$19,Tablas!$A$760:$G$826,4,TRUE) -> 1862.52 | E54: =VLOOKUP($B$19,Tablas!$A$760:$G$826,5,TRUE) -> 1659.39125 | F54: =VLOOKUP($B$19,Tablas!$A$760:$G$826,6,TRUE) -> 1212.695
A55: Prima para conyuge | C55: =IF($B$15=1,0,(VLOOKUP($F$19,Tablas!$A$760:$G$826,3,TRUE))) -> 0 | D55: =IF($B$15=1,0,(VLOOKUP($F$19,Tablas!$A$760:$G$826,4,TRUE))) -> 0 | E55: =IF($B$15=1,0,(VLOOKUP($F$19,Tablas!$A$760:$G$826,5,TRUE))) -> 0 | F55: =IF($B$15=1,0,(VLOOKUP($F$19,Tablas!$A$760:$G$826,6,TRUE))) -> 0
A56: Prima para hijo (s) | C56: =IF($B$17=0,0,(VLOOKUP($B$17,Tablas!$A$827:$G$829,3,TRUE))) -> 0 | D56: =IF($B$17=0,0,(VLOOKUP($B$17,Tablas!$A$827:$G$829,4,TRUE))) -> 0 | E56: =IF($B$17=0,0,(VLOOKUP($B$17,Tablas!$A$827:$G$829,5,TRUE))) -> 0 | F56: =IF($B$17=0,0,(VLOOKUP($B$17,Tablas!$A$827:$G$829,6,TRUE))) -> 0
A57: Total de Prima neta | C57: =SUM(C54:C56) -> 2315.29375 | D57: =SUM(D54:D56) -> 1862.52 | E57: 1659.39125 | F57: 1212.695
A58: Ajuste por la variante con coaseguro fuera del país de residencia | C58: =IF('INGRESO DE DATOS'!$P$3,C57*-15%,0) -> 0 | D58: =IF('INGRESO DE DATOS'!$P$3,D57*-15%,0) -> 0 | E58: =IF('INGRESO DE DATOS'!$P$3,E57*-15%,0) -> 0 | F58: =IF('INGRESO DE DATOS'!$P$3,F57*-15%,0) -> 0
A59: Tarifa administrativa anual | C59: 75 | D59: 75 | E59: 75 | F59: 75
A60: VAT (5%) : | C60: =(C30+C31+C32+C34)*5%/4 -> 105.240625 | D60: =(D30+D31+D32+D34)*5%/4 -> 84.66 | E60: 75.426875 | F60: 55.1225
A61: ITBMS (7%) | C61: =+C59*7% + ((C30+C31+C32+C34)*0.1*0.07)/4 -> 19.9836875 | D61: =+D59*7% + ((D30+D31+D32+D34)*0.1*0.07)/4 -> 17.1024 | E61: 15.8097625 | F61: 12.96715
A62: TOTAL de primera cuota | C62: =SUM(C57:C61) -> 2515.518063 | D62: =SUM(D57:D61) -> 2039.2824 | E62: 1825.627888 | F62: 1355.78465
A63: Costo de tarifa trimestral 2 a 4 | C63: =((C57+C58)+ C60)+((C30+C31+C32+C34)*0.1*0.07)/4 -> 2435.268063 | D63: =((D57+D58)+ D60)+((D30+D31+D32+D34)*0.1*0.07)/4 -> 1959.0324 | E63: 1745.377888 | F63: 1275.53465
A64: TOTAL ANUAL | C64: =C62+(C63*3) -> 9821.32225 | D64: =D62+(D63*3) -> 7916.3796 | E64: 7061.76155 | F64: =F62+(F63*3) -> 5182.3886
A66: TARIFAS MENSUALES
A67: Prima para Asegurado Titular | C67: =VLOOKUP($B$19,Tablas!$A$230:$G$296,3,TRUE) -> 785.7966667 | D67: =VLOOKUP($B$19,Tablas!$A$230:$G$296,4,TRUE) -> 632.128 | E67: =VLOOKUP($B$19,Tablas!$A$230:$G$296,5,TRUE) -> 563.1873333 | F67: =VLOOKUP($B$19,Tablas!$A$230:$G$296,6,TRUE) -> 411.5813333
A68: Prima para conyuge | C68: =IF($B$15=1,0,(VLOOKUP($F$19,Tablas!$A$230:$G$296,3,TRUE))) -> 0 | D68: =IF($B$15=1,0,(VLOOKUP($F$19,Tablas!$A$230:$G$296,4,TRUE))) -> 0 | E68: =IF($B$15=1,0,(VLOOKUP($F$19,Tablas!$A$230:$G$296,5,TRUE))) -> 0 | F68: =IF($B$15=1,0,(VLOOKUP($F$19,Tablas!$A$230:$G$296,6,TRUE))) -> 0
A69: Prima para hijo (s) | C69: =IF($B$17=0,0,(VLOOKUP($B$17,Tablas!$A$297:$G$299,3,TRUE))) -> 0 | D69: =IF($B$17=0,0,(VLOOKUP($B$17,Tablas!$A$297:$G$299,4,TRUE))) -> 0 | E69: =IF($B$17=0,0,(VLOOKUP($B$17,Tablas!$A$297:$G$299,5,TRUE))) -> 0 | F69: =IF($B$17=0,0,(VLOOKUP($B$17,Tablas!$A$297:$G$299,6,TRUE))) -> 0
A70: Total de Prima neta | C70: =SUM(C67:C69) -> 785.7966667 | D70: =SUM(D67:D69) -> 632.128 | E70: 563.1873333 | F70: 411.5813333
A71: Ajuste por la variante con coaseguro fuera del país de residencia | C71: =IF('INGRESO DE DATOS'!$P$3,C70*-15%,0) -> 0 | D71: =IF('INGRESO DE DATOS'!$P$3,D70*-15%,0) -> 0 | E71: =IF('INGRESO DE DATOS'!$P$3,E70*-15%,0) -> 0 | F71: =IF('INGRESO DE DATOS'!$P$3,F70*-15%,0) -> 0
A72: Tarifa administrativa anual | C72: 75 | D72: 75 | E72: 75 | F72: 75
A73: VAT (5%) : | C73: =(C30+C31+C32+C34)*5%/12 -> 35.08020833 | D73: =(D30+D31+D32+D34)*5%/12 -> 28.22 | E73: 25.14229167 | F73: 18.37416667
A74: ITBMS (7%) | C74: =C72*7% + ((C30+C31+C32+C34)*0.12*0.07)/12 -> 11.143475 | D74: =D72*7% + ((D30+D31+D32+D34)*0.12*0.07)/12 -> 9.99096 | E74: 9.473905 | F74: 8.33686
A75: TOTAL de primera cuota | C75: =SUM(C70:C74) -> 907.02035 | D75: =SUM(D70:D74) -> 745.33896 | E75: 672.80353 | F75: 513.29236
A76: Costo de Tarifa mensual de 2 a 12 | C76: =((C70 + C71)+C73)+((C30+C31+C32+C34)*0.12*0.07)/12 -> 826.77035 | D76: =((D70 + D71)+D73)+((D30+D31+D32+D34)*0.12*0.07)/12 -> 665.08896 | E76: 592.55353 | F76: 433.04236
A77: TOTAL ANUAL | C77: =C75+(C76*11) -> 10001.4942 | D77: =D75+(D76*11) -> 8061.31752 | E77: 7190.89236 | F77: =F75+(F76*11) -> 5276.75832
A79: Este presupuesto solamente tiene carácter informativo y en ningún momento expresa compromiso legal para suministrarle cobertura de seguro. La emisión de una póliza de seguro Bupa está sujeta a todas las evaluaciones de riesgo por parte de Bupa y a la recepción de todos los pagos de prima requeridos.

Sheet Bupa Global Select
I1: RESUMEN DE BENEFICIOS | X1: RESUMEN DE BENEFICIOS | AM1: RESUMEN DE BENEFICIOS
A5: Cotización de Seguro Médico Internacional Bupa Global Select Health Plan Tarifas en US$ | Validas: 1 de enero de 2024
A13: Nombre del Asegurado Titular | B13: =+'INGRESO DE DATOS'!$C$37 -> John Doe
A15: Número de adultos en la póliza | B15: =+'INGRESO DE DATOS'!$C$39 -> 1
A17: Número de Dependientes en la póliza | B17: =+'INGRESO DE DATOS'!$C$41 -> 0 | C17: =IF('INGRESO DE DATOS'!$P$2=TRUE, "Cotización para dependiente de 24 años","") -> 
A19: Edad del Asegurado Titular | B19: =+'INGRESO DE DATOS'!$C$43 -> 52 | D19: Edad del/la conyuge | F19: =+'INGRESO DE DATOS'!$C$45 -> 32
A21: Fecha de la cotización | B21: =NOW() -> 2024-01-10T13:30:25.430
A23: =IF('INGRESO DE DATOS'!P3=TRUE,"Variante con coaseguro fuera del país de residencia: SI","Variante con coaseguro fuera del país de residencia: NO") -> Variante con coaseguro fuera del país de residencia: NO
A25: DEDUCIBLES | C25: PLAN 1 | D25: PLAN 2 | E25: PLAN 3 | F25: PLAN 4
A26: En el país de residencia | C26: 2000 | D26: 3500 | E26: 5000 | F26: 10000
A27: Fuera del país de residencia | C27: 2000 | D27: 3500 | E27: 5000 | F27: 10000
A29: TARIFAS ANUALES
A30: Prima para Asegurado Titular | C30: =VLOOKUP($B$19,Tablas!$A$307:$G$373,3,TRUE) -> 6137.85 | D30: =VLOOKUP($B$19,Tablas!$A$307:$G$373,4,TRUE) -> 4941.9 | E30: =VLOOKUP($B$19,Tablas!$A$307:$G$373,5,TRUE) -> 4357.1 | F30: =VLOOKUP($B$19,Tablas!$A$307:$G$373,6,TRUE) -> 3184.1
A31: Prima para conyuge | C31: =IF($B$15=1,0,(VLOOKUP($F$19,Tablas!$A$307:$G$373,3,TRUE))) -> 0 | D31: =IF($B$15=1,0,(VLOOKUP($F$19,Tablas!$A$307:$G$373,4,TRUE))) -> 0 | E31: =IF($B$15=1,0,(VLOOKUP($F$19,Tablas!$A$307:$G$373,5,TRUE))) -> 0 | F31: =IF($B$15=1,0,(VLOOKUP($F$19,Tablas!$A$307:$G$373,6,TRUE))) -> 0
A32: Prima para hijo (s) | C32: =IF($B$17=0,0,(VLOOKUP($B$17,Tablas!$A$374:$G$376,3,TRUE))) -> 0 | D32: =IF($B$17=0,0,(VLOOKUP($B$17,Tablas!$A$374:$G$376,4,TRUE))) -> 0 | E32: =IF($B$17=0,0,(VLOOKUP($B$17,Tablas!$A$374:$G$376,5,TRUE))) -> 0 | F32: =IF($B$17=0,0,(VLOOKUP($B$17,Tablas!$A$374:$G$376,6,TRUE))) -> 0
A33: Total de Prima neta | C33: =SUM(C30:C32) -> 6137.85 | D33: =SUM(D30:D32) -> 4941.9 | E33: 4357.1 | F33: 3184.1
A34: Ajuste por la variante con coaseguro fuera del país de residencia | C34: =IF('INGRESO DE DATOS'!$P$3,C33*-15%,0) -> 0 | D34: =IF('INGRESO DE DATOS'!$P$3,D33*-15%,0) -> 0 | E34: =IF('INGRESO DE DATOS'!$P$3,E33*-15%,0) -> 0 | F34: =IF('INGRESO DE DATOS'!$P$3,F33*-15%,0) -> 0
A35: Tarifa administrativa anual | C35: 75 | D35: 75 | E35: 75 | F35: 75
A36: VAT (5%) : | C36: =(C33+C34)*5% -> 306.8925 | D36: =(D33+D34)*5% -> 247.095 | E36: 217.855 | F36: 159.205
A37: ITBMS (7%) | C37: =+C35*7% -> 5.25 | D37: =+D35*7% -> 5.25 | E37: 5.25 | F37: 5.25
A38: TOTAL ANUAL | C38: =SUM(C33:C37) -> 6524.9925 | D38: =SUM(D33:D37) -> 5269.245 | E38: 4655.205 | F38: =SUM(F33:F37) -> 3423.555
A40: TARIFAS SEMESTRALES
A41: Prima para Asegurado Titular | C41: =VLOOKUP($B$19,Tablas!$A$608:$G$674,3,TRUE) -> 3253.0605 | D41: =VLOOKUP($B$19,Tablas!$A$608:$G$674,4,TRUE) -> 2619.207 | E41: =VLOOKUP($B$19,Tablas!$A$608:$G$674,5,TRUE) -> 2309.263 | F41: =VLOOKUP($B$19,Tablas!$A$608:$G$674,6,TRUE) -> 1687.573
A42: Prima para conyuge | C42: =IF($B$15=1,0,(VLOOKUP($F$19,Tablas!$A$608:$G$674,3,TRUE))) -> 0 | D42: =IF($B$15=1,0,(VLOOKUP($F$19,Tablas!$A$608:$G$674,4,TRUE))) -> 0 | E42: =IF($B$15=1,0,(VLOOKUP($F$19,Tablas!$A$608:$G$674,5,TRUE))) -> 0 | F42: =IF($B$15=1,0,(VLOOKUP($F$19,Tablas!$A$608:$G$674,6,TRUE))) -> 0
A43: Prima para hijo (s) | C43: =IF($B$17=0,0,(VLOOKUP($B$17,Tablas!$A$675:$G$677,3,TRUE))) -> 0 | D43: =IF($B$17=0,0,(VLOOKUP($B$17,Tablas!$A$675:$G$677,4,TRUE))) -> 0 | E43: =IF($B$17=0,0,(VLOOKUP($B$17,Tablas!$A$675:$G$677,5,TRUE))) -> 0 | F43: =IF($B$17=0,0,(VLOOKUP($B$17,Tablas!$A$675:$G$677,6,TRUE))) -> 0
A44: Total de Prima neta | C44: =SUM(C41:C43) -> 3253.0605 | D44: =SUM(D41:D43) -> 2619.207 | E44: 2309.263 | F44: 1687.573
A45: Ajuste por la variante con coaseguro fuera del país de residencia | C45: =IF('INGRESO DE DATOS'!$P$3,C44*-15%,0) -> 0 | D45: =IF('INGRESO DE DATOS'!$P$3,D44*-15%,0) -> 0 | E45: =IF('INGRESO DE DATOS'!$P$3,E44*-15%,0) -> 0 | F45: =IF('INGRESO DE DATOS'!$P$3,F44*-15%,0) -> 0
A46: Tarifa administrativa anual | C46: 75 | D46: 75 | E46: 75 | F46: 75
A47: VAT (5%) : | C47: =(C30+C31+C32+C34)*5%/2 -> 153.44625 | D47: =(D30+D31+D32+D34)*5%/2 -> 123.5475 | E47: 108.9275 | F47: 79.6025
A48: ITBMS (7%) | C48: =C46*7% + ((C30+C31+C32+C34)*0.06*0.07)/2 -> 18.139485 | D48: =D46*7% + ((D30+D31+D32+D34)*0.06*0.07)/2 -> 15.62799 | E48: 14.39991 | F48: 11.93661
A49: TOTAL de primera cuota | C49: =SUM(C44:C48) -> 3499.646235 | D49: =SUM(D44:D48) -> 2833.38249 | E49: 2507.59041 | F49: 1854.11211
A50: Costo de segunda cuota | C50: =(C44+C45)+C47+((C30+C31+C32+C34)*0.06*0.07)/2 -> 3419.396235 | D50: =(D44+D45)+D47+((D30+D31+D32+D34)*0.06*0.07)/2 -> 2753.13249 | E50: 2427.34041 | F50: 1773.86211
A51: TOTAL ANUAL | C51: =C49+C50 -> 6919.04247 | D51: =D49+D50 -> 5586.51498 | E51: 4934.93082 | F51: =F49+F50 -> 3627.97422
A53: TARIFAS TRIMESTRALES
A54: Prima para Asegurado Titular | C54: =VLOOKUP($B$19,Tablas!$A$835:$G$901,3,TRUE) -> 1687.90875 | D54: =VLOOKUP($B$19,Tablas!$A$835:$G$901,4,TRUE) -> 1359.0225 | E54: =VLOOKUP($B$19,Tablas!$A$835:$G$901,5,TRUE) -> 1198.2025 | F54: =VLOOKUP($B$19,Tablas!$A$835:$G$901,6,TRUE) -> 875.6275
A55: Prima para conyuge | C55: =IF($B$15=1,0,(VLOOKUP($F$19,Tablas!$A$835:$G$901,3,TRUE))) -> 0 | D55: =IF($B$15=1,0,(VLOOKUP($F$19,Tablas!$A$835:$G$901,4,TRUE))) -> 0 | E55: =IF($B$15=1,0,(VLOOKUP($F$19,Tablas!$A$835:$G$901,5,TRUE))) -> 0 | F55: =IF($B$15=1,0,(VLOOKUP($F$19,Tablas!$A$835:$G$901,6,TRUE))) -> 0
A56: Prima para hijo (s) | C56: =IF($B$17=0,0,(VLOOKUP($B$17,Tablas!$A$902:$G$904,3,TRUE))) -> 0 | D56: =IF($B$17=0,0,(VLOOKUP($B$17,Tablas!$A$902:$G$904,4,TRUE))) -> 0 | E56: =IF($B$17=0,0,(VLOOKUP($B$17,Tablas!$A$902:$G$904,5,TRUE))) -> 0 | F56: =IF($B$17=0,0,(VLOOKUP($B$17,Tablas!$A$902:$G$904,6,TRUE))) -> 0
A57: Total de Prima neta | C57: =SUM(C54:C56) -> 1687.90875 | D57: =SUM(D54:D56) -> 1359.0225 | E57: 1198.2025 | F57: 875.6275
A58: Ajuste por la variante con coaseguro fuera del país de residencia | C58: =IF('INGRESO DE DATOS'!$P$3,C57*-15%,0) -> 0 | D58: =IF('INGRESO DE DATOS'!$P$3,D57*-15%,0) -> 0 | E58: =IF('INGRESO DE DATOS'!$P$3,E57*-15%,0) -> 0 | F58: =IF('INGRESO DE DATOS'!$P$3,F57*-15%,0) -> 0
A59: Tarifa administrativa anual | C59: 75 | D59: 75 | E59: 75 | F59: 75
A60: VAT (5%) : | C60: =(C30+C31+C32+C34)*5%/4 -> 76.723125 | D60: =(D30+D31+D32+D34)*5%/4 -> 61.77375 | E60: 54.46375 | F60: 39.80125
A61: ITBMS (7%) | C61: =+C59*7%+ ((C30+C31+C32+C34)*0.1*0.07)/4 -> 15.9912375 | D61: =+D59*7%+ ((D30+D31+D32+D34)*0.1*0.07)/4 -> 13.898325 | E61: 12.874925 | F61: 10.822175
A62: TOTAL de primera cuota | C62: =SUM(C57:C61) -> 1855.623112 | D62: =SUM(D57:D61) -> 1509.694575 | E62: 1340.541175 | F62: 1001.250925
A63: Costo de tarifa trimestral 2 a 4 | C63: =(C57+C58)+C60+((C30+C31+C32+C34)*0.1*0.07)/4 -> 1775.373112 | D63: =(D57+D58)+D60+((D30+D31+D32+D34)*0.1*0.07)/4 -> 1429.444575 | E63: 1260.291175 | F63: 921.000925
A64: TOTAL ANUAL | C64: =C62+(C63*3) -> 7181.74245 | D64: =D62+(D63*3) -> 5798.0283 | E64: 5121.4147 | F64: =F62+(F63*3) -> 3764.2537
A66: TARIFAS MENSUALES
A67: Prima para Asegurado Titular | C67: =VLOOKUP($B$19,Tablas!$A$381:$G$447,3,TRUE) -> 572.866 | D67: =VLOOKUP($B$19,Tablas!$A$381:$G$447,4,TRUE) -> 461.244 | E67: =VLOOKUP($B$19,Tablas!$A$381:$G$447,5,TRUE) -> 406.6626667 | F67: =VLOOKUP($B$19,Tablas!$A$381:$G$447,6,TRUE) -> 297.1826667
A68: Prima para conyuge | C68: =IF($B$15=1,0,(VLOOKUP($F$19,Tablas!$A$381:$G$447,3,TRUE))) -> 0 | D68: =IF($B$15=1,0,(VLOOKUP($F$19,Tablas!$A$381:$G$447,4,TRUE))) -> 0 | E68: =IF($B$15=1,0,(VLOOKUP($F$19,Tablas!$A$381:$G$447,5,TRUE))) -> 0 | F68: =IF($B$15=1,0,(VLOOKUP($F$19,Tablas!$A$381:$G$447,6,TRUE))) -> 0
A69: Prima para hijo (s) | C69: =IF($B$17=0,0,(VLOOKUP($B$17,Tablas!$A$448:$G$450,3,TRUE))) -> 0 | D69: =IF($B$17=0,0,(VLOOKUP($B$17,Tablas!$A$448:$G$450,4,TRUE))) -> 0 | E69: =IF($B$17=0,0,(VLOOKUP($B$17,Tablas!$A$448:$G$450,5,TRUE))) -> 0 | F69: =IF($B$17=0,0,(VLOOKUP($B$17,Tablas!$A$448:$G$450,6,TRUE))) -> 0
A70: Total de Prima neta | C70: =SUM(C67:C69) -> 572.866 | D70: =SUM(D67:D69) -> 461.244 | E70: 406.6626667 | F70: 297.1826667
A71: Ajuste por la variante con coaseguro fuera del país de residencia | C71: =IF('INGRESO DE DATOS'!$P$3,C70*-15%,0) -> 0 | D71: =IF('INGRESO DE DATOS'!$P$3,D70*-15%,0) -> 0 | E71: =IF('INGRESO DE DATOS'!$P$3,E70*-15%,0) -> 0 | F71: =IF('INGRESO DE DATOS'!$P$3,F70*-15%,0) -> 0
A72: Tarifa administrativa anual | C72: 75 | D72: 75 | E72: 75 | F72: 75
A73: VAT (5%) : | C73: =(C30+C31+C32+C34)*5%/12 -> 25.574375 | D73: =(D30+D31+D32+D34)*5%/12 -> 20.59125 | E73: 18.15458333 | F73: 13.26708333
A74: ITBMS (7%) | C74: =+C72*7% + ((C30+C31+C32+C34)*0.12*0.07)/12 -> 9.546495 | D74: =+D72*7% + ((D30+D31+D32+D34)*0.12*0.07)/12 -> 8.70933 | E74: 8.29997 | F74: 7.47887
A75: TOTAL de primera cuota | C75: =SUM(C70:C74) -> 682.98687 | D75: =SUM(D70:D74) -> 565.54458 | E75: 508.11722 | F75: 392.92862
A76: Costo de Tarifa mensual de 2 a 12 | C76: =((C70 + C71)+C73)+((C30+C31+C32+C34)*0.12*0.07)/12 -> 602.73687 | D76: =((D70 + D71)+D73)+((D30+D31+D32+D34)*0.12*0.07)/12 -> 485.29458 | E76: 427.86722 | F76: 312.67862
A77: TOTAL ANUAL | C77: =C75+(C76*11) -> 7313.09244 | D77: =D75+(D76*11) -> 5903.78496 | E77: 5214.65664 | F77: =F75+(F76*11) -> 3832.39344
A79: Este presupuesto solamente tiene carácter informativo y en ningún momento expresa compromiso legal para suministrarle cobertura de seguro. La emisión de una póliza de seguro Bupa está sujeta a todas las evaluaciones de riesgo por parte de Bupa y a la recepción de todos los pagos de prima requeridos.

Sheet Bupa Global Major Medical
G1: RESUMEN DE BENEFICIOS | V1: RESUMEN DE BENEFICIOS
A5: Cotización de Seguro Médico Internacional Bupa Global Major Medical Health Plan Tarifas en US$ | Validas: 1 de enero de 2024
A13: Nombre del Asegurado Titular | B13: =+'INGRESO DE DATOS'!$C$37 -> John Doe
A15: Número de adultos en la póliza | B15: =+'INGRESO DE DATOS'!$C$39 -> 1
A17: Número de Dependientes en la póliza | B17: =+'INGRESO DE DATOS'!$C$41 -> 0 | C17: =IF('INGRESO DE DATOS'!$P$2=TRUE, "Cotización para dependiente de 24 años","") -> 
A19: Edad del Asegurado Titular | B19: =+'INGRESO DE DATOS'!$C$43 -> 52 | C19: Edad del/la conyuge | D19: =+'INGRESO DE DATOS'!$C$45 -> 32
A21: Fecha de la cotización | B21: =NOW() -> 2024-01-10T13:30:25.430
A23: DEDUCIBLeS | C23: PLAN 1 | D23: PLAN 2
A24: En el país de residencia | C24: 10000 | D24: 20000
A25: Fuera del país de residencia | C25: 10000 | D25: 20000
A27: TARIFAS ANUALES
A28: Prima para Asegurado Titular | C28: =VLOOKUP($B$19,Tablas!$A$1138:$G$1204,3,TRUE) -> 3076.15 | D28: =VLOOKUP($B$19,Tablas!$A$1138:$G$1204,4,TRUE) -> 2340.9
A29: Prima para conyuge | C29: =IF($B$15=1,0,(VLOOKUP($D$19,Tablas!$A$1138:$G$1204,3,TRUE))) -> 0 | D29: =IF($B$15=1,0,(VLOOKUP($D$19,Tablas!$A$1138:$G$1204,4,TRUE))) -> 0
A30: Prima para hijo (s) | C30: =IF($B$17=0,0,(VLOOKUP($B$17,Tablas!$A$1205:$G$1207,3,TRUE))) -> 0 | D30: =IF($B$17=0,0,(VLOOKUP($B$17,Tablas!$A$1205:$G$1207,4,TRUE))) -> 0
A31: Total de Prima neta | C31: =SUM(C28:C30) -> 3076.15 | D31: =SUM(D28:D30) -> 2340.9
A32: Tarifa administrativa anual | C32: 75 | D32: 75
A33: VAT (5%) : | C33: =+C31*5% -> 153.8075 | D33: =+D31*5% -> 117.045
A34: ITBMS (7%) | C34: =+C32*7% -> 5.25 | D34: =+D32*7% -> 5.25
A35: TOTAL ANUAL | C35: =SUM(C31:C34) -> 3310.2075 | D35: =SUM(D31:D34) -> 2538.195
A37: TARIFAS SEMESTRALES
A38: Prima para Asegurado Titular | C38: =VLOOKUP($B$19,Tablas!$A$1362:$G$1428,3,TRUE) -> 1630.3595 | D38: =VLOOKUP($B$19,Tablas!$A$1362:$G$1428,4,TRUE) -> 1240.677
A39: Prima para conyuge | C39: =IF($B$15=1,0,(VLOOKUP($D$19,Tablas!$A$1362:$G$1428,3,TRUE))) -> 0 | D39: =IF($B$15=1,0,(VLOOKUP($D$19,Tablas!$A$1362:$G$1428,4,TRUE))) -> 0
A40: Prima para hijo (s) | C40: =IF($B$17=0,0,(VLOOKUP($B$17,Tablas!$A$1429:$G$1431,3,TRUE))) -> 0 | D40: =IF($B$17=0,0,(VLOOKUP($B$17,Tablas!$A$1429:$G$1431,4,TRUE))) -> 0
A41: Total de Prima neta | C41: =SUM(C38:C40) -> 1630.3595 | D41: =SUM(D38:D40) -> 1240.677
A42: Tarifa administrativa anual | C42: 75 | D42: 75
A43: VAT (5%) : | C43: =(C28+C29+C30)*5%/2 -> 76.90375 | D43: =(D28+D29+D30)*5%/2 -> 58.5225
A44: ITBMS (7%) | C44: =+C42*7%+ ((C28+C29+C30)*0.06*0.07)/2 -> 11.709915 | D44: =+D42*7%+ ((D28+D29+D30)*0.06*0.07)/2 -> 10.16589
A45: TOTAL de primera cuota | C45: =SUM(C41:C44) -> 1793.973165 | D45: =SUM(D41:D44) -> 1384.36539
A46: Costo de segunda cuota | C46: =(C41 + C43)+ ((C28+C29+C30)*0.06*0.07)/2 -> 1713.723165 | D46: =(D41 + D43)+ ((D28+D29+D30)*0.06*0.07)/2 -> 1304.11539
A47: TOTAL ANUAL | C47: =C45+C46 -> 3507.69633 | D47: =D45+D46 -> 2688.48078
A49: TARIFAS TRIMESTRALES
A50: Prima para Asegurado Titular | C50: =VLOOKUP($B$19,Tablas!$A$1287:$G$1353,3,TRUE) -> 845.94125 | D50: =VLOOKUP($B$19,Tablas!$A$1287:$G$1353,4,TRUE) -> 643.7475
A51: Prima para conyuge | C51: =IF($B$15=1,0,(VLOOKUP($D$19,Tablas!$A$1287:$G$1353,3,TRUE))) -> 0 | D51: =IF($B$15=1,0,(VLOOKUP($D$19,Tablas!$A$1287:$G$1353,4,TRUE))) -> 0
A52: Prima para hijo (s) | C52: =IF($B$17=0,0,(VLOOKUP($B$17,Tablas!$A$1354:$G$1356,3,TRUE))) -> 0 | D52: =IF($B$17=0,0,(VLOOKUP($B$17,Tablas!$A$1354:$G$1356,4,TRUE))) -> 0
A53: Total de Prima neta | C53: =SUM(C50:C52) -> 845.94125 | D53: =SUM(D50:D52) -> 643.7475
A54: Tarifa administrativa anual | C54: 75 | D54: 75
A55: VAT (5%) : | C55: =(C28+C29+C30)*5%/4 -> 38.451875 | D55: =(D28+D29+D30)*5%/4 -> 29.26125
A56: ITBMS (7%) | C56: =+C54*7% + ((C46)*0.1*0.07)/4 -> 8.249015539 | D56: =+D54*7% + ((D28+D29+D30)*0.1*0.07)/4 -> 9.346575
A57: TOTAL de primera cuota | C57: =SUM(C53:C56) -> 967.6421405 | D57: =SUM(D53:D56) -> 757.355325
A58: Costo de tarifa trimestral 2 a 4 | C58: =(C53 + C55)+((C28+C29+C30)*0.1*0.07)/4 -> 889.7763875 | D58: =(D53 + D55)+((D28+D29+D30)*0.1*0.07)/4 -> 677.105325
A59: TOTAL ANUAL | C59: =C57+(C58*3) -> 3636.971303 | D59: =D57+(D58*3) -> 2788.6713
A61: TARIFAS MENSUALES
A62: Prima para Asegurado Titular | C62: =VLOOKUP($B$19,Tablas!$A$1212:$G$1278,3,TRUE) -> 287.1073333 | D62: =VLOOKUP($B$19,Tablas!$A$1212:$G$1278,4,TRUE) -> 218.484
A63: Prima para conyuge | C63: =IF($B$15=1,0,(VLOOKUP($D$19,Tablas!$A$1212:$G$1278,3,TRUE))) -> 0 | D63: =IF($B$15=1,0,(VLOOKUP($D$19,Tablas!$A$1212:$G$1278,4,TRUE))) -> 0
A64: Prima para hijo (s) | C64: =IF($B$17=0,0,(VLOOKUP($B$17,Tablas!$A$1279:$G$1281,3,TRUE))) -> 0 | D64: =IF($B$17=0,0,(VLOOKUP($B$17,Tablas!$A$1279:$G$1281,4,TRUE))) -> 0
A65: Total de Prima neta | C65: =SUM(C62:C64) -> 287.1073333 | D65: =SUM(D62:D64) -> 218.484
A66: Tarifa administrativa anual | C66: 75 | D66: 75
A67: VAT (5%) : | C67: =(C28+C29+C30)*5%/12 -> 12.81729167 | D67: =(D28+D29+D30)*5%/12 -> 9.75375
A68: ITBMS (7%) | C68: =+C66*7% + ((C28+C29+C30)*0.06*0.07)/2 -> 11.709915 | D68: =+D66*7% + ((D28+D29+D30)*0.12*0.07)/12 -> 6.88863
A69: TOTAL de primera cuota | C69: =SUM(C65:C68) -> 386.63454 | D69: =SUM(D65:D68) -> 310.12638
A70: Costo de Tarifa mensual de 2 a 12 | C70: =(C65 + C67)+((C28+C29+C30)*0.12*0.07)/12 -> 302.07793 | D70: =(D65 + D67)+((D28+D29+D30)*0.12*0.07)/12 -> 229.87638
A71: TOTAL ANUAL | C71: =C69+(C70*11) -> 3709.49177 | D71: =D69+(D70*11) -> 2838.76656
A73: Este presupuesto solamente tiene carácter informativo y en ningún momento expresa compromiso legal para suministrarle cobertura de seguro. La emisión de una póliza de seguro Bupa está sujeta a todas las evaluaciones de riesgo por parte de Bupa y a la recepción de todos los pagos de prima requeridos.

Sheet Resumen Tarifas
A5: Cotización de Seguro Médico Internacional Bupa Global Major Health Plans Resumen de Tarifas Tarifas en US$ | Validas: 1 de enero de 2024
A13: Nombre del Asegurado Titular | B13: =+'INGRESO DE DATOS'!$C$37 -> John Doe
A15: Número de adultos en la póliza | B15: =+'INGRESO DE DATOS'!$C$39 -> 1
A17: Número de Dependientes en la póliza | B17: =+'INGRESO DE DATOS'!$C$41 -> 0 | C17: =IF('INGRESO DE DATOS'!$P$2=TRUE, "Cotización para dependiente de 24 años","") -> 
A19: Edad del Asegurado Titular | B19: =+'INGRESO DE DATOS'!$C$43 -> 52 | E19: Edad del/la conyuge | F19: =+'INGRESO DE DATOS'!$C$45 -> 32
A21: Fecha de la cotización | B21: =NOW() -> 2024-01-10T13:30:25.430
A23: BUPA GLOBAL ULTIMATE HEALTH PLAN
A24: DEDUCIBLES | B24: PLAN 1 | C24: PLAN 2 | D24: PLAN 3
A25: En el país de residencia | B25: $0 | C25: 1000 | D25: 2000
A26: Fuera del país de residencia | B26: $0 | C26: 1000 | D26: 2000
B27: TARIFAS ANUALES
B28: ='Bupa Global Ultimate'!C38 -> 29468.49 | C28: ='Bupa Global Ultimate'!D38 -> 19041.4125 | D28: ='Bupa Global Ultimate'!E38 -> 15751.6575
B29: TArIFAS SEMESTRALES
B30: ='Bupa Global Ultimate'!C50 -> 15592.56048 | C30: ='Bupa Global Ultimate'!D50 -> 10060.25108 | D30: ='Bupa Global Ultimate'!E50 -> 8314.801065
B31: TARIFAS TRIMESTRALES
B32: ='Bupa Global Ultimate'!C63 -> 8095.7604 | C32: ='Bupa Global Ultimate'!D63 -> 5223.348812 | D32: ='Bupa Global Ultimate'!E63 -> 4317.099638
B33: TARIFAS MENSUALES
B34: ='Bupa Global Ultimate'!C76 -> 2748.50016 | C34: ='Bupa Global Ultimate'!D76 -> 1773.32015 | D34: ='Bupa Global Ultimate'!E76 -> 1465.64973
A35: Ahorros en tarifas de prima para Dependientes* | B35: ='Bupa Global Ultimate'!C39 -> 0 | C35: ='Bupa Global Ultimate'!D39 -> 0 | D35: ='Bupa Global Ultimate'!E39 -> 0
A37: BUPA GLOBAL ELITE HEALTH PLAN
A38: DEDUCIBLES | B38: PLAN 1 | C38: PLAN 2 | D38: PLAN 3 | E38: PLAN 4 | F38: PLAN 5
A39: En el país de residencia | B39: 1000 | C39: 2000 | D39: 3500 | E39: 5000 | F39: 10000
A40: Fuera del país de residencia | B40: 1000 | C40: 2000 | D40: 3500 | E40: 5000 | F40: 10000
A41: =IF('INGRESO DE DATOS'!P3=TRUE,"Variante con coaseguro fuera del país de residencia: SI","Variante con coaseguro fuera del país de residencia: NO") -> Variante con coaseguro fuera del país de residencia: NO | B41: TARIFAS ANUALES
B42: =+'Bupa Global Elite'!C40 -> 15547.275 | C42: =+'Bupa Global Elite'!D40 -> 11006.235 | D42: =+'Bupa Global Elite'!E40 -> 8849.955 | E42: =+'Bupa Global Elite'!F40 -> 7684.35 | F42: =+'Bupa Global Elite'!G40 -> 5875.2525
B43: TARIFAS SEMESTRALES
B44: =+'Bupa Global Elite'!C53 -> 8206.36155 | C44: =+'Bupa Global Elite'!D53 -> 5797.01547 | D44: =+'Bupa Global Elite'!E53 -> 4652.95491 | E44: =+'Bupa Global Elite'!F53 -> 4034.5182 | F44: =+'Bupa Global Elite'!G53 -> 3074.662755
B45: TARIFAS TRIMESTRALES
B46: =+'Bupa Global Elite'!C67 -> 4260.797125 | C46: =+'Bupa Global Elite'!D67 -> 3009.848725 | D46: =+'Bupa Global Elite'!E67 -> 2415.844925 | E46: =+'Bupa Global Elite'!F67 -> 2094.7485 | F46: =+'Bupa Global Elite'!G67 -> 1596.385213
B47: TARIFAS MENSUALES
B48: =+'Bupa Global Elite'!C81 -> 1446.5351 | C48: =+'Bupa Global Elite'!D81 -> 1021.83974 | D48: =+'Bupa Global Elite'!E81 -> 820.17622 | E48: =+'Bupa Global Elite'!F81 -> 711.1644 | F48: =+'Bupa Global Elite'!G81 -> 541.97071
A49: Ahorros en tarifas de prima para Dependientes* | B49: =+'Bupa Global Elite'!C41 -> 0 | C49: =+'Bupa Global Elite'!D41 -> 0 | D49: =+'Bupa Global Elite'!E41 -> 0 | E49: =+'Bupa Global Elite'!F41 -> 0 | F49: =+'Bupa Global Elite'!G41 -> 0
A51: BUPA GLOBAL PREMIER HEALTH PLAN
A52: DEDUCIBLES | B52: PLAN 1 | C52: PLAN 2 | D52: PLAN 3 | E52: PLAN 4
A53: En el país de residencia | B53: 2000 | C53: 3500 | D53: 5000 | E53: 10000
A54: Fuera del país de residencia | B54: 2000 | C54: 3500 | D54: 5000 | E54: 10000
A55: =IF('INGRESO DE DATOS'!P3=TRUE,"Variante con coaseguro fuera del país de residencia: SI","Variante con coaseguro fuera del país de residencia: NO") -> Variante con coaseguro fuera del país de residencia: NO | B55: TARIFAS ANUALES
B56: =+'Bupa Global Premier'!C38 -> 8920.4625 | C56: =+'Bupa Global Premier'!D38 -> 7191.69 | D56: =+'Bupa Global Premier'!E38 -> 6416.1075 | E56: =+'Bupa Global Premier'!F38 -> 4710.54
B57: TARIFAS SEMESTRALES
B58: =+'Bupa Global Premier'!C50 -> 4690.364175 | C58: =+'Bupa Global Premier'!D50 -> 3773.12688 | D58: =+'Bupa Global Premier'!E50 -> 3361.624965 | E58: =+'Bupa Global Premier'!F50 -> 2456.69958
B59: TARIFAS TRIMESTRALES
B60: =+'Bupa Global Premier'!C63 -> 2435.268063 | C60: =+'Bupa Global Premier'!D63 -> 1959.0324 | D60: =+'Bupa Global Premier'!E63 -> 1745.377888 | E60: =+'Bupa Global Premier'!F63 -> 1275.53465
B61: TARIFAS MENSUALES
B62: =+'Bupa Global Premier'!C76 -> 826.77035 | C62: =+'Bupa Global Premier'!D76 -> 665.08896 | D62: =+'Bupa Global Premier'!E76 -> 592.55353 | E62: =+'Bupa Global Premier'!F76 -> 433.04236
A64: BUPA GLOBAL SELECT HEALTH PLAN
A65: DEDUCIBLES | B65: PLAN 1 | C65: PLAN 2 | D65: PLAN 3 | E65: PLAN 4
A66: En el país de residencia | B66: 2000 | C66: 3500 | D66: 5000 | E66: 10000
A67: Fuera del país de residencia | B67: 2000 | C67: 3500 | D67: 5000 | E67: 10000
A68: =IF('INGRESO DE DATOS'!P3=TRUE,"Variante con coaseguro fuera del país de residencia: SI","Variante con coaseguro fuera del país de residencia: NO") -> Variante con coaseguro fuera del país de residencia: NO | B68: TARIFAS ANUALES
B69: =+'Bupa Global Select'!C38 -> 6524.9925 | C69: =+'Bupa Global Select'!D38 -> 5269.245 | D69: =+'Bupa Global Select'!E38 -> 4655.205 | E69: =+'Bupa Global Select'!F38 -> 3423.555
B70: TARIFAS SEMESTRALES
B71: =+'Bupa Global Select'!C50 -> 3419.396235 | C71: =+'Bupa Global Select'!D50 -> 2753.13249 | D71: =+'Bupa Global Select'!E50 -> 2427.34041 | E71: =+'Bupa Global Select'!F50 -> 1773.86211
B72: TARIFAS TRIMESTRALES
B73: =+'Bupa Global Select'!C63 -> 1775.373112 | C73: =+'Bupa Global Select'!D63 -> 1429.444575 | D73: =+'Bupa Global Select'!E63 -> 1260.291175 | E73: =+'Bupa Global Select'!F63 -> 921.000925
B74: TARIFAS MENSUALES
B75: =+'Bupa Global Select'!C76 -> 602.73687 | C75: =+'Bupa Global Select'!D76 -> 485.29458 | D75: =+'Bupa Global Select'!E76 -> 427.86722 | E75: =+'Bupa Global Select'!F76 -> 312.67862
A77: BUPA GLOBAL MAJOR MEDICAL HEALTH PLAN
A78: DEDUCIBLES | B78: PLAN 1 | C78: PLAN 2
A79: En el país de residencia | B79: 10000 | C79: 20000
A80: Fuera del país de residencia | B80: 10000 | C80: 20000
B81: TARIFAS ANUALES
B82: ='Bupa Global Major Medical'!C35 -> 3310.2075 | C82: ='Bupa Global Major Medical'!D35 -> 2538.195
B83: TARIFAS SEMESTRALES
B84: ='Bupa Global Major Medical'!C46 -> 1713.723165 | C84: ='Bupa Global Major Medical'!D46 -> 1304.11539
B85: TARIFAS TRIMESTRALES
B86: ='Bupa Global Major Medical'!C58 -> 889.7763875 | C86: ='Bupa Global Major Medical'!D58 -> 677.105325
B87: TARIFAS MENSUALES
B88: ='Bupa Global Major Medical'!C70 -> 302.07793 | C88: ='Bupa Global Major Medical'!D70 -> 229.87638
A90: Este presupuesto solamente tiene carácter informativo y en ningún momento expresa compromiso legal para suministrarle cobertura de seguro. La emisión de una póliza de seguro Bupa está sujeta a todas las evaluaciones de riesgo por parte de Bupa y a la recepción de todos los pagos de prima requeridos. Una tarifa administrativa de US$75 se cargará automáticamente al primer pago. *Basado en un modo de pago anual

Sheet Tablas (hidden)
A2: BUPA GLOBAL ELITE | I2: FACTOR MENSUAL: | K2: 0.09333333333 | M2: Descuento de 24 años | N2: ='INGRESO DE DATOS'!P30 -> 1 | O2: Ultimate | P2: Elite | Q2: Premier | R2: Select | S2: Major Medical
A3: TARIFAS ANUALES | I3: FACTOR TRIMESTRAL: | K3: 0.275 | M3: Descuento de producto (%) | O3: ='INGRESO DE DATOS'!O39 -> 0.15 | P3: ='INGRESO DE DATOS'!P39 -> 0.15 | Q3: ='INGRESO DE DATOS'!Q39 -> 0.15 | R3: ='INGRESO DE DATOS'!R39 -> 0.15 | S3: ='INGRESO DE DATOS'!S39 -> 0.15
I4: FACTOR SEMIANUAL: | K4: 0.53 | M4: Factor para el descuento combinado | O4: ='INGRESO DE DATOS'!O47 -> 0.85 | P4: ='INGRESO DE DATOS'!P47 -> 0.85 | Q4: ='INGRESO DE DATOS'!Q47 -> 0.85 | R4: ='INGRESO DE DATOS'!R47 -> 0.85 | S4: ='INGRESO DE DATOS'!S47 -> 0.85
A5: EDAD | C5: 1000 | D5: 2000 | E5: 3500 | F5: 5000 | G5: 10000 | I5: TARIFAS BASE | O5: TARIFAS BASE CON DESCUENTO
A6: 18 | C6: =O6 -> 7314.25 | D6: =P6 -> 5239.4 | E6: 4359.65 | F6: 3780.8 | G6: 2881.5 | I6: 8605 | J6: 6164 | K6: 5129 | L6: 4448 | M6: 3390 | O6: =I6*$P$4 -> 7314.25 | P6: =J6*$P$4 -> 5239.4 | Q6: 4359.65 | R6: 3780.8 | S6: 2881.5
A7: 19 | C7: =O7 -> 7411.15 | D7: =P7 -> 5302.3 | E7: =Q7 -> 4405.55 | F7: =R7 -> 3821.6 | G7: =S7 -> 2911.25 | I7: 8719 | J7: 6238 | K7: 5183 | L7: 4496 | M7: 3425 | O7: =I7*$P$4 -> 7411.15 | P7: =J7*$P$4 -> 5302.3 | Q7: =K7*$P$4 -> 4405.55 | R7: =L7*$P$4 -> 3821.6 | S7: =M7*$P$4 -> 2911.25
A8: 20 | C8: 7509.75 | D8: 5369.45 | E8: 4454.85 | F8: 3863.25 | G8: 2942.7 | I8: 8835 | J8: 6317 | K8: 5241 | L8: 4545 | M8: 3462 | O8: 7509.75 | P8: 5369.45 | Q8: 4454.85 | R8: 3863.25 | S8: 2942.7
A9: 21 | C9: 7611.75 | D9: 5437.45 | E9: 4505 | F9: 3906.6 | G9: 2976.7 | I9: 8955 | J9: 6397 | K9: 5300 | L9: 4596 | M9: 3502 | O9: 7611.75 | P9: 5437.45 | Q9: 4505 | R9: 3906.6 | S9: 2976.7
A10: 22 | C10: 7717.15 | D10: 5508 | E10: 4556.85 | F10: 3950.8 | G10: 3009.85 | I10: 9079 | J10: 6480 | K10: 5361 | L10: 4648 | M10: 3541 | O10: 7717.15 | P10: 5508 | Q10: 4556.85 | R10: 3950.8 | S10: 3009.85
A11: 23 | C11: 7828.5 | D11: 5579.4 | E11: 4612.1 | F11: 3999.25 | G11: 3048.1 | I11: 9210 | J11: 6564 | K11: 5426 | L11: 4705 | M11: 3586 | O11: 7828.5 | P11: 5579.4 | Q11: 4612.1 | R11: 3999.25 | S11: 3048.1
A12: 24 | C12: 7939 | D12: 5655.05 | E12: 4667.35 | F12: 4046.85 | G12: 3083.8 | I12: 9340 | J12: 6653 | K12: 5491 | L12: 4761 | M12: 3628 | O12: 7939 | P12: 5655.05 | Q12: 4667.35 | R12: 4046.85 | S12: 3083.8
A13: 25 | C13: 8053.75 | D13: 5734.1 | E13: 4724.3 | F13: 4097 | G13: 3122.05 | I13: 9475 | J13: 6746 | K13: 5558 | L13: 4820 | M13: 3673 | O13: 8053.75 | P13: 5734.1 | Q13: 4724.3 | R13: 4097 | S13: 3122.05
A14: 26 | C14: 8219.5 | D14: 5846.3 | E14: 4808.45 | F14: 4170.95 | G14: 3177.3 | I14: 9670 | J14: 6878 | K14: 5657 | L14: 4907 | M14: 3738 | O14: 8219.5 | P14: 5846.3 | Q14: 4808.45 | R14: 4170.95 | S14: 3177.3
A15: 27 | C15: 8392.05 | D15: 5963.6 | E15: 4897.7 | F15: 4245.75 | G15: 3235.95 | I15: 9873 | J15: 7016 | K15: 5762 | L15: 4995 | M15: 3807 | O15: 8392.05 | P15: 5963.6 | Q15: 4897.7 | R15: 4245.75 | S15: 3235.95
A16: 28 | C16: 8569.7 | D16: 6084.3 | E16: 4988.65 | F16: 4325.65 | G16: 3295.45 | I16: 10082 | J16: 7158 | K16: 5869 | L16: 5089 | M16: 3877 | O16: 8569.7 | P16: 6084.3 | Q16: 4988.65 | R16: 4325.65 | S16: 3295.45
A17: 29 | C17: 8755.85 | D17: 6210.1 | E17: 5084.7 | F17: 4408.95 | G17: 3360.05 | I17: 10301 | J17: 7306 | K17: 5982 | L17: 5187 | M17: 3953 | O17: 8755.85 | P17: 6210.1 | Q17: 5084.7 | R17: 4408.95 | S17: 3360.05
A18: 30 | C18: 8947.1 | D18: 6343.55 | E18: 5185.85 | F18: 4496.5 | G18: 3426.35 | I18: 10526 | J18: 7463 | K18: 6101 | L18: 5290 | M18: 4031 | O18: 8947.1 | P18: 6343.55 | Q18: 5185.85 | R18: 4496.5 | S18: 3426.35
A19: 31 | C19: 9145.15 | D19: 6478.7 | E19: 5290.4 | F19: 4586.6 | G19: 3496.05 | I19: 10759 | J19: 7622 | K19: 6224 | L19: 5396 | M19: 4113 | O19: 9145.15 | P19: 6478.7 | Q19: 5290.4 | R19: 4586.6 | S19: 3496.05
A20: 32 | C20: 9348.3 | D20: 6619.8 | E20: 5395.8 | F20: 4678.4 | G20: 3564.05 | I20: 10998 | J20: 7788 | K20: 6348 | L20: 5504 | M20: 4193 | O20: 9348.3 | P20: 6619.8 | Q20: 5395.8 | R20: 4678.4 | S20: 3564.05
A21: 33 | C21: 9559.1 | D21: 6764.3 | E21: 5508 | F21: 4775.3 | G21: 3639.7 | I21: 11246 | J21: 7958 | K21: 6480 | L21: 5618 | M21: 4282 | O21: 9559.1 | P21: 6764.3 | Q21: 5508 | R21: 4775.3 | S21: 3639.7
A22: 34 | C22: 9775.85 | D22: 6913.9 | E22: 5622.75 | F22: 4875.6 | G22: 3714.5 | I22: 11501 | J22: 8134 | K22: 6615 | L22: 5736 | M22: 4370 | O22: 9775.85 | P22: 6913.9 | Q22: 5622.75 | R22: 4875.6 | S22: 3714.5
A23: 35 | C23: 9996.85 | D23: 7067.75 | E23: 5742.6 | F23: 4980.15 | G23: 3795.25 | I23: 11761 | J23: 8315 | K23: 6756 | L23: 5859 | M23: 4465 | O23: 9996.85 | P23: 7067.75 | Q23: 5742.6 | R23: 4980.15 | S23: 3795.25
A24: 36 | C24: 10225.5 | D24: 7226.7 | E24: 5865 | F24: 5084.7 | G24: 3875.15 | I24: 12030 | J24: 8502 | K24: 6900 | L24: 5982 | M24: 4559 | O24: 10225.5 | P24: 7226.7 | Q24: 5865 | R24: 5084.7 | S24: 3875.15
A25: 37 | C25: 10460.95 | D25: 7392.45 | E25: 5990.8 | F25: 5196.05 | G25: 3958.45 | I25: 12307 | J25: 8697 | K25: 7048 | L25: 6113 | M25: 4657 | O25: 10460.95 | P25: 7392.45 | Q25: 5990.8 | R25: 5196.05 | S25: 3958.45
A26: 38 | C26: 10701.5 | D26: 7559.05 | E26: 6121.7 | F26: 5309.95 | G26: 4045.15 | I26: 12590 | J26: 8893 | K26: 7202 | L26: 6247 | M26: 4759 | O26: 10701.5 | P26: 7559.05 | Q26: 6121.7 | R26: 5309.95 | S26: 4045.15
A27: 39 | C27: 10949.7 | D27: 7733.3 | E27: 6256 | F27: 5424.7 | G27: 4132.7 | I27: 12882 | J27: 9098 | K27: 7360 | L27: 6382 | M27: 4862 | O27: 10949.7 | P27: 7733.3 | Q27: 6256 | R27: 5424.7 | S27: 4132.7
A28: 40 | C28: 11203 | D28: 7910.95 | E28: 6393.7 | F28: 5543.7 | G28: 4225.35 | I28: 13180 | J28: 9307 | K28: 7522 | L28: 6522 | M28: 4971 | O28: 11203 | P28: 7910.95 | Q28: 6393.7 | R28: 5543.7 | S28: 4225.35
A29: 41 | C29: 11463.95 | D29: 8093.7 | E29: 6536.5 | F29: 5667.8 | G29: 4319.7 | I29: 13487 | J29: 9522 | K29: 7690 | L29: 6668 | M29: 5082 | O29: 11463.95 | P29: 8093.7 | Q29: 6536.5 | R29: 5667.8 | S29: 4319.7
A30: 42 | C30: 11729.15 | D30: 8279.85 | E30: 6682.7 | F30: 5794.45 | G30: 4415.75 | I30: 13799 | J30: 9741 | K30: 7862 | L30: 6817 | M30: 5195 | O30: 11729.15 | P30: 8279.85 | Q30: 6682.7 | R30: 5794.45 | S30: 4415.75
A31: 43 | C31: 12000.3 | D31: 8472.8 | E31: 6833.15 | F31: 5924.5 | G31: 4515.2 | I31: 14118 | J31: 9968 | K31: 8039 | L31: 6970 | M31: 5312 | O31: 12000.3 | P31: 8472.8 | Q31: 6833.15 | R31: 5924.5 | S31: 4515.2
A32: 44 | C32: 12279.1 | D32: 8667.45 | E32: 6985.3 | F32: 6057.95 | G32: 4616.35 | I32: 14446 | J32: 10197 | K32: 8218 | L32: 7127 | M32: 5431 | O32: 12279.1 | P32: 8667.45 | Q32: 6985.3 | R32: 6057.95 | S32: 4616.35
A33: 45 | C33: 12563.85 | D33: 8869.75 | E33: 7144.25 | F33: 6193.1 | G33: 4719.2 | I33: 14781 | J33: 10435 | K33: 8405 | L33: 7286 | M33: 5552 | O33: 12563.85 | P33: 8869.75 | Q33: 7144.25 | R33: 6193.1 | S33: 4719.2
A34: 46 | C34: 12854.55 | D34: 9074.6 | E34: 7305.75 | F34: 6335.9 | G34: 4826.3 | I34: 15123 | J34: 10676 | K34: 8595 | L34: 7454 | M34: 5678 | O34: 12854.55 | P34: 9074.6 | Q34: 7305.75 | R34: 6335.9 | S34: 4826.3
A35: 47 | C35: 13152.05 | D35: 9286.25 | E35: 7469.8 | F35: 6476.15 | G35: 4935.95 | I35: 15473 | J35: 10925 | K35: 8788 | L35: 7619 | M35: 5807 | O35: 13152.05 | P35: 9286.25 | Q35: 7469.8 | R35: 6476.15 | S35: 4935.95
A36: 48 | C36: 13455.5 | D36: 9499.6 | E36: 7638.1 | F36: 6622.35 | G36: 5045.6 | I36: 15830 | J36: 11176 | K36: 8986 | L36: 7791 | M36: 5936 | O36: 13455.5 | P36: 9499.6 | Q36: 7638.1 | R36: 6622.35 | S36: 5045.6
A37: 49 | C37: 13765.75 | D37: 9720.6 | E37: 7811.5 | F37: 6773.65 | G37: 5160.35 | I37: 16195 | J37: 11436 | K37: 9190 | L37: 7969 | M37: 6071 | O37: 13765.75 | P37: 9720.6 | Q37: 7811.5 | R37: 6773.65 | S37: 5160.35
A38: 50 | C38: 14080.25 | D38: 9943.3 | E38: 7989.15 | F38: 6927.5 | G38: 5278.5 | I38: 16565 | J38: 11698 | K38: 9399 | L38: 8150 | M38: 6210 | O38: 14080.25 | P38: 9943.3 | Q38: 7989.15 | R38: 6927.5 | S38: 5278.5
A39: 51 | C39: 14403.25 | D39: 10171.95 | E39: 8171.05 | F39: 7084.75 | G39: 5397.5 | I39: 16945 | J39: 11967 | K39: 9613 | L39: 8335 | M39: 6350 | O39: 14403.25 | P39: 10171.95 | Q39: 8171.05 | R39: 7084.75 | S39: 5397.5
A40: 52 | C40: 14730.5 | D40: 10405.7 | E40: 8352.1 | F40: 7242 | G40: 5519.05 | I40: 17330 | J40: 12242 | K40: 9826 | L40: 8520 | M40: 6493 | O40: 14730.5 | P40: 10405.7 | Q40: 8352.1 | R40: 7242 | S40: 5519.05
A41: 53 | C41: 15065.4 | D41: 10646.25 | E41: 8542.5 | F41: 7406.9 | G41: 5644 | I41: 17724 | J41: 12525 | K41: 10050 | L41: 8714 | M41: 6640 | O41: 15065.4 | P41: 10646.25 | Q41: 8542.5 | R41: 7406.9 | S41: 5644
A42: 54 | C42: 15406.25 | D42: 10888.5 | E42: 8732.9 | F42: 7571.8 | G42: 5770.65 | I42: 18125 | J42: 12810 | K42: 10274 | L42: 8908 | M42: 6789 | O42: 15406.25 | P42: 10888.5 | Q42: 8732.9 | R42: 7571.8 | S42: 5770.65
A43: 55 | C43: 15753.9 | D43: 11135 | E43: 8930.1 | F43: 7742.65 | G43: 5899.85 | I43: 18534 | J43: 13100 | K43: 10506 | L43: 9109 | M43: 6941 | O43: 15753.9 | P43: 11135 | Q43: 8930.1 | R43: 7742.65 | S43: 5899.85
A44: 56 | C44: 16104.95 | D44: 11386.6 | E44: 9129 | F44: 7916.05 | G44: 6032.45 | I44: 18947 | J44: 13396 | K44: 10740 | L44: 9313 | M44: 7097 | O44: 16104.95 | P44: 11386.6 | Q44: 9129 | R44: 7916.05 | S44: 6032.45
A45: 57 | C45: 16465.35 | D45: 11643.3 | E45: 9333 | F45: 8091.15 | G45: 6165.9 | I45: 19371 | J45: 13698 | K45: 10980 | L45: 9519 | M45: 7254 | O45: 16465.35 | P45: 11643.3 | Q45: 9333 | R45: 8091.15 | S45: 6165.9
A46: 58 | C46: 16831.7 | D46: 11904.25 | E46: 9540.4 | F46: 8272.2 | G46: 6302.75 | I46: 19802 | J46: 14005 | K46: 11224 | L46: 9732 | M46: 7415 | O46: 16831.7 | P46: 11904.25 | Q46: 9540.4 | R46: 8272.2 | S46: 6302.75
A47: 59 | C47: 17202.3 | D47: 12170.3 | E47: 9750.35 | F47: 8454.95 | G47: 6441.3 | I47: 20238 | J47: 14318 | K47: 11471 | L47: 9947 | M47: 7578 | O47: 17202.3 | P47: 12170.3 | Q47: 9750.35 | R47: 8454.95 | S47: 6441.3
A48: 60 | C48: 17579.7 | D48: 12441.45 | E48: 9966.25 | F48: 8641.1 | G48: 6584.1 | I48: 20682 | J48: 14637 | K48: 11725 | L48: 10166 | M48: 7746 | O48: 17579.7 | P48: 12441.45 | Q48: 9966.25 | R48: 8641.1 | S48: 6584.1
A49: 61 | C49: 19564.45 | D49: 13864.35 | E49: 11099.3 | F49: 9624.55 | G49: 7334.65 | I49: 23017 | J49: 16311 | K49: 13058 | L49: 11323 | M49: 8629 | O49: 19564.45 | P49: 13864.35 | Q49: 11099.3 | R49: 9624.55 | S49: 7334.65
A50: 62 | C50: 21703.05 | D50: 15405.4 | E50: 12330.1 | F50: 10691.3 | G50: 8145.55 | I50: 25533 | J50: 18124 | K50: 14506 | L50: 12578 | M50: 9583 | O50: 21703.05 | P50: 15405.4 | Q50: 12330.1 | R50: 10691.3 | S50: 8145.55
A51: 63 | C51: 23998.9 | D51: 17060.35 | E51: 13654.4 | F51: 11839.65 | G51: 9021.9 | I51: 28234 | J51: 20071 | K51: 16064 | L51: 13929 | M51: 10614 | O51: 23998.9 | P51: 17060.35 | Q51: 13654.4 | R51: 11839.65 | S51: 9021.9
A52: 64 | C52: 26448.6 | D52: 18832.6 | E52: 15074.75 | F52: 13072.15 | G52: 9961.15 | I52: 31116 | J52: 22156 | K52: 17735 | L52: 15379 | M52: 11719 | O52: 26448.6 | P52: 18832.6 | Q52: 15074.75 | R52: 13072.15 | S52: 9961.15
A53: 65 | C53: 29053.85 | D53: 20721.3 | E53: 16592.85 | F53: 14387.1 | G53: 10962.45 | I53: 34181 | J53: 24378 | K53: 19521 | L53: 16926 | M53: 12897 | O53: 29053.85 | P53: 20721.3 | Q53: 16592.85 | R53: 14387.1 | S53: 10962.45
A54: 66 | C54: 31815.5 | D54: 22724.75 | E54: 18207 | F54: 15788.75 | G54: 12030.05 | I54: 37430 | J54: 26735 | K54: 21420 | L54: 18575 | M54: 14153 | O54: 31815.5 | P54: 22724.75 | Q54: 18207 | R54: 15788.75 | S54: 12030.05
A55: 67 | C55: 34733.55 | D55: 24844.65 | E55: 19916.35 | F55: 17270.3 | G55: 13158.85 | I55: 40863 | J55: 29229 | K55: 23431 | L55: 20318 | M55: 15481 | O55: 34733.55 | P55: 24844.65 | Q55: 19916.35 | R55: 17270.3 | S55: 13158.85
A56: 68 | C56: 37806.3 | D56: 27081.85 | E56: 21720.9 | F56: 18834.3 | G56: 14350.55 | I56: 44478 | J56: 31861 | K56: 25554 | L56: 22158 | M56: 16883 | O56: 37806.3 | P56: 27081.85 | Q56: 21720.9 | R56: 18834.3 | S56: 14350.55
A57: 69 | C57: 41033.75 | D57: 29434.65 | E57: 23624.05 | F57: 20484.15 | G57: 15607.7 | I57: 48275 | J57: 34629 | K57: 27793 | L57: 24099 | M57: 18362 | O57: 41033.75 | P57: 29434.65 | Q57: 23624.05 | R57: 20484.15 | S57: 15607.7
A58: 70 | C58: 44418.45 | D58: 31904.75 | E58: 25621.55 | F58: 22216.45 | G58: 16928.6 | I58: 52257 | J58: 37535 | K58: 30143 | L58: 26137 | M58: 19916 | O58: 44418.45 | P58: 31904.75 | Q58: 25621.55 | R58: 22216.45 | S58: 16928.6
A59: 71 | C59: 47959.55 | D59: 34489.6 | E59: 27715.95 | F59: 24032.9 | G59: 18312.4 | I59: 56423 | J59: 40576 | K59: 32607 | L59: 28274 | M59: 21544 | O59: 47959.55 | P59: 34489.6 | Q59: 27715.95 | R59: 24032.9 | S59: 18312.4
A60: 72 | C60: 51653.65 | D60: 37193.45 | E60: 29905.55 | F60: 25930.95 | G60: 19758.25 | I60: 60769 | J60: 43757 | K60: 35183 | L60: 30507 | M60: 23245 | O60: 51653.65 | P60: 37193.45 | Q60: 29905.55 | R60: 25930.95 | S60: 19758.25
A61: 73 | C61: 55504.15 | D61: 40010.35 | E61: 32190.35 | F61: 27912.3 | G61: 21267.85 | I61: 65299 | J61: 47071 | K61: 37871 | L61: 32838 | M61: 25021 | O61: 55504.15 | P61: 40010.35 | Q61: 32190.35 | R61: 27912.3 | S61: 21267.85
A62: 74 | C62: 59511.05 | D62: 42944.55 | E62: 34573.75 | F62: 29979.5 | G62: 22842.9 | I62: 70013 | J62: 50523 | K62: 40675 | L62: 35270 | M62: 26874 | O62: 59511.05 | P62: 42944.55 | Q62: 34573.75 | R62: 29979.5 | S62: 22842.9
A63: 75 | C63: 63673.5 | D63: 45996.05 | E63: 37052.35 | F63: 32127.45 | G63: 24479.15 | I63: 74910 | J63: 54113 | K63: 43591 | L63: 37797 | M63: 28799 | O63: 63673.5 | P63: 45996.05 | Q63: 37052.35 | R63: 32127.45 | S63: 24479.15
A64: 76 | C64: 63673.5 | D64: 45996.05 | E64: 37052.35 | F64: 32127.45 | G64: 24479.15 | I64: 74910 | J64: 54113 | K64: 43591 | L64: 37797 | M64: 28799 | O64: 63673.5 | P64: 45996.05 | Q64: 37052.35 | R64: 32127.45 | S64: 24479.15
A65: 77 | C65: 63673.5 | D65: 45996.05 | E65: 37052.35 | F65: 32127.45 | G65: 24479.15 | I65: 74910 | J65: 54113 | K65: 43591 | L65: 37797 | M65: 28799 | O65: 63673.5 | P65: 45996.05 | Q65: 37052.35 | R65: 32127.45 | S65: 24479.15
A66: 78 | C66: 63673.5 | D66: 45996.05 | E66: 37052.35 | F66: 32127.45 | G66: 24479.15 | I66: 74910 | J66: 54113 | K66: 43591 | L66: 37797 | M66: 28799 | O66: 63673.5 | P66: 45996.05 | Q66: 37052.35 | R66: 32127.45 | S66: 24479.15
A67: 79 | C67: 63673.5 | D67: 45996.05 | E67: 37052.35 | F67: 32127.45 | G67: 24479.15 | I67: 74910 | J67: 54113 | K67: 43591 | L67: 37797 | M67: 28799 | O67: 63673.5 | P67: 45996.05 | Q67: 37052.35 | R67: 32127.45 | S67: 24479.15
A68: 80 | C68: 63673.5 | D68: 45996.05 | E68: 37052.35 | F68: 32127.45 | G68: 24479.15 | I68: 74910 | J68: 54113 | K68: 43591 | L68: 37797 | M68: 28799 | O68: 63673.5 | P68: 45996.05 | Q68: 37052.35 | R68: 32127.45 | S68: 24479.15
A69: 81 | C69: 63673.5 | D69: 45996.05 | E69: 37052.35 | F69: 32127.45 | G69: 24479.15 | I69: 74910 | J69: 54113 | K69: 43591 | L69: 37797 | M69: 28799 | O69: 63673.5 | P69: 45996.05 | Q69: 37052.35 | R69: 32127.45 | S69: 24479.15
A70: 82 | C70: 63673.5 | D70: 45996.05 | E70: 37052.35 | F70: 32127.45 | G70: 24479.15 | I70: 74910 | J70: 54113 | K70: 43591 | L70: 37797 | M70: 28799 | O70: 63673.5 | P70: 45996.05 | Q70: 37052.35 | R70: 32127.45 | S70: 24479.15
A71: 83 | C71: =O71 -> 63673.5 | D71: =P71 -> 45996.05 | E71: =Q71 -> 37052.35 | F71: =R71 -> 32127.45 | G71: =S71 -> 24479.15 | I71: 74910 | J71: 54113 | K71: 43591 | L71: 37797 | M71: 28799 | O71: =I71*$P$4 -> 63673.5 | P71: =J71*$P$4 -> 45996.05 | Q71: =K71*$P$4 -> 37052.35 | R71: =L71*$P$4 -> 32127.45 | S71: =M71*$P$4 -> 24479.15
A72: 84 | B72: o más | C72: 63673.5 | D72: 45996.05 | E72: 37052.35 | F72: 32127.45 | G72: 24479.15 | I72: 74910 | J72: 54113 | K72: 43591 | L72: 37797 | M72: 28799 | O72: 63673.5 | P72: 45996.05 | Q72: 37052.35 | R72: 32127.45 | S72: 24479.15
A73: 1 | B73: Hijo | C73: 3292.9 | D73: 2357.9 | E73: 1962.65 | F73: 1701.7 | G73: 1297.95 | I73: 3874 | J73: 2774 | K73: 2309 | L73: 2002 | M73: 1527 | O73: 3292.9 | P73: 2357.9 | Q73: 1962.65 | R73: 1701.7 | S73: 1297.95
A74: 2 | B74: Hijos | C74: 5595.55 | D74: 4008.6 | E74: 3335.4 | F74: 2891.7 | G74: 2204.9 | I74: 6583 | J74: 4716 | K74: 3924 | L74: 3402 | M74: 2594 | O74: 5595.55 | P74: 4008.6 | Q74: 3335.4 | R74: 2891.7 | S74: 2204.9
A75: 3 | B75: Hijos o más | C75: 7899.05 | D75: 5658.45 | E75: 4709.85 | F75: 4082.55 | G75: 3111.85 | I75: 9293 | J75: 6657 | K75: 5541 | L75: 4803 | M75: 3661 | O75: 7899.05 | P75: 5658.45 | Q75: 4709.85 | R75: 4082.55 | S75: 3111.85
A77: BUPA GLOBAL ELITE - MENSUALES
A79: EDAD | C79: 1000 | D79: 2000 | E79: 3500
A80: 18 | C80: =C6*$K$2 -> 682.6633333 | D80: =D6*$K$2 -> 489.0106667 | E80: 406.9006667 | F80: 352.8746667 | G80: 268.94
A81: 19 | C81: =C7*$K$2 -> 691.7073333 | D81: 494.8813333 | E81: 411.1846667 | F81: 356.6826667 | G81: 271.7166667
A82: 20 | C82: =C8*$K$2 -> 700.91 | D82: 501.1486667 | E82: 415.786 | F82: 360.57 | G82: 274.652
A83: 21 | C83: =C9*$K$2 -> 710.43 | D83: 507.4953333 | E83: 420.4666667 | F83: 364.616 | G83: 277.8253333
A84: 22 | C84: =C10*$K$2 -> 720.2673333 | D84: 514.08 | E84: 425.306 | F84: 368.7413333 | G84: 280.9193333
A85: 23 | C85: =C11*$K$2 -> 730.66 | D85: 520.744 | E85: 430.4626667 | F85: 373.2633333 | G85: 284.4893333
A86: 24 | C86: =C12*$K$2 -> 740.9733333 | D86: 527.8046667 | E86: 435.6193333 | F86: 377.706 | G86: 287.8213333
A87: 25 | C87: =C13*$K$2 -> 751.6833333 | D87: 535.1826667 | E87: 440.9346667 | F87: 382.3866667 | G87: 291.3913333
A88: 26 | C88: =C14*$K$2 -> 767.1533333 | D88: 545.6546667 | E88: 448.7886667 | F88: 389.2886667 | G88: 296.548
A89: 27 | C89: =C15*$K$2 -> 783.258 | D89: 556.6026667 | E89: 457.1186667 | F89: 396.27 | G89: 302.022
A90: 28 | C90: =C16*$K$2 -> 799.8386667 | D90: 567.868 | E90: 465.6073333 | F90: 403.7273333 | G90: 307.5753333
A91: 29 | C91: =C17*$K$2 -> 817.2126667 | D91: 579.6093333 | E91: 474.572 | F91: 411.502 | G91: 313.6046667
A92: 30 | C92: =C18*$K$2 -> 835.0626667 | D92: 592.0646667 | E92: 484.0126667 | F92: 419.6733333 | G92: 319.7926667
A93: 31 | C93: =C19*$K$2 -> 853.5473333 | D93: 604.6786667 | E93: 493.7706667 | F93: 428.0826667 | G93: 326.298
A94: 32 | C94: =C20*$K$2 -> 872.508 | D94: 617.848 | E94: 503.608 | F94: 436.6506667 | G94: 332.6446667
A95: 33 | C95: =C21*$K$2 -> 892.1826667 | D95: 631.3346667 | E95: 514.08 | F95: 445.6946667 | G95: 339.7053333
A96: 34 | C96: =C22*$K$2 -> 912.4126667 | D96: 645.2973333 | E96: 524.79 | F96: 455.056 | G96: 346.6866667
A97: 35 | C97: =C23*$K$2 -> 933.0393333 | D97: 659.6566667 | E97: 535.976 | F97: 464.814 | G97: 354.2233333
A98: 36 | C98: =C24*$K$2 -> 954.38 | D98: 674.492 | E98: 547.4 | F98: 474.572 | G98: 361.6806667
A99: 37 | C99: =C25*$K$2 -> 976.3553333 | D99: 689.962 | E99: 559.1413333 | F99: 484.9646667 | G99: 369.4553333
A100: 38 | C100: =C26*$K$2 -> 998.8066667 | D100: 705.5113333 | E100: 571.3586667 | F100: 495.5953333 | G100: 377.5473333
A101: 39 | C101: =C27*$K$2 -> 1021.972 | D101: 721.7746667 | E101: 583.8933333 | F101: 506.3053333 | G101: 385.7186667
A102: 40 | C102: =C28*$K$2 -> 1045.613333 | D102: 738.3553333 | E102: 596.7453333 | F102: 517.412 | G102: 394.366
A103: 41 | C103: =C29*$K$2 -> 1069.968667 | D103: 755.412 | E103: 610.0733333 | F103: 528.9946667 | G103: 403.172
A104: 42 | C104: =C30*$K$2 -> 1094.720667 | D104: 772.786 | E104: 623.7186667 | F104: 540.8153333 | G104: 412.1366667
A105: 43 | C105: =C31*$K$2 -> 1120.028 | D105: 790.7946667 | E105: 637.7606667 | F105: 552.9533333 | G105: 421.4186667
A106: 44 | C106: =C32*$K$2 -> 1146.049333 | D106: 808.962 | E106: 651.9613333 | F106: 565.4086667 | G106: 430.8593333
A107: 45 | C107: =C33*$K$2 -> 1172.626 | D107: 827.8433333 | E107: 666.7966667 | F107: 578.0226667 | G107: 440.4586667
A108: 46 | C108: =C34*$K$2 -> 1199.758 | D108: 846.9626667 | E108: 681.87 | F108: 591.3506667 | G108: 450.4546667
A109: 47 | C109: =C35*$K$2 -> 1227.524667 | D109: 866.7166667 | E109: 697.1813333 | F109: 604.4406667 | G109: 460.6886667
A110: 48 | C110: =C36*$K$2 -> 1255.846667 | D110: 886.6293333 | E110: 712.8893333 | F110: 618.086 | G110: 470.9226667
A111: 49 | C111: =C37*$K$2 -> 1284.803333 | D111: 907.256 | E111: 729.0733333 | F111: 632.2073333 | G111: 481.6326667
A112: 50 | C112: =C38*$K$2 -> 1314.156667 | D112: 928.0413333 | E112: 745.654 | F112: 646.5666667 | G112: 492.66
A113: 51 | C113: =C39*$K$2 -> 1344.303333 | D113: 949.382 | E113: 762.6313333 | F113: 661.2433333 | G113: 503.7666667
A114: 52 | C114: =C40*$K$2 -> 1374.846667 | D114: 971.1986667 | E114: 779.5293333 | F114: 675.92 | G114: 515.1113333
A115: 53 | C115: =C41*$K$2 -> 1406.104 | D115: 993.65 | E115: 797.3 | F115: 691.3106667 | G115: 526.7733333
A116: 54 | C116: =C42*$K$2 -> 1437.916667 | D116: 1016.26 | E116: 815.0706667 | F116: 706.7013333 | G116: 538.594
A117: 55 | C117: =C43*$K$2 -> 1470.364 | D117: 1039.266667 | E117: 833.476 | F117: 722.6473333 | G117: 550.6526667
A118: 56 | C118: =C44*$K$2 -> 1503.128667 | D118: 1062.749333 | E118: 852.04 | F118: 738.8313333 | G118: 563.0286667
A119: 57 | C119: =C45*$K$2 -> 1536.766 | D119: 1086.708 | E119: 871.08 | F119: 755.174 | G119: 575.484
A120: 58 | C120: =C46*$K$2 -> 1570.958667 | D120: 1111.063333 | E120: 890.4373333 | F120: 772.072 | G120: 588.2566667
A121: 59 | C121: =C47*$K$2 -> 1605.548 | D121: 1135.894667 | E121: 910.0326667 | F121: 789.1286667 | G121: 601.188
A122: 60 | C122: =C48*$K$2 -> 1640.772 | D122: 1161.202 | E122: 930.1833333 | F122: 806.5026667 | G122: 614.516
A123: 61 | C123: =C49*$K$2 -> 1826.015333 | D123: 1294.006 | E123: 1035.934667 | F123: 898.2913333 | G123: 684.5673333
A124: 62 | C124: =C50*$K$2 -> 2025.618 | D124: 1437.837333 | E124: 1150.809333 | F124: 997.8546667 | G124: 760.2513333
A125: 63 | C125: =C51*$K$2 -> 2239.897333 | D125: 1592.299333 | E125: 1274.410667 | F125: 1105.034 | G125: 842.044
A126: 64 | C126: =C52*$K$2 -> 2468.536 | D126: 1757.709333 | E126: 1406.976667 | F126: 1220.067333 | G126: 929.7073333
A127: 65 | C127: =C53*$K$2 -> 2711.692667 | D127: 1933.988 | E127: 1548.666 | F127: 1342.796 | G127: 1023.162
A128: 66 | C128: =C54*$K$2 -> 2969.446667 | D128: 2120.976667 | E128: 1699.32 | F128: 1473.616667 | G128: 1122.804667
A129: 67 | C129: =C55*$K$2 -> 3241.798 | D129: 2318.834 | E129: 1858.859333 | F129: 1611.894667 | G129: 1228.159333
A130: 68 | C130: =C56*$K$2 -> 3528.588 | D130: 2527.639333 | E130: 2027.284 | F130: 1757.868 | G130: 1339.384667
A131: 69 | C131: =C57*$K$2 -> 3829.816667 | D131: 2747.234 | E131: 2204.911333 | F131: 1911.854 | G131: 1456.718667
A132: 70 | C132: =C58*$K$2 -> 4145.722 | D132: 2977.776667 | E132: 2391.344667 | F132: 2073.535333 | G132: 1580.002667
A133: 71 | C133: =C59*$K$2 -> 4476.224667 | D133: 3219.029333 | E133: 2586.822 | F133: 2243.070667 | G133: 1709.157333
A134: 72 | C134: =C60*$K$2 -> 4821.007333 | D134: 3471.388667 | E134: 2791.184667 | F134: 2420.222 | G134: 1844.103333
A135: 73 | C135: =C61*$K$2 -> 5180.387333 | D135: 3734.299333 | E135: 3004.432667 | F135: 2605.148 | G135: 1984.999333
A136: 74 | C136: =C62*$K$2 -> 5554.364667 | D136: 4008.158 | E136: 3226.883333 | F136: 2798.086667 | G136: 2132.004
A137: 75 | C137: =C63*$K$2 -> 5942.86 | D137: 4292.964667 | E137: 3458.219333 | F137: 2998.562 | G137: 2284.720667
A138: 76 | C138: =C64*$K$2 -> 5942.86 | D138: 4292.964667 | E138: 3458.219333 | F138: 2998.562 | G138: 2284.720667
A139: 77 | C139: =C65*$K$2 -> 5942.86 | D139: 4292.964667 | E139: 3458.219333 | F139: 2998.562 | G139: 2284.720667
A140: 78 | C140: =C66*$K$2 -> 5942.86 | D140: 4292.964667 | E140: 3458.219333 | F140: 2998.562 | G140: 2284.720667
A141: 79 | C141: =C67*$K$2 -> 5942.86 | D141: 4292.964667 | E141: 3458.219333 | F141: 2998.562 | G141: 2284.720667
A142: 80 | C142: =C68*$K$2 -> 5942.86 | D142: 4292.964667 | E142: 3458.219333 | F142: 2998.562 | G142: 2284.720667
A143: 81 | C143: =C69*$K$2 -> 5942.86 | D143: 4292.964667 | E143: 3458.219333 | F143: 2998.562 | G143: 2284.720667
A144: 82 | C144: =C70*$K$2 -> 5942.86 | D144: 4292.964667 | E144: 3458.219333 | F144: 2998.562 | G144: 2284.720667
A145: 83 | C145: =C71*$K$2 -> 5942.86 | D145: 4292.964667 | E145: 3458.219333 | F145: 2998.562 | G145: 2284.720667
A146: 84 | B146: o más | C146: =C72*$K$2 -> 5942.86 | D146: 4292.964667 | E146: 3458.219333 | F146: 2998.562 | G146: 2284.720667
A147: 1 | B147: Hijo | C147: =C73*$K$2 -> 307.3373333 | D147: 220.0706667 | E147: 183.1806667 | F147: 158.8253333 | G147: 121.142
A148: 2 | B148: Hijos | C148: =C74*$K$2 -> 522.2513333 | D148: 374.136 | E148: 311.304 | F148: 269.892 | G148: 205.7906667
A149: 3 | B149: Hijos o más | C149: =C75*$K$2 -> 737.2446667 | D149: 528.122 | E149: 439.586 | F149: 381.038 | G149: 290.4393333
A152: BUPA GLOBAL PREMIER
A153: TARIFAS ANUALES
A155: EDAD | C155: 2000 | D155: 3500 | E155: 5000 | F155: 10000 | I155: TARIFAS BASE | N155: TARIFAS BASE COND ESCUENTO
A156: 18 | C156: =N156 -> 4237.25 | D156: =O156 -> 3535.15 | E156: 3065.95 | F156: 2240.6 | I156: 4985 | J156: 4159 | K156: 3607 | L156: 2636 | N156: =I156*$Q$4 -> 4237.25 | O156: =J156*$Q$4 -> 3535.15 | P156: 3065.95 | Q156: 2240.6
A157: 19 | C157: =N157 -> 4290.8 | D157: =O157 -> 3573.4 | E157: =P157 -> 3095.7 | F157: =Q157 -> 2263.55 | I157: 5048 | J157: 4204 | K157: 3642 | L157: 2663 | N157: =I157*$Q$4 -> 4290.8 | O157: =J157*$Q$4 -> 3573.4 | P157: =K157*$Q$4 -> 3095.7 | Q157: =L157*$Q$4 -> 2263.55
A158: 20 | C158: 4343.5 | D158: 3611.65 | E158: 3126.3 | F158: 2284.8 | I158: 5110 | J158: 4249 | K158: 3678 | L158: 2688 | N158: 4343.5 | O158: 3611.65 | P158: 3126.3 | Q158: 2284.8
A159: 21 | C159: 4397.9 | D159: 3652.45 | E159: 3158.6 | F159: 2308.6 | I159: 5174 | J159: 4297 | K159: 3716 | L159: 2716 | N159: 4397.9 | O159: 3652.45 | P159: 3158.6 | Q159: 2308.6
A160: 22 | C160: 4454 | D160: 3694.1 | E160: 3191.75 | F160: 2331.55 | I160: 5240 | J160: 4346 | K160: 3755 | L160: 2743 | N160: 4454 | O160: 3694.1 | P160: 3191.75 | Q160: 2331.55
A161: 23 | C161: 4513.5 | D161: 3739.15 | E161: 3227.45 | F161: 2358.75 | I161: 5310 | J161: 4399 | K161: 3797 | L161: 2775 | N161: 4513.5 | O161: 3739.15 | P161: 3227.45 | Q161: 2358.75
A162: 24 | C162: 4575.55 | D162: 3785.9 | E162: 3263.15 | F162: 2385.1 | I162: 5383 | J162: 4454 | K162: 3839 | L162: 2806 | N162: 4575.55 | O162: 3785.9 | P162: 3263.15 | Q162: 2385.1
A163: 25 | C163: 4637.6 | D163: 3830.95 | E163: 3299.7 | F163: 2411.45 | I163: 5456 | J163: 4507 | K163: 3882 | L163: 2837 | N163: 4637.6 | O163: 3830.95 | P163: 3299.7 | Q163: 2411.45
A164: 26 | C164: 4729.4 | D164: 3899.8 | E164: 3354.1 | F164: 2451.4 | I164: 5564 | J164: 4588 | K164: 3946 | L164: 2884 | N164: 4729.4 | O164: 3899.8 | P164: 3354.1 | Q164: 2451.4
A165: 27 | C165: 4823.75 | D165: 3971.2 | E165: 3413.6 | F165: 2494.75 | I165: 5675 | J165: 4672 | K165: 4016 | L165: 2935 | N165: 4823.75 | O165: 3971.2 | P165: 3413.6 | Q165: 2494.75
A166: 28 | C166: 4922.35 | D166: 4046.85 | E166: 3472.25 | F166: 2538.1 | I166: 5791 | J166: 4761 | K166: 4085 | L166: 2986 | N166: 4922.35 | O166: 4046.85 | P166: 3472.25 | Q166: 2538.1
A167: 29 | C167: 5025.2 | D167: 4122.5 | E167: 3535.15 | F167: 2584 | I167: 5912 | J167: 4850 | K167: 4159 | L167: 3040 | N167: 5025.2 | O167: 4122.5 | P167: 3535.15 | Q167: 2584
A168: 30 | C168: 5131.45 | D168: 4204.1 | E168: 3602.3 | F168: 2632.45 | I168: 6037 | J168: 4946 | K168: 4238 | L168: 3097 | N168: 5131.45 | O168: 4204.1 | P168: 3602.3 | Q168: 2632.45
A169: 31 | C169: 5241.1 | D169: 4289.1 | E169: 3667.75 | F169: 2680.9 | I169: 6166 | J169: 5046 | K169: 4315 | L169: 3154 | N169: 5241.1 | O169: 4289.1 | P169: 3667.75 | Q169: 2680.9
A170: 32 | C170: 5355 | D170: 4374.1 | E170: 3740 | F170: 2733.6 | I170: 6300 | J170: 5146 | K170: 4400 | L170: 3216 | N170: 5355 | O170: 4374.1 | P170: 3740 | Q170: 2733.6
A171: 33 | C171: 5471.45 | D171: 4465.9 | E171: 3813.1 | F171: 2787.15 | I171: 6437 | J171: 5254 | K171: 4486 | L171: 3279 | N171: 5471.45 | O171: 4465.9 | P171: 3813.1 | Q171: 2787.15
A172: 34 | C172: 5593.85 | D172: 4559.4 | E172: 3891.3 | F172: 2844.1 | I172: 6581 | J172: 5364 | K172: 4578 | L172: 3346 | N172: 5593.85 | O172: 4559.4 | P172: 3891.3 | Q172: 2844.1
A173: 35 | C173: 5718.8 | D173: 4655.45 | E173: 3969.5 | F173: 2901.05 | I173: 6728 | J173: 5477 | K173: 4670 | L173: 3413 | N173: 5718.8 | O173: 4655.45 | P173: 3969.5 | Q173: 2901.05
A174: 36 | C174: 5847.15 | D174: 4754.9 | E174: 4050.25 | F174: 2958.85 | I174: 6879 | J174: 5594 | K174: 4765 | L174: 3481 | N174: 5847.15 | O174: 4754.9 | P174: 4050.25 | Q174: 2958.85
A175: 37 | C175: 5979.75 | D175: 4857.75 | E175: 4142.05 | F175: 3027.7 | I175: 7035 | J175: 5715 | K175: 4873 | L175: 3562 | N175: 5979.75 | O175: 4857.75 | P175: 4142.05 | Q175: 3027.7
A176: 38 | C176: 6114.9 | D176: 4964 | E176: 4247.45 | F176: 3104.2 | I176: 7194 | J176: 5840 | K176: 4997 | L176: 3652 | N176: 6114.9 | O176: 4964 | P176: 4247.45 | Q176: 3104.2
A177: 39 | C177: 6256.85 | D177: 5074.5 | E177: 4356.25 | F177: 3184.1 | I177: 7361 | J177: 5970 | K177: 5125 | L177: 3746 | N177: 6256.85 | O177: 5074.5 | P177: 4356.25 | Q177: 3184.1
A178: 40 | C178: 6398.8 | D178: 5185.85 | E178: 4466.75 | F178: 3265.7 | I178: 7528 | J178: 6101 | K178: 5255 | L178: 3842 | N178: 6398.8 | O178: 5185.85 | P178: 4466.75 | Q178: 3265.7
A179: 41 | C179: 6546.7 | D179: 5299.75 | E179: 4581.5 | F179: 3349.85 | I179: 7702 | J179: 6235 | K179: 5390 | L179: 3941 | N179: 6546.7 | O179: 5299.75 | P179: 4581.5 | Q179: 3349.85
A180: 42 | C180: 6699.7 | D180: 5418.75 | E180: 4698.8 | F180: 3434.85 | I180: 7882 | J180: 6375 | K180: 5528 | L180: 4041 | N180: 6699.7 | O180: 5418.75 | P180: 4698.8 | Q180: 3434.85
A181: 43 | C181: 6851.85 | D181: 5540.3 | E181: 4818.65 | F181: 3521.55 | I181: 8061 | J181: 6518 | K181: 5669 | L181: 4143 | N181: 6851.85 | O181: 5540.3 | P181: 4818.65 | Q181: 3521.55
A182: 44 | C182: 7011.65 | D182: 5664.4 | E182: 4941.05 | F182: 3611.65 | I182: 8249 | J182: 6664 | K182: 5813 | L182: 4249 | N182: 7011.65 | O182: 5664.4 | P182: 4941.05 | Q182: 3611.65
A183: 45 | C183: 7175.7 | D183: 5791.9 | E183: 5067.7 | F183: 3704.3 | I183: 8442 | J183: 6814 | K183: 5962 | L183: 4358 | N183: 7175.7 | O183: 5791.9 | P183: 5067.7 | Q183: 3704.3
A184: 46 | C184: 7341.45 | D184: 5922.8 | E184: 5197.75 | F184: 3797.8 | I184: 8637 | J184: 6968 | K184: 6115 | L184: 4468 | N184: 7341.45 | O184: 5922.8 | P184: 5197.75 | Q184: 3797.8
A185: 47 | C185: 7513.15 | D185: 6056.25 | E185: 5329.5 | F185: 3894.7 | I185: 8839 | J185: 7125 | K185: 6270 | L185: 4582 | N185: 7513.15 | O185: 6056.25 | P185: 5329.5 | Q185: 3894.7
A186: 48 | C186: 7685.7 | D186: 6193.1 | E186: 5465.5 | F186: 3994.15 | I186: 9042 | J186: 7286 | K186: 6430 | L186: 4699 | N186: 7685.7 | O186: 6193.1 | P186: 5465.5 | Q186: 3994.15
A187: 49 | C187: 7862.5 | D187: 6332.5 | E187: 5603.2 | F187: 4093.6 | I187: 9250 | J187: 7450 | K187: 6592 | L187: 4816 | N187: 7862.5 | O187: 6332.5 | P187: 5603.2 | Q187: 4093.6
A188: 50 | C188: 8044.4 | D188: 6477 | E188: 5742.6 | F188: 4198.15 | I188: 9464 | J188: 7620 | K188: 6756 | L188: 4939 | N188: 8044.4 | O188: 6477 | P188: 5742.6 | Q188: 4198.15
A189: 51 | C189: 8229.7 | D189: 6623.2 | E189: 5886.25 | F189: 4302.7 | I189: 9682 | J189: 7792 | K189: 6925 | L189: 5062 | N189: 8229.7 | O189: 6623.2 | P189: 5886.25 | Q189: 4302.7
A190: 52 | C190: 8419.25 | D190: 6772.8 | E190: 6034.15 | F190: 4409.8 | I190: 9905 | J190: 7968 | K190: 7099 | L190: 5188 | N190: 8419.25 | O190: 6772.8 | P190: 6034.15 | Q190: 4409.8
A191: 53 | C191: 8611.35 | D191: 6926.65 | E191: 6184.6 | F191: 4519.45 | I191: 10131 | J191: 8149 | K191: 7276 | L191: 5317 | N191: 8611.35 | O191: 6926.65 | P191: 6184.6 | Q191: 4519.45
A192: 54 | C192: 8806 | D192: 7082.2 | E192: 6336.75 | F192: 4630.8 | I192: 10360 | J192: 8332 | K192: 7455 | L192: 5448 | N192: 8806 | O192: 7082.2 | P192: 6336.75 | Q192: 4630.8
A193: 55 | C193: 9007.45 | D193: 7239.45 | E193: 6492.3 | F193: 4745.55 | I193: 10597 | J193: 8517 | K193: 7638 | L193: 5583 | N193: 9007.45 | O193: 7239.45 | P193: 6492.3 | Q193: 4745.55
A194: 56 | C194: 9211.45 | D194: 7402.65 | E194: 6651.25 | F194: 4862 | I194: 10837 | J194: 8709 | K194: 7825 | L194: 5720 | N194: 9211.45 | O194: 7402.65 | P194: 6651.25 | Q194: 4862
A195: 57 | C195: 9418 | D195: 7566.7 | E195: 6811.9 | F195: 4977.6 | I195: 11080 | J195: 8902 | K195: 8014 | L195: 5856 | N195: 9418 | O195: 7566.7 | P195: 6811.9 | Q195: 4977.6
A196: 58 | C196: 9629.65 | D196: 7735 | E196: 6975.1 | F196: 5098.3 | I196: 11329 | J196: 9100 | K196: 8206 | L196: 5998 | N196: 9629.65 | O196: 7735 | P196: 6975.1 | Q196: 5098.3
A197: 59 | C197: 9846.4 | D197: 7906.7 | E197: 7145.1 | F197: 5221.55 | I197: 11584 | J197: 9302 | K197: 8406 | L197: 6143 | N197: 9846.4 | O197: 7906.7 | P197: 7145.1 | Q197: 5221.55
A198: 60 | C198: 10065.7 | D198: 8080.1 | E198: 7314.25 | F198: 5344.8 | I198: 11842 | J198: 9506 | K198: 8605 | L198: 6288 | N198: 10065.7 | O198: 8080.1 | P198: 7314.25 | Q198: 5344.8
A199: 61 | C199: 11215.75 | D199: 9000.65 | E199: 8210.15 | F199: 6001 | I199: 13195 | J199: 10589 | K199: 9659 | L199: 7060 | N199: 11215.75 | O199: 9000.65 | P199: 8210.15 | Q199: 6001
A200: 62 | C200: 12462.7 | D200: 9996 | E200: 9181.7 | F200: 6709.05 | I200: 14662 | J200: 11760 | K200: 10802 | L200: 7893 | N200: 12462.7 | O200: 9996 | P200: 9181.7 | Q200: 6709.05
A201: 63 | C201: 13801.45 | D201: 11070.4 | E201: 10225.5 | F201: 7472.35 | I201: 16237 | J201: 13024 | K201: 12030 | L201: 8791 | N201: 13801.45 | O201: 11070.4 | P201: 10225.5 | Q201: 7472.35
A202: 64 | C202: 15235.4 | D202: 12223 | E202: 11343.25 | F202: 8289.2 | I202: 17924 | J202: 14380 | K202: 13345 | L202: 9752 | N202: 15235.4 | O202: 12223 | P202: 11343.25 | Q202: 8289.2
A203: 65 | C203: 16762 | D203: 13452.95 | E203: 12535.8 | F203: 9160.45 | I203: 19720 | J203: 15827 | K203: 14748 | L203: 10777 | N203: 16762 | O203: 13452.95 | P203: 12535.8 | Q203: 9160.45
A204: 66 | C204: 18383.8 | D204: 14762.8 | E204: 13802.3 | F204: 10086.1 | I204: 21628 | J204: 17368 | K204: 16238 | L204: 11866 | N204: 18383.8 | O204: 14762.8 | P204: 13802.3 | Q204: 10086.1
A205: 67 | C205: 20098.25 | D205: 16149.15 | E205: 15141.9 | F205: 11065.3 | I205: 23645 | J205: 18999 | K205: 17814 | L205: 13018 | N205: 20098.25 | O205: 16149.15 | P205: 15141.9 | Q205: 11065.3
A206: 68 | C206: 21908.75 | D206: 17612.85 | E206: 16552.9 | F206: 12097.2 | I206: 25775 | J206: 20721 | K206: 19474 | L206: 14232 | N206: 21908.75 | O206: 17612.85 | P206: 16552.9 | Q206: 12097.2
... 1257 more rows
